Workbook

Sheet FORM
B2: 1 | C2: Name of Course | D2: Industrial Training Report | AK2: 1 | AL2: 1
C3: Course Code | D3: DDWF3914 | AJ3: √ | AK3: 2 | AL3: 2
B4: 2 | C4: Synopsis | D4: This course focus on the sharing of practical training knowledge and experience at various industrial such as property management, property valuation, and estate agency. The purpose of the course: the student will be express their knowledge and experience and made any suggestions to the department panel of industrial training. At the end of this course, students should be able to use and apply their professional knowledge and skills in property valuation, property management and estate agency through the effectively communication. This course, students are led to develop skills to communicate clearly and effectively either written and oral forms. | U4: =D4 -> This course focus on the sharing of practical training knowledge and experience at various industrial such as property management, property valuation, and estate agency. The purpose of the course: the student will be express their knowledge and experience and made any suggestions to the department panel of industrial training. At the end of this course, students should be able to use and apply their professional knowledge and skills in property valuation, property management and estate agency through the effectively communication. This course, students are led to develop skills to communicate clearly and effectively either written and oral forms. | AK4: 3 | AL4: 3
B5: 3 | C5: Name (s) of Academic Staff | D5: Noor Enaida Bt Tutan Khamin | AK5: 4 | AL5: 4
B6: 4 | C6: Semester | D6: Semester | E6: 6 | F6: Year | G6: 3 | AK6: 5
B7: 5 | C7: Credit Value | D7: =IF(T47=40,1,(IF(T47=80,2,(IF(T47=120,3,(IF(T47=160,4,IF(T47=200,5,IF(T47=240,6,""))))))))) -> 4 | AK7: 6
B8: 6 | C8: Pre-requisite / Co-requisite (if any) | D8: Pass all courses up to semester 5 | AK8: 7
B9: 7 | C9: Course Learning Outcomes (CLO): At the end of the course the students will be able to: | AK9: 8
C10: (example) - explain the basic principles of immunisation (C2, PLO1) | AK10: 9
C11: CLO1 | D11: Define and carry out the full industrial practical training report. Discuss, prepare and execute the practical training log book Produce the summary of industrial practical training report for the four months training.(P4, PLO2) | U11: =D11 -> Define and carry out the full industrial practical training report. Discuss, prepare and execute the practical training log book Produce the summary of industrial practical training report for the four months training.(P4, PLO2) | AK11: 10
C12: CLO2 | D12: Access information and knowledge both theory and practical through effective communication skills. Present the new information, knowledge, practical experience and outputs of research clearly and effectively through oral presentation and report writing.(P4, CS3, PLO4) | U12: =D12 -> Access information and knowledge both theory and practical through effective communication skills. Present the new information, knowledge, practical experience and outputs of research clearly and effectively through oral presentation and report writing.(P4, CS3, PLO4) | AK12: 11
C13: CLO3 | D13: Practice work and professional ethics and values towards oneself, group members and group efforts. (A3, EM2, PLO8)
B14: 8 | C14: Mapping of the Course Learning Outcomes to the Programme Learning Outcomes, Teaching Methods and Assessment:
C15: Course Learning Outcomes (CLO) | D15: Programme Learning Outcomes (PLO) | P15: Teaching Methods | S15: Assessment
D16: PLO1 | E16: PLO2 | F16: PLO3 | G16: PLO4 | H16: PLO5 | I16: PLO6 | J16: PLO7 | K16: PLO8 | L16: PLO9 | M16: PLO10 | N16: PLO11 | O16: PLO12
C17: CLO1 | E17: √ | P17: Discussion |Co-operative Learning | Independent Study | S17: Report | Log Book | U17: =S17 -> Report | Log Book
C18: CLO2 | G18: √ | P18: Discussion |Co-operative Learning | Independent Study | S18: Presentation
C19: CLO3 | K19: √ | P19: Discussion |Co-operative Learning | Independent Study | S19: Report | Log Book
C20: (The description must be read together with standards 2.1.2, 2.2.1 and 2.2.2 in Area 2 - pages 16 & 18)
B21: 9 | C21: Transferable skills (if applicable) | G21: 1 | H21: Technical Skill, Practical and Psychomotor
C22: (Skills learned in the course of study which can be useful and utilised in other settings) | G22: 2 | H22: Communication and Teamwork
G23: 3 | H23: Values, Attitude and Ethics
B24: 10 | C24: Distribution of Students Learning Time (SLT)
C25: Course Content Outline | G25: CLO | I25: Teaching and Learning Activities | T25: SLT
I26: Guided learning (F2F) | Q26: Guided Learning (NF2F) eg: e-learning | S26: Independent learning (NF2F)
I27: L | K27: T | M27: P | O27: O
C28: Self Directed Learning | G28: CLO 1, CLO 2, CLO 3 | M28: 0 | S28: 156 | T28: =SUM(I28:S28) -> 156
C29: Total | T29: =SUM(T28:T28) -> 156 | U29: =C29 -> Total
C31: Continuous Assessment | L31: Percentage (%) | N31: F2F | Q31: NF2F | T31: SLT
C32: 1 | D32: Report and Presentation | L32: 40 | N32: 0.5 | Q32: 1 | T32: =SUM(N32:S32) -> 1.5
C33: 2 | D33: Log Book | L33: 10 | Q33: 1 | T33: =SUM(N33:S33) -> 1 | U33: =D33 -> Log Book
C34: 3 | T34: 0 | U34: =D34 -> 0
C35: 4 | T35: 0 | U35: =D35 -> 0
C36: 5 | T36: 0 | U36: =D36 -> 0
C37: Total | T37: =SUM(T32:T36) -> 2.5 | U37: =D37 -> 0
C39: Final Assessment | L39: Percentage (%) | N39: F2F | Q39: NF2F | T39: SLT
C40: 1 | D40: Presentation | L40: 50 | N40: 0.5 | Q40: 1 | T40: =SUM(N40:S40) -> 1.5
C41: 2 | T41: =SUM(N41:S41) -> 0 | U41: =D41 -> 0
C42: 3 | T42: 0 | U42: =D42 -> 0
C43: 4 | T43: 0 | U43: 0
C44: 5 | T44: 0
T45: =SUM(T40:T44) -> 1.5 | U45: 0
C47: **Please tick (ü) in this course is Latihan Industri / Clinical Placement / Practicum / WBL using 2 weeks; 1 credit formula | T47: =+T29+T37+T45 -> 160
C48: L= Lecture, T=Tutorial, P=Practical, O=Others, F2F=Face to Face, NF2F=None Face to Face
C49: *Indicate the CLO based on the CLO's numbering in item 8
B50: 11 | C50: Identify special requirement to deliver the course (e.g: software, nursery, computer lab, simulation room, etc) | H50: None
U51: =H51 -> 0
B52: 12 | C52: References:
C53: (include required and further readings, and should be the most current) | U53: =H53 -> 0
B54: 13 | C54: Other additional Information | H54: Last updated : 16 April 2018 | U54: Last updated : 16 April 2018

Sheet INDEX
A1: COURSE INDEX
B2: FORM
B3: INDEX | C3: Comments by Panel of Assessors
B4: ULAB 1032
B5: UICD 1032
B6: DDWF 1413
B7: DDWF 1513
B8: DDWF 1613
B9: DDWF 1212
B10: ULAB 1042
B11: UHAS 1172
B12: DDWF 1523
B13: DDWG 1023
B14: DDWF 1623
B15: DDWF 1423
B16: UKQA2072
B17: UKQR2012
B18: UKQR2022
B19: UKQS2012
B20: UKQS2082
B21: UKQS2102
B22: DDWL2733
B23: DDWF2533
B24: DDWF2433
B25: DDWF2232
B26: DDWF2333
B27: ULAB 2222
B28: DDWF 2843
B29: DDWF 2643
B30: DDWF 2343
B31: DDWF 2443
B32: DDWF 2742
B33: DDWF 3053
B34: DDWF3254
B35: DDWF3453
B36: DDWF3752
B37: DDWF3153
B38: DDWF3908
B39: DDWF3914

Sheet ULAB 1032
B2: 1 | C2: Name of Course | D2: Introductory English | AK2: 1 | AL2: 1
C3: Course Code | D3: ULAB 1032 | AJ3: √ | AK3: 2 | AL3: 2
B4: 2 | C4: Synopsis | D4: This beginner course is designed to develop students's receptive and productive academic skills. For receptive skills, students will be guided to read and listen to academic texts as well as respond to questions based on the texts. For the productive skill of speaking, students will be given guidance on how to delivr a short speech based on topics of thier choice. this course will also familiarise students with guided writing based on non - linear information and essay writing on problem - solution topics. it also provides enrichment activities to complement on both receptive and productive skills through self - access materials. At the end of the course, students should be able to apply these skills in current and future academic settings. | U4: =D4 -> This beginner course is designed to develop students's receptive and productive academic skills. For receptive skills, students will be guided to read and listen to academic texts as well as respond to questions based on the texts. For the productive skill of speaking, students will be given guidance on how to delivr a short speech based on topics of thier choice. this course will also familiarise students with guided writing based on non - linear information and essay writing on problem - solution topics. it also provides enrichment activities to complement on both receptive and productive skills through self - access materials. At the end of the course, students should be able to apply these skills in current and future academic settings. | AK4: 3 | AL4: 3
B5: 3 | C5: Name (s) of Academic Staff | D5: Siti Nurul Atini Binti Ibrahim | AK5: 4 | AL5: 4
B6: 4 | C6: Semester | D6: Semester | E6: 2 | F6: Year | G6: 1 | AK6: 5
B7: 5 | C7: Credit Value | D7: =IF(T64=40,1,(IF(T64=80,2,(IF(T64=120,3,(IF(T64=160,4,IF(T64=200,5,IF(T64=240,6,""))))))))) -> 2 | AK7: 6
B8: 6 | C8: Pre-requisite / Co-requisite (if any) | AK8: 7
B9: 7 | C9: Course Learning Outcomes (CLO): At the end of the course the students will be able to: | AK9: 8
C10: (example) - explain the basic principles of immunisation (C2, PLO1) | AK10: 9
C11: CLO1 | D11: Extract main ideas and specific information from reading texts. | U11: =D11 -> Extract main ideas and specific information from reading texts. | AK11: 10
C12: CLO2 | D12: Listen to academic texts and take notes. | U12: =D12 -> Listen to academic texts and take notes. | AK12: 11
C13: CLO3 | D13: Write a guided report based on non - linear information and problem solution essay.
C14: CLO4 | D14: Communicate orally with confidence and fluency.
C15: CLO5 | D15: Use self - access learning materials for language development. | AK15: 12
B16: 8 | C16: Mapping of the Course Learning Outcomes to the Programme Learning Outcomes, Teaching Methods and Assessment:
C17: Course Learning Outcomes (CLO) | D17: Programme Learning Outcomes (PLO) | P17: Teaching Methods | S17: Assessment
D18: PLO1 | E18: PLO2 | F18: PLO3 | G18: PLO4 | H18: PLO5 | I18: PLO6 | J18: PLO7 | K18: PLO8 | L18: PLO9 | M18: PLO10 | N18: PLO11 | O18: PLO12
C19: CLO1 | D19: √ | P19: Lecture | Discussion | S19: Assignment | Test | Final Examination | U19: =S19 -> Assignment | Test | Final Examination
C20: CLO2 | D20: √ | P20: Lecture | Lab Activities | S20: In Class Activity
C21: CLO3 | D21: √ | P21: Lecture | Lab Activities | Presentation | S21: Assignment
C22: CLO4 | D22: √ | P22: Lecture l Activities l presentation | S22: Demonstration
C23: CLO5 | D23: √ | P23: Discussion | Presentation | S23: Individual Presentation
C24: (The description must be read together with standards 2.1.2, 2.2.1 and 2.2.2 in Area 2 - pages 16 & 18)
B25: 9 | C25: Transferable skills (if applicable) | G25: 1 | H25: Self-Management and Learning
C26: (Skills learned in the course of study which can be useful and utilised in other settings) | G26: 2 | H26: Communication and Teamwork
G27: 3 | H27: Problem Solving and Information Technology
B28: 10 | C28: Distribution of Students Learning Time (SLT)
C29: Course Content Outline | G29: CLO | I29: Teaching and Learning Activities | T29: SLT
I30: Guided learning (F2F) | Q30: Guided Learning (NF2F) eg: e-learning | S30: Independent learning (NF2F)
I31: L | K31: T | M31: P | O31: O
C32: Input on Reading - Understanding Academic Texts | G32: CLO 1 | I32: 2 | M32: 0 | S32: 2 | T32: =SUM(I32:S32) -> 4
C33: Input on Reading - Understanding Academic Texts | G33: CLO 1 | I33: 2 | O33: 0 | S33: 2 | T33: =SUM(I33:S33) -> 4 | U33: =C33 -> Input on Reading - Understanding Academic Texts
C34: Input on Writing - • Developing introduction and thesis statement • Developing body paragraphs • Using cohesive devices to join sentences and paragraphs | G34: CLO 3 | I34: 4 | S34: 2 | T34: 6 | U34: =C34 -> Input on Writing - • Developing introduction and thesis statement • Developing body paragraphs • Using cohesive devices to join sentences and paragraphs
C35: Input on listening • Recognising main ideas and supporting ideas • Practising note taking skills • Drawing conclusion | G35: CLO 2 | I35: 2 | S35: 2 | T35: 4 | U35: Input on listening • Recognising main ideas and supporting ideas • Practising note taking skills • Drawing conclusion
C36: Input on Reading - Understanding Non - Linear Texts | G36: CLO 1 | I36: 2 | S36: 2 | T36: 4 | U36: Input on Reading - Understanding Non - Linear Texts
C37: Input on Writing a Problem Solution Essay | G37: CLO3 | I37: 2 | K37: 2 | S37: 2 | T37: 6 | U37: Input on Writing a Problem Solution Essay
C38: Input on Speaking - Oral Presentation • Choosing speech topic • Developing and organising ideas • Preparing a presentation outline | G38: CLO 2 | I38: 2 | K38: 2 | S38: 2 | T38: 6 | U38: Input on Speaking - Oral Presentation • Choosing speech topic • Developing and organising ideas • Preparing a presentation outline
C39: Input on listening • Recognising main ideas and supporting ideas • Practising note taking skills. • Drawing conclusion | G39: CLO 2 | I39: 2 | S39: 2 | T39: 4 | U39: Input on listening • Recognising main ideas and supporting ideas • Practising note taking skills. • Drawing conclusion
C40: Input on Speaking | G40: CLO 4 | I40: 2 | S40: 2 | T40: 4 | U40: Input on Speaking
C41: Input on Writing • Revising and editing essay. • Spelling, puntuation and grammar • Content | G41: CLO3 | I41: 2 | K41: 2 | S41: 2 | T41: 6 | U41: Input on Writing • Revising and editing essay. • Spelling, puntuation and grammar • Content
C42: Input on Writing • Revising and editing essay. • Spelling, puntuation and grammar • Content | G42: CLO3 | I42: 2 | S42: 2 | T42: 4 | U42: Input on Writing • Revising and editing essay. • Spelling, puntuation and grammar • Content
C43: Input on Writing • Revising and editing essay. • Spelling, puntuation and grammar • Content | G43: CLO3 | I43: 2 | S43: 2 | T43: 4 | U43: Input on Writing • Revising and editing essay. • Spelling, puntuation and grammar • Content
C44: Oral Presentation Based on student's problem solution essay | G44: CLO4 | I44: 2 | S44: 2 | T44: 4 | U44: Oral Presentation Based on student's problem solution essay
C45: Oral Presentation Based on student's problem solution essay | G45: CLO 4 | I45: 2 | S45: 2 | T45: 4 | U45: Oral Presentation Based on student's problem solution essay
C46: Total | T46: =SUM(T32:T45) -> 64 | U46: Total
C48: Continuous Assessment | L48: Percentage (%) | N48: F2F | Q48: NF2F | T48: SLT
C49: 1 | D49: Listening Test | L49: 10 | T49: =SUM(N49:S49) -> 0
C50: 2 | D50: Writing Test | L50: 15 | N50: 2.5 | Q50: 2 | T50: =SUM(N50:S50) -> 4.5 | U50: =D50 -> Writing Test
C51: 3 | D51: Oral Presentation | L51: 15 | N51: 2.5 | Q51: 2 | T51: 4.5 | U51: =D51 -> Oral Presentation
C52: 4 | T52: 0 | U52: 0
C53: 5 | T53: 0 | U53: 0
C54: Total | T54: =SUM(T49:T53) -> 9 | U54: 0
C56: Final Assessment | L56: Percentage (%) | N56: F2F | Q56: NF2F | T56: SLT
C57: 1 | D57: Final Examination | L57: 60 | N57: 2 | Q57: 5 | T57: =SUM(N57:S57) -> 7
C58: 2 | T58: =SUM(N58:S58) -> 0 | U58: =D58 -> 0
C59: 3 | T59: 0 | U59: =D59 -> 0
C60: 4 | T60: 0 | U60: 0
C61: 5 | T61: 0
T62: =SUM(T57:T61) -> 7 | U62: 0
C64: **Please tick (ü) in this course is Latihan Industri / Clinical Placement / Practicum / WBL using 2 weeks; 1 credit formula | T64: =+T46+T54+T62 -> 80
C65: L= Lecture, T=Tutorial, P=Practical, O=Others, F2F=Face to Face, NF2F=None Face to Face
C66: *Indicate the CLO based on the CLO's numbering in item 8
B67: 11 | C67: Identify special requirement to deliver the course (e.g: software, nursery, computer lab, simulation room, etc) | H67: None
U68: =H68 -> 0
B69: 12 | C69: References: | H69: Haron, N.I, Radzi, N.M.; Shafie, L.A .; Mohd Radzi, A. H.; Nayan, S.and Ibrahim, N.F.W.(2016), Foundation English, Kuala Lumpur: Oxford Fajar
C70: (include required and further readings, and should be the most current) | H70: Oshima, A. and Hugue, A. (2007), introduction to Academic Writing. Third Edition. New YORK: Pearson Longman. | U70: =H70 -> Oshima, A. and Hugue, A. (2007), introduction to Academic Writing. Third Edition. New YORK: Pearson Longman.
B71: 13 | C71: Other additional Information | H71: Last updated : 16st April 2018 | U71: Last updated : 16st April 2018

Sheet UICD 1032
B2: 1 | C2: Name of Course | D2: Sains Teknologi & Manusia | AK2: 1 | AL2: 1
C3: Course Code | D3: UICD 1032 | AJ3: √ | AK3: 2 | AL3: 2
B4: 2 | C4: Synopsis | D4: Kursus ini membincangkan tentang falsafah penciptaan manusia dari perspektif Islam dan sains, faktor kemuliaan dan peranan manusia. Dibincangkan juga konsep dan falsafah ilmu dari aspek definisi, klasifikasi ilmu, budaya ilmu, proses perpindahan ilmu, serta pencapaian & sumbangan ilmuan islam. perbincangan seterusnya ialah mengenai konsep kosmologi dari perspektif islam & barat. Dibincangkan juga sains & teknologi dari sudut konsep, sejarah perkembangan, pandangan islam terhadap pengajian ilmu sains & teknologi, metodologi dalam sains & teknologi islam, perbandingan antara sains & teknologi islam dengan barat dan isu-isu dalam sains dan teknologi. | U4: =D4 -> Kursus ini membincangkan tentang falsafah penciptaan manusia dari perspektif Islam dan sains, faktor kemuliaan dan peranan manusia. Dibincangkan juga konsep dan falsafah ilmu dari aspek definisi, klasifikasi ilmu, budaya ilmu, proses perpindahan ilmu, serta pencapaian & sumbangan ilmuan islam. perbincangan seterusnya ialah mengenai konsep kosmologi dari perspektif islam & barat. Dibincangkan juga sains & teknologi dari sudut konsep, sejarah perkembangan, pandangan islam terhadap pengajian ilmu sains & teknologi, metodologi dalam sains & teknologi islam, perbandingan antara sains & teknologi islam dengan barat dan isu-isu dalam sains dan teknologi. | AK4: 3 | AL4: 3
B5: 3 | C5: Name (s) of Academic Staff | D5: Wan Muhammad Silmi Hamzah | AK5: 4 | AL5: 4
B6: 4 | C6: Semester | D6: Semester | E6: 2 | F6: Year | G6: 1 | AK6: 5
B7: 5 | C7: Credit Value | D7: =IF(T56=40,1,(IF(T56=80,2,(IF(T56=120,3,(IF(T56=160,4,IF(T56=200,5,IF(T56=240,6,""))))))))) -> 2 | AK7: 6
B8: 6 | C8: Pre-requisite / Co-requisite (if any) | AK8: 7
B9: 7 | C9: Course Learning Outcomes (CLO): At the end of the course the students will be able to: | AK9: 8
C10: (example) - explain the basic principles of immunisation (C2, PLO1) | AK10: 9
C11: CLO1 | D11: Menjelaskan konsep penciptaan manusia dari perspektif islam dan sains, faktor kemuliaan dan peranan manusia. (PLO1, C2) | U11: =D11 -> Menjelaskan konsep penciptaan manusia dari perspektif islam dan sains, faktor kemuliaan dan peranan manusia. (PLO1, C2) | AK11: 10
C12: CLO2 | D12: menjelaskan konsep dan falsafah ilmu dari aspek definisi, klasifikasi ilmu, budaya ilmu dan proses perpindahan ilmu serta pencapaian dan sumbangan ilmuan islam. (PLO6, PLO8, C3, P3) | U12: =D12 -> menjelaskan konsep dan falsafah ilmu dari aspek definisi, klasifikasi ilmu, budaya ilmu dan proses perpindahan ilmu serta pencapaian dan sumbangan ilmuan islam. (PLO6, PLO8, C3, P3) | AK12: 11
C13: CLO3 | D13: Menjelaskan konsep kosmologi dari perspektif islam & barat (PLO1, C3, P3)
C14: CLO4 | D14: Mengannalisis secara perbandingan antara sains & teknologi islam dan baratmengenai sumber, metodologi dalam sains & teknologi islam, serta isu-isu dalam sains & teknologi. (PLO6, C4, A3) | AK14: 12
B15: 8 | C15: Mapping of the Course Learning Outcomes to the Programme Learning Outcomes, Teaching Methods and Assessment:
C16: Course Learning Outcomes (CLO) | D16: Programme Learning Outcomes (PLO) | P16: Teaching Methods | S16: Assessment
D17: PLO1 | E17: PLO2 | F17: PLO3 | G17: PLO4 | H17: PLO5 | I17: PLO6 | J17: PLO7 | K17: PLO8 | L17: PLO9 | M17: PLO10 | N17: PLO11 | O17: PLO12
C18: CLO1 | D18: √ | P18: Lecture | Discussion | S18: Assignment | Test | Final Examination | U18: =S18 -> Assignment | Test | Final Examination
C19: CLO2 | I19: √ | K19: √ | P19: Lecture | Activities | S19: Assignment
C20: CLO3 | D20: √ | P20: Lecture | Activities | Presentation | S20: Project | Final Examination
C21: CLO4 | I21: √ | P21: Lecture | Activities | S21: Project | Final Examination
C22: (The description must be read together with standards 2.1.2, 2.2.1 and 2.2.2 in Area 2 - pages 16 & 18)
B23: 9 | C23: Transferable skills (if applicable) | G23: 1 | H23: Self-Management and Learning
C24: (Skills learned in the course of study which can be useful and utilised in other settings) | G24: 2 | H24: Communication and Teamwork
G25: 3 | H25: Problem Solving and Information Technology
B26: 10 | C26: Distribution of Students Learning Time (SLT)
C27: Course Content Outline | G27: CLO | I27: Teaching and Learning Activities | T27: SLT
I28: Guided learning (F2F) | Q28: Guided Learning (NF2F) eg: e-learning | S28: Independent learning (NF2F)
I29: L | K29: T | M29: P | O29: O
C30: 1.0 Falsafah penciptaan manusia 1.1 Konsep & teori kejadian mnusia 1.2 Proses penciptaan manusia 1.3 Peringkat kehidupan manusia 1.4 Matlamat penciptaan manusia 1.5 Peranan & tanggungjawab manusia 1.6 Etika & nilai manusia | G30: CLO 1 | I30: 6 | S30: 4 | T30: =SUM(I30:S30) -> 10
C31: 2.0 Konsep Ilmu 2.1 Definisi & klasifikasi ilmu 2.2 Budaya Ilmu 2.3 Proses perpindahan ilmu 2.4 Faktor dan kesan perpindahan ilmu 2.5 Pencapaian & sumbangan ilmuan islam | G31: CLO 1 | I31: 6 | O31: 0 | S31: 4 | T31: =SUM(I31:S31) -> 10 | U31: =C31 -> 2.0 Konsep Ilmu 2.1 Definisi & klasifikasi ilmu 2.2 Budaya Ilmu 2.3 Proses perpindahan ilmu 2.4 Faktor dan kesan perpindahan ilmu 2.5 Pencapaian & sumbangan ilmuan islam
C32: 3.0 Konsep kosmologi 3.1 Difinisi kosmologi 3.2 Kosmologi menurut islam dan sains 3.3 Penciptaan alam menurut islam dan sains 3.4 Proses kehancuran alam | G32: CLO 3 | I32: 4 | S32: 5 | T32: 9 | U32: =C32 -> 3.0 Konsep kosmologi 3.1 Difinisi kosmologi 3.2 Kosmologi menurut islam dan sains 3.3 Penciptaan alam menurut islam dan sains 3.4 Proses kehancuran alam
C33: 4.0 Sains menurut islam & barat 4.1 konsep sains menurut islam & barat 4.2 metodologi sains islam & barat 4.3 ciri-ciri sains islam dan barat | G33: CLO 2 | I33: 2 | S33: 5 | T33: 7 | U33: 4.0 Sains menurut islam & barat 4.1 konsep sains menurut islam & barat 4.2 metodologi sains islam & barat 4.3 ciri-ciri sains islam dan barat
C34: 5.0 Teknologi menurut islam dan barat 5.1 konsep teknologi menurut sialam dan barat 5.2 prinsip sains dan teknologi dalam islam | G34: CLO 3 | I34: 2 | S34: 4 | T34: 6 | U34: 5.0 Teknologi menurut islam dan barat 5.1 konsep teknologi menurut sialam dan barat 5.2 prinsip sains dan teknologi dalam islam
C35: 6.0 Perbandingan antara sains dan teknologi islam dan barat | G35: CLO 3 | I35: 2 | S35: 4 | T35: 6 | U35: 6.0 Perbandingan antara sains dan teknologi islam dan barat
C36: 7.0 Isu-isu dalam sains dan teknologi 7.1 Beberapa isu semasa dalam sains dan teknologi 7.2 penyelesaian terhadap isu-isu dalam sains dan teknologi | G36: CLO 2 | I36: 4 | S36: 4 | T36: 8 | U36: 7.0 Isu-isu dalam sains dan teknologi 7.1 Beberapa isu semasa dalam sains dan teknologi 7.2 penyelesaian terhadap isu-isu dalam sains dan teknologi
C37: 8.0 Rumusan | G37: CLO 3 | I37: 2 | S37: 2 | T37: 4 | U37: 8.0 Rumusan
C38: Total | T38: =SUM(T30:T37) -> 60 | U38: Total
C40: Continuous Assessment | L40: Percentage (%) | N40: F2F | Q40: NF2F | T40: SLT
C41: 1 | D41: Assignment 1 | L41: 10 | Q41: 3 | T41: =SUM(N41:S41) -> 3
C42: 2 | D42: Assignment 2 | L42: 10 | Q42: 3 | T42: =SUM(N42:S42) -> 3 | U42: =D42 -> Assignment 2
C43: 3 | D43: Test 1 | L43: 10 | N43: 1.5 | Q43: 2 | T43: 3.5 | U43: =D43 -> Test 1
C44: 4 | D44: Test 2 | L44: 10 | N44: 1.5 | Q44: 2 | T44: 3.5 | U44: Test 2
C45: 5 | T45: 0 | U45: 0
C46: Total | T46: =SUM(T41:T45) -> 13 | U46: 0
C48: Final Assessment | L48: Percentage (%) | N48: F2F | Q48: NF2F | T48: SLT
C49: 1 | D49: Final Examination | L49: 60 | N49: 2.5 | Q49: 4.5 | T49: =SUM(N49:S49) -> 7
C50: 2 | T50: =SUM(N50:S50) -> 0 | U50: =D50 -> 0
C51: 3 | T51: 0 | U51: =D51 -> 0
C52: 4 | T52: 0 | U52: 0
C53: 5 | T53: 0
T54: =SUM(T49:T53) -> 7 | U54: 0
C56: **Please tick (ü) in this course is Latihan Industri / Clinical Placement / Practicum / WBL using 2 weeks; 1 credit formula | T56: =+T38+T46+T54 -> 80
C57: L= Lecture, T=Tutorial, P=Practical, O=Others, F2F=Face to Face, NF2F=None Face to Face
C58: *Indicate the CLO based on the CLO's numbering in item 8
B59: 11 | C59: Identify special requirement to deliver the course (e.g: software, nursery, computer lab, simulation room, etc) | H59: None
U60: =H60 -> 0
B61: 12 | C61: References: | H61: Al-Ajurri, Abi Bakr Bin al-Husayn Bin Abdullah. T.th. Akhlaq al-Ulama'. Madinah: Daral-Da'wah.
C62: (include required and further readings, and should be the most current) | H62: Ali Nadwi. 1967. Islam and the World. Lahore: S.H.M. Ashraf. | U62: =H62 -> Ali Nadwi. 1967. Islam and the World. Lahore: S.H.M. Ashraf.
B63: 13 | C63: Other additional Information | H63: Last updated : 1st February 2018 | U63: Last updated : 1st February 2018

Sheet DDWF 1413
B2: 1 | C2: Name of Course | D2: Introduction To Real Estate | AK2: 1 | AL2: 1
C3: Course Code | D3: DDWF1413 | AJ3: √ | AK3: 2 | AL3: 2
B4: 2 | C4: Synopsis | D4: This course introduces students to some major views and theories of real estate profession in Malaysia. It will emphasize on the general concepts of introduction to the real estate, real estate business, real estate fundamentals, and real estate valuation. At the end of this course, students should be able to appreciate the real estate environment in Malaysia. Besides that, students should also be able to work in a team. | U4: =D4 -> This course introduces students to some major views and theories of real estate profession in Malaysia. It will emphasize on the general concepts of introduction to the real estate, real estate business, real estate fundamentals, and real estate valuation. At the end of this course, students should be able to appreciate the real estate environment in Malaysia. Besides that, students should also be able to work in a team. | AK4: 3 | AL4: 3
B5: 3 | C5: Name (s) of Academic Staff | D5: Nik Mat Nasri Nik Ramli | AK5: 4 | AL5: 4
B6: 4 | C6: Semester | D6: Semester | E6: 1 | F6: Year | G6: 1 | AK6: 5
B7: 5 | C7: Credit Value | D7: =IF(T60=40,1,(IF(T60=80,2,(IF(T60=120,3,(IF(T60=160,4,IF(T60=200,5,IF(T60=240,6,""))))))))) -> 3 | AK7: 6
B8: 6 | C8: Pre-requisite / Co-requisite (if any) | AK8: 7
B9: 7 | C9: Course Learning Outcomes (CLO): At the end of the course the students will be able to: | AK9: 8
C10: (example) - explain the basic principles of immunisation (C2, PLO1) | AK10: 9
C11: CLO1 | D11: Describe and explain concepts and theories of real estate profession and real estate environment in Malaysia. Differentiate and rationalise between real estate business and real estate valuation. (PLO1, C3) | U11: =D11 -> Describe and explain concepts and theories of real estate profession and real estate environment in Malaysia. Differentiate and rationalise between real estate business and real estate valuation. (PLO1, C3) | AK11: 10
C12: CLO2 | D12: Express ideas clearly and effectively as well as demonstrate understanding. (PLO4, P3, CS1-CS3) | U12: =D12 -> Express ideas clearly and effectively as well as demonstrate understanding. (PLO4, P3, CS1-CS3) | AK12: 11
C13: CLO3 | D13: Relate theories and practise of real estate in real estate profession. (PLO6, A3, LL1)
C14: CLO4 | AK14: 12
B15: 8 | C15: Mapping of the Course Learning Outcomes to the Programme Learning Outcomes, Teaching Methods and Assessment:
C16: Course Learning Outcomes (CLO) | D16: Programme Learning Outcomes (PLO) | P16: Teaching Methods | S16: Assessment
D17: PLO1 | E17: PLO2 | F17: PLO3 | G17: PLO4 | H17: PLO5 | I17: PLO6 | J17: PLO7 | K17: PLO8 | L17: PLO9 | M17: PLO10 | N17: PLO11 | O17: PLO12
C18: CLO1 | D18: √ | P18: Lecture | Discussion | S18: Assignment | Test | Final Examination | U18: =S18 -> Assignment | Test | Final Examination
C19: CLO2 | G19: √ | P19: Lecture | Discussion | Co-operative Learning | S19: Project | Assignment
C20: CLO3 | I20: √ | P20: Lecture | Presentation | S20: Project | Assignment
C21: CLO4
C22: (The description must be read together with standards 2.1.2, 2.2.1 and 2.2.2 in Area 2 - pages 16 & 18)
B23: 9 | C23: Transferable skills (if applicable) | G23: 1 | H23: Knowledge
C24: (Skills learned in the course of study which can be useful and utilised in other settings) | G24: 2 | H24: Communication and Team Skill
G25: 3 | H25: Information Management and Lifelong Learning
B26: 10 | C26: Distribution of Students Learning Time (SLT)
C27: Course Content Outline | G27: CLO | I27: Teaching and Learning Activities | T27: SLT
I28: Guided learning (F2F) | Q28: Guided Learning (NF2F) eg: e-learning | S28: Independent learning (NF2F)
I29: L | K29: T | M29: P | O29: O
C30: 1.0 Introduction to the Valuation Profession 1.1 History and development of the profession 1.2 Legislation and the board of valuers, appraisers and estate agents 1.3 Qualifications to become a valuer and registered valuer. | G30: CLO 1 | I30: 2 | K30: 4 | M30: 0 | S30: 2 | T30: =SUM(I30:S30) -> 8
C31: 2.0 Role and Functions of Valuers, Estate Agents and Property's Manager 2.1 In the public sector 2.2 In the private sector | G31: CLO 1 | I31: 2 | K31: 4 | O31: 0 | S31: 2 | T31: =SUM(I31:S31) -> 8 | U31: =C31 -> 2.0 Role and Functions of Valuers, Estate Agents and Property's Manager 2.1 In the public sector 2.2 In the private sector
C32: 3.0 Introduction To Real Estate 3.1 Definition of land, real estate and real property 3.2 Characteristics of land/real estate. 3.3 Real properties as a form of investment. 3.4 Real property market. 3.5 Different types of properties and their characteristics especially agricultural, building and industry | G32: CLO 3 | I32: 2 | K32: 4 | S32: 2 | T32: 8 | U32: =C32 -> 3.0 Introduction To Real Estate 3.1 Definition of land, real estate and real property 3.2 Characteristics of land/real estate. 3.3 Real properties as a form of investment. 3.4 Real property market. 3.5 Different types of properties and their characteristics especially agricultural, building and industry
C33: 4.0 Introduction To Real Property Interests 4.1 Different types of interests. 4.2 Document of title. 4.3 Expressed and implied conditions. 4.4 Encumbrances and restriction in interests. | G33: CLO 2 | I33: 2 | K33: 4 | S33: 2 | T33: 8 | U33: 4.0 Introduction To Real Property Interests 4.1 Different types of interests. 4.2 Document of title. 4.3 Expressed and implied conditions. 4.4 Encumbrances and restriction in interests.
C34: 5.0 Concept and Principles of Valuation 5.1 Definition of valuation 5.2 Definition of value, cost and price. 5.3 Differentiate between value, cost and price. 5.4 Definition of market value and the several types of value. | G34: CLO 2 | I34: 2 | K34: 4 | S34: 2 | T34: 8 | U34: 5.0 Concept and Principles of Valuation 5.1 Definition of valuation 5.2 Definition of value, cost and price. 5.3 Differentiate between value, cost and price. 5.4 Definition of market value and the several types of value.
C35: 6.0 Purpose of Valuations 6.1 Introduction 6.2 Purposes of valuation: loan, fire insurance 6.3 Companies accounts and financial statement. 6.4 Sales and purchases 6.5 Acquisition 6.6 Revaluation 6.7 Rating | G35: CLO 1 | I35: 2 | K35: 4 | S35: 2 | T35: 8 | U35: 6.0 Purpose of Valuations 6.1 Introduction 6.2 Purposes of valuation: loan, fire insurance 6.3 Companies accounts and financial statement. 6.4 Sales and purchases 6.5 Acquisition 6.6 Revaluation 6.7 Rating
C36: 7.0 Types of Valuation 7.1 Statutory valuation 7.2 Non-statutory valuation | G36: CLO 2 | I36: 2 | K36: 4 | S36: 2 | T36: 8 | U36: 7.0 Types of Valuation 7.1 Statutory valuation 7.2 Non-statutory valuation
C37: 8.0 Factors Affacting Value 8.1 Macro factors 8.2 Micro factors | G37: CLO 2 | I37: 2 | K37: 4 | S37: 2 | T37: 8 | U37: 8.0 Factors Affacting Value 8.1 Macro factors 8.2 Micro factors
C38: 9.0 Process and Practice of Valuation 9.1 Received cases 9.2 Define job 9.3 Collecting of data 9.4 Analysis of data 9.5 Determination of value | G38: CLO 2 | I38: 2 | K38: 4 | S38: 2 | T38: 8
C39: 10.0 Analyze of Data 10.1 Location factors 10.2 Time factor 10.3 Quantum factor | G39: CLO 2 | I39: 2 | K39: 4 | S39: 2 | T39: 8
C40: 11.0 Preparation of Valuation Reports 11.1 Report format 11.2 Report contents. | G40: CLO 3 | I40: 2 | K40: 4 | S40: 2 | T40: 8 | U40: 11.0 Preparation of Valuation Reports 11.1 Report format 11.2 Report contents.
C41: 12.0 Introduction to Method of Valuation 12.1 Comparison method 12.2 Investment method 12.3 Profit method 12.4 Cost Method 12.5 Residual Method | G41: CLO 3 | I41: 2 | K41: 4 | S41: 2 | T41: 8 | U41: 12.0 Introduction to Method of Valuation 12.1 Comparison method 12.2 Investment method 12.3 Profit method 12.4 Cost Method 12.5 Residual Method
C42: Total | T42: =SUM(T30:T41) -> 96 | U42: Total
C44: Continuous Assessment | L44: Percentage (%) | N44: F2F | Q44: NF2F | T44: SLT
C45: 1 | D45: Project | L45: 10 | N45: 1.5 | Q45: 2 | T45: =SUM(N45:S45) -> 3.5
C46: 2 | D46: Assignment | L46: 5 | N46: 1 | Q46: 1.5 | T46: =SUM(N46:S46) -> 2.5 | U46: =D46 -> Assignment
C47: 3 | D47: Test 1 | L47: 10 | N47: 1.5 | Q47: 2 | T47: 3.5 | U47: =D47 -> Test 1
C48: 4 | D48: Test 2 | L48: 10 | N48: 2 | Q48: 2.5 | T48: 4.5 | U48: Test 2
C49: 5 | D49: Presentation | L49: 5 | N49: 1.5 | Q49: 2 | T49: 3.5 | U49: Presentation
C50: Total | T50: =SUM(T45:T49) -> 17.5 | U50: 0
C52: Final Assessment | L52: Percentage (%) | N52: F2F | Q52: NF2F | T52: SLT
C53: 1 | D53: Final Examination | L53: 60 | N53: 2.5 | Q53: 4 | T53: =SUM(N53:S53) -> 6.5
C54: 2 | T54: =SUM(N54:S54) -> 0 | U54: =D54 -> 0
C55: 3 | T55: 0 | U55: =D55 -> 0
C56: 4 | T56: 0 | U56: 0
C57: 5 | T57: 0
T58: =SUM(T53:T57) -> 6.5 | U58: 0
C60: **Please tick (ü) in this course is Latihan Industri / Clinical Placement / Practicum / WBL using 2 weeks; 1 credit formula | T60: =+T42+T50+T58 -> 120
C61: L= Lecture, T=Tutorial, P=Practical, O=Others, F2F=Face to Face, NF2F=None Face to Face
C62: *Indicate the CLO based on the CLO's numbering in item 8
B63: 11 | C63: Identify special requirement to deliver the course (e.g: software, nursery, computer lab, simulation room, etc) | H63: None
U64: =H64 -> 0
B65: 12 | C65: References: | H65: 1. Michael Blackledge. (2009). An Introduction to Property Valuation. New York: Route ledge. 2. Douglas Scarrett. (2014). Property Valuation: The Five Methods. New York: Routledge. 3. Douglas Scarrett. (2008). Property Valuation: The Five Methods. New York: Routledge. 4. The Board of Valuers, Appraisers, Estate Agents and Property Managers (LPPEH). (2015). Malaysian Valuation Standards. (MVS). 5th ed. Kuala Lumpur : The Board Of Valuers , Appraisers And Estate Agents and Property Managers (LPPEH). 5. The Board of Valuers, Appraisers, Estate Agents and Property Managers. (LPPEH). (2019). Malaysian Valuation Standards. (MVS). 6th ed. Kuala Lumpur: The Board of Valuers, Appraisers and Estate Agents and Property Managers (LPPEH). 6. The Board Of Valuers, Appraisers And Estate Agents and Property Managers (LPPEH). (2013). Valuers, Appraisers and Estate Agents Act 1981(Act 242) & Rules (As At 15th January 2013). Selangor: International Law Book Services (ILBS). 7. The Board Of Valuers, Appraisers And Estate Agents and Property Managers (LPPEH). (2018). Valuers, Appraisers, Estate Agents and Property Managers Act 1981(Act 242) & Rules (As At 1st March 2019). Selangor: International Law Book Services (ILBS). 8. Lembaga Penyelidikan Undang-Undang. (2016). Kanun Tanah Negara 1965 (Akta 56/1965) & Peraturan-Peraturan. Selangor: International Law Book Services (ILBS). 9. Azhari Husin. (1996). Harta Tanah: Kaedah Penilaian. Kuala Lumpur: Dewan Bahasa dan Pustaka. 10. Wyatt, Peter. (2013). Property Valuation. 2nd. Ed. New York: John Wiley.
U66: =H66 -> 0
B67: 13 | C67: Other additional Information | H67: Last updated : 9st February 2020 | U67: Last updated : 9st February 2020

Sheet DDWF 1513
B2: 1 | C2: Name of Course | D2: Building Technology | AK2: 1 | AL2: 1
C3: Course Code | D3: DDWF 1513 | AJ3: √ | AK3: 2 | AL3: 2
B4: 2 | C4: Synopsis | D4: This course introduces students to some major views, the process, the elements and the theories of building environment development in Malaysia, under the Uniform Bulding Act 1984. It will emphasize on the general concepts of introduction to the building development process, building structure, bond working, building services, concrete working, wood working, building finishing, drawing and reading the floor plan and calculate the building area based on floor plan. | U4: =D4 -> This course introduces students to some major views, the process, the elements and the theories of building environment development in Malaysia, under the Uniform Bulding Act 1984. It will emphasize on the general concepts of introduction to the building development process, building structure, bond working, building services, concrete working, wood working, building finishing, drawing and reading the floor plan and calculate the building area based on floor plan. | AK4: 3 | AL4: 3
B5: 3 | C5: Name (s) of Academic Staff | D5: Nasibah Az-zahra binti Rusli | AK5: 4 | AL5: 4
B6: 4 | C6: Semester | D6: Semester | E6: 1 | F6: Year | G6: 1 | AK6: 5
B7: 5 | C7: Credit Value | D7: =IF(T54=40,1,(IF(T54=80,2,(IF(T54=120,3,(IF(T54=160,4,IF(T54=200,5,IF(T54=240,6,""))))))))) -> 3 | AK7: 6
B8: 6 | C8: Pre-requisite / Co-requisite (if any) | AK8: 7
B9: 7 | C9: Course Learning Outcomes (CLO): At the end of the course the students will be able to: | AK9: 8
C10: (example) - explain the basic principles of immunisation (C2, PLO1) | AK10: 9
C11: CLO1 | D11: Describe and explain the theory and concept of building development environment in Malaysia step by step. (PLO1, C3) | U11: =D11 -> Describe and explain the theory and concept of building development environment in Malaysia step by step. (PLO1, C3) | AK11: 10
C12: CLO2 | D12: Draw and explain building plan and subsequently, calculate the building area based on floor plan. (PLO2, P3) | U12: =D12 -> Draw and explain building plan and subsequently, calculate the building area based on floor plan. (PLO2, P3) | AK12: 11
C13: CLO3 | D13: Express ideas clearly and effectively as well as demonstrate understanding. (PLO4, P3, CS1-CS3)
C14: CLO4 | D14: Relate some major views, the process, the elements and the theories of building environment development in Malaysia, under the Uniform Building Act 1984 in Real Estate profession. (PLO6, A3, LL1-LL2) | AK14: 12
B15: 8 | C15: Mapping of the Course Learning Outcomes to the Programme Learning Outcomes, Teaching Methods and Assessment:
C16: Course Learning Outcomes (CLO) | D16: Programme Learning Outcomes (PLO) | P16: Teaching Methods | S16: Assessment
D17: PLO1 | E17: PLO2 | F17: PLO3 | G17: PLO4 | H17: PLO5 | I17: PLO6 | J17: PLO7 | K17: PLO8 | L17: PLO9 | M17: PLO10 | N17: PLO11 | O17: PLO12
C18: CLO1 | D18: √ | P18: Lecture | Discussion | S18: Project | Test | Final Examination | U18: =S18 -> Project | Test | Final Examination
C19: CLO2 | E19: √ | P19: Lecture | Discussion | Group Assignment | S19: Assignment
C20: CLO3 | G20: √ | P20: Lecture | Independent Study | S20: Presentation
C21: CLO4 | I21: √ | P21: Co-operative Learning | Discussion | S21: Project
C22: (The description must be read together with standards 2.1.2, 2.2.1 and 2.2.2 in Area 2 - pages 16 & 18)
B23: 9 | C23: Transferable skills (if applicable) | G23: 1 | H23: Self-Management and Learning
C24: (Skills learned in the course of study which can be useful and utilised in other settings) | G24: 2 | H24: Communication and Teamwork
G25: 3 | H25: Problem Solving and Scientific Skill
B26: 10 | C26: Distribution of Students Learning Time (SLT)
C27: Course Content Outline | G27: CLO | I27: Teaching and Learning Activities | T27: SLT
I28: Guided learning (F2F) | Q28: Guided Learning (NF2F) eg: e-learning | S28: Independent learning (NF2F)
I29: L | K29: T | M29: P | O29: O
C30: 1.0 Introduction to Building Development Environments 1.1 Introduction for building development environment. 1.2 Classification of buildings; residential, educational, institutional, hospitals, commercial and industrial. 1.3 Building’s elements 1.4 The various rules, regulations and by-laws associated with the construction 1.5 Building development process 1.5.1 Organization for building development | G30: CLO 2 | I30: 4 | K30: 4 | M30: 0 | S30: 5 | T30: =SUM(I30:S30) -> 13
C31: 2.0 Substructure 2.1 Introduction for substructure 2.2 Earthworks; Methods of cutting, filling, bulk excavation and compaction 2.3 Site and soil investigations; Importance, procedures, types, selection and methods of site and soil investigation 2.4 Piling works; Definition, types, classification of piles, pile driving, pile caps etc. 2.5 Concrete work; definition, types of concrete 2.6 Concrete work’s process and concrete’s testing 2.7 Steel frame construction 2.8 Types, selection, fabrication and installation: frames, floors, staircases and roofs 2.9 Ground Floor 2.9.1 Types, concept and elements | G31: CLO 1 | I31: 6 | K31: 6 | O31: 0 | S31: 6 | T31: 18 | U31: =C31 -> 2.0 Substructure 2.1 Introduction for substructure 2.2 Earthworks; Methods of cutting, filling, bulk excavation and compaction 2.3 Site and soil investigations; Importance, procedures, types, selection and methods of site and soil investigation 2.4 Piling works; Definition, types, classification of piles, pile driving, pile caps etc. 2.5 Concrete work; definition, types of concrete 2.6 Concrete work’s process and concrete’s testing 2.7 Steel frame construction 2.8 Types, selection, fabrication and installation: frames, floors, staircases and roofs 2.9 Ground Floor 2.9.1 Types, concept and elements
C32: 3.0 Scaffolds and Formworks 3.1 Scaffolds 3.2 Types of scaffolds (light duty scaffolds, heavy duty scaffolds 3.3 General purpose scaffolds 3.4 Formworks 3.5 Functions of formworks 3.6 Characteristics of good formworks 3.7 Design criteria of formworks 3.8 Construction process of formworks 3.9 Materials for formworks 3.10 Basic considerations in making formworks 3.11 Other considerations – steps taken to avoid delay and to ensure good formwork construction and process. 3.12 Introduction for substructure | G32: CLO 3 | I32: 6 | K32: 8 | S32: 4 | T32: 18 | U32: 3.0 Scaffolds and Formworks 3.1 Scaffolds 3.2 Types of scaffolds (light duty scaffolds, heavy duty scaffolds 3.3 General purpose scaffolds 3.4 Formworks 3.5 Functions of formworks 3.6 Characteristics of good formworks 3.7 Design criteria of formworks 3.8 Construction process of formworks 3.9 Materials for formworks 3.10 Basic considerations in making formworks 3.11 Other considerations – steps taken to avoid delay and to ensure good formwork construction and process. 3.12 Introduction for substructure
C33: 4.0 Super Structure 4.1 Frame; Column, Upper floor beam and roof beam. 4.2 Upper Floor 4.2.1 Types, selection and methods of reinforced concrete upper floor construction 4.3 Wall 4.4 Types, selection, components and building code requirements. 4.5 Cladding design considerations and performance factors. 4.6 Curtain wall cladding 4.7 Roof 4.7.1 Definition, types and elements 4.8 Staircase 4.8.1 Definition, types and elements 4.9 Window 4.9.1 Definition, types and elements 4.10 Door 4.10.1 Definition, types and elements 4.11 Ceiling 4.11.1 Definition, types and elements | G33: CLO 1 | I33: 6 | K33: 8 | S33: 6 | T33: 20 | U33: 4.0 Super Structure 4.1 Frame; Column, Upper floor beam and roof beam. 4.2 Upper Floor 4.2.1 Types, selection and methods of reinforced concrete upper floor construction 4.3 Wall 4.4 Types, selection, components and building code requirements. 4.5 Cladding design considerations and performance factors. 4.6 Curtain wall cladding 4.7 Roof 4.7.1 Definition, types and elements 4.8 Staircase 4.8.1 Definition, types and elements 4.9 Window 4.9.1 Definition, types and elements 4.10 Door 4.10.1 Definition, types and elements 4.11 Ceiling 4.11.1 Definition, types and elements
C34: 5.0 Building Plans and Measurement 5.1 Introduction to the building plan 5.2 Types of plan 5.3 Calculation of the building area 5.4 Plan's reading and drawing skills | G34: CLO 3 | I34: 4 | K34: 4 | S34: 5 | T34: 13 | U34: 5.0 Building Plans and Measurement 5.1 Introduction to the building plan 5.2 Types of plan 5.3 Calculation of the building area 5.4 Plan's reading and drawing skills
C35: 6.0 Building Finishes 6.1 Wall finishes 6.2 Floor finishes 6.3 Ceiling finishes 6.4 Staircase finishes 6.5 Roof finishes | G35: CLO 2 | I35: 4 | K35: 6 | S35: 6 | T35: 16 | U35: 6.0 Building Finishes 6.1 Wall finishes 6.2 Floor finishes 6.3 Ceiling finishes 6.4 Staircase finishes 6.5 Roof finishes
C36: Total | T36: =SUM(T30:T35) -> 98 | U36: Total
C38: Continuous Assessment | L38: Percentage (%) | N38: F2F | Q38: NF2F | T38: SLT
C39: 1 | D39: Project | L39: 15 | N39: 1 | Q39: 2.5 | T39: =SUM(N39:S39) -> 3.5
C40: 2 | D40: Presentation | L40: 5 | N40: 1.5 | Q40: 2 | T40: =SUM(N40:S40) -> 3.5 | U40: =D40 -> Presentation
C41: 3 | D41: Test 1 | L41: 10 | N41: 2 | Q41: 2 | T41: =SUM(N41:S41) -> 4 | U41: =D41 -> Test 1
C42: 4 | D42: Test 2 | L42: 10 | N42: 2 | Q42: 2 | T42: =SUM(N42:S42) -> 4 | U42: =D42 -> Test 2
C43: 5 | T43: =SUM(N43:S43) -> 0 | U43: =D43 -> 0
C44: Total | T44: =SUM(T39:T43) -> 15 | U44: =D44 -> 0
C46: Final Assessment | L46: Percentage (%) | N46: F2F | Q46: NF2F | T46: SLT
C47: 1 | D47: Final Examination | L47: 60 | N47: 2.5 | Q47: 4.5 | T47: =SUM(N47:S47) -> 7
C48: 2 | T48: =SUM(N48:S48) -> 0 | U48: =D48 -> 0
C49: 3 | T49: =SUM(N49:S49) -> 0 | U49: =D49 -> 0
C50: 4 | T50: =SUM(N50:S50) -> 0 | U50: =D50 -> 0
C51: 5 | T51: =SUM(N51:S51) -> 0
T52: =SUM(T47:T51) -> 7 | U52: =D52 -> 0
C54: **Please tick (ü) in this course is Latihan Industri / Clinical Placement / Practicum / WBL using 2 weeks; 1 credit formula | T54: =+T36+T44+T52 -> 120
C55: L= Lecture, T=Tutorial, P=Practical, O=Others, F2F=Face to Face, NF2F=None Face to Face
C56: *Indicate the CLO based on the CLO's numbering in item 8
B57: 11 | C57: Identify special requirement to deliver the course (e.g: software, nursery, computer lab, simulation room, etc) | H57: None
U58: =H58 -> 0
B59: 12 | C59: References: | H59: 1. Mat Lazim Zakaria. (1997). Bahan & Binaan. Kuala Lumpur: Dewan Bahasa dan Pustaka 2. Mat Lazim Zakaria. (2005). Bahan & Binaan. Kuala Lumpur: Dewan Bahasa dan Pustaka 3. Andrew J. Charlett. (2013). Fundamental Building Technology. New York: Routledge. 4. Seeley, Ivor. H (1995). Building Technology. 5th Ed. London: Macmillan. 5. Barry, Robin. (1999). The Construction Of Building.7th Ed. USA: Blackwell Publishing. 6. Emmit, Stephen. (2019). Barry’s Advanced Construction Of Building. 4th Ed. New Jersey: John Wiley. .
C60: (include required and further readings, and should be the most current) | U60: =H60 -> 0
B61: 13 | C61: Other additional Information | H61: Last updated : 9st February 2020 | U61: =H61 -> Last updated : 9st February 2020

Sheet DDWF 1613
B2: 1 | C2: Name of Course | D2: Introduction To Law | AK2: 1 | AL2: 1
C3: Course Code | D3: DDWF 1613 | AJ3: √ | AK3: 2 | AL3: 2
B4: 2 | C4: Synopsis | D4: The course is divided into several parts. The first part is designed to introduce students to the legal and administrative system in Malaysia. Such understanding is necessary since they will have to deal with various government agencies and provisions of the law in the later part of their career. Basically, it shall start by discussing the definition of law, roles and functions of law in upholding the legal and justice system, types of laws available during the pre –Independence, the current laws and their relevance to DDWF students. The second part concentres on contract law, the elements of contract, terms of contract, types of contract, discharge of contract, legal remedies for breach of contract, Islamic contractual transaction. In continuation with the above, students shall be able to differentiate elements of contract under the civil and conventional law and also the Islamic law of contract. The third part focuses on law of agency, the principles that are applicable in agency and formation of an agency, rights and obligations of both the agent and principles towards each other and third parties. The fourth part briefly discusses the law of tort specifically on negligence to accommodate the specific needs of the course for DDWF students. | U4: =D4 -> The course is divided into several parts. The first part is designed to introduce students to the legal and administrative system in Malaysia. Such understanding is necessary since they will have to deal with various government agencies and provisions of the law in the later part of their career. Basically, it shall start by discussing the definition of law, roles and functions of law in upholding the legal and justice system, types of laws available during the pre –Independence, the current laws and their relevance to DDWF students. The second part concentres on contract law, the elements of contract, terms of contract, types of contract, discharge of contract, legal remedies for breach of contract, Islamic contractual transaction. In continuation with the above, students shall be able to differentiate elements of contract under the civil and conventional law and also the Islamic law of contract. The third part focuses on law of agency, the principles that are applicable in agency and formation of an agency, rights and obligations of both the agent and principles towards each other and third parties. The fourth part briefly discusses the law of tort specifically on negligence to accommodate the specific needs of the course for DDWF students. | AK4: 3 | AL4: 3
B5: 3 | C5: Name (s) of Academic Staff | D5: Azizah binti Musa | AK5: 4 | AL5: 4
B6: 4 | C6: Semester | D6: Semester | E6: 1 | F6: Year | G6: 1 | AK6: 5
B7: 5 | C7: Credit Value | D7: =IF(T60=40,1,(IF(T60=80,2,(IF(T60=120,3,(IF(T60=160,4,IF(T60=200,5,IF(T60=240,6,""))))))))) -> 3 | AK7: 6
B8: 6 | C8: Pre-requisite / Co-requisite (if any) | AK8: 7
B9: 7 | C9: Course Learning Outcomes (CLO): At the end of the course the students will be able to: | AK9: 8
C10: (example) - explain the basic principles of immunisation (C2, PLO1) | AK10: 9
C11: CLO1 | D11: a. Identify the concept of law, sources of law, differences between the syariah and civil laws and the role of law in upholding justice in Malaysia and the rest of the world. b. Identify the principles relating to contract, agency and tort laws, the application and administration of these laws according to the subject matter in hand. (PLO1, C3) | U11: =D11 -> a. Identify the concept of law, sources of law, differences between the syariah and civil laws and the role of law in upholding justice in Malaysia and the rest of the world. b. Identify the principles relating to contract, agency and tort laws, the application and administration of these laws according to the subject matter in hand. (PLO1, C3) | AK11: 10
C12: CLO2 | D12: a. Describes the differences and similarities between civil and Islamic law. b. Describe the principles and provisions of all relevant statues. c. Describes the differences between rights and responsibilities of parties involved. (PLO1, C3) | U12: =D12 -> a. Describes the differences and similarities between civil and Islamic law. b. Describe the principles and provisions of all relevant statues. c. Describes the differences between rights and responsibilities of parties involved. (PLO1, C3) | AK12: 11
C13: CLO3 | D13: Express ideas clearly and effectively as well as demonstrate understanding. (PLO4, P3, CS1, CS3)
C14: CLO4 | D14: Relate relevant information in this subject to real estate profession. (PLO6, A3, LL1-LL2) | AK14: 12
B15: 8 | C15: Mapping of the Course Learning Outcomes to the Programme Learning Outcomes, Teaching Methods and Assessment:
C16: Course Learning Outcomes (CLO) | D16: Programme Learning Outcomes (PLO) | P16: Teaching Methods | S16: Assessment
D17: PLO1 | E17: PLO2 | F17: PLO3 | G17: PLO4 | H17: PLO5 | I17: PLO6 | J17: PLO7 | K17: PLO8 | L17: PLO9 | M17: PLO10 | N17: PLO11 | O17: PLO12
C18: CLO1 | D18: √ | P18: Lecture | Discussion | S18: Assignment | Test | Final Examination | U18: =S18 -> Assignment | Test | Final Examination
C19: CLO2 | D19: √ | P19: Lecture | Discussion | S19: Assignment | Test | Final Examination
C20: CLO3 | G20: √ | P20: Lecture | Independent Study | Individual Assignment | S20: Assignment
C21: CLO4 | I21: √ | P21: Lecture | Group Assignment | | S21: Assignment
C22: (The description must be read together with standards 2.1.2, 2.2.1 and 2.2.2 in Area 2 - pages 16 & 18)
B23: 9 | C23: Transferable skills (if applicable) | G23: 1 | H23: Self-Management and Learning
C24: (Skills learned in the course of study which can be useful and utilised in other settings) | G24: 2 | H24: Communication and Teamwork
G25: 3 | H25: Problem Solving and Information Technology
B26: 10 | C26: Distribution of Students Learning Time (SLT)
C27: Course Content Outline | G27: CLO | I27: Teaching and Learning Activities | T27: SLT
I28: Guided learning (F2F) | Q28: Guided Learning (NF2F) eg: e-learning | S28: Independent learning (NF2F)
I29: L | K29: T | M29: P | O29: O
C30: MALAYSIA LEGAL SYSTEM 1.0 Introduction to Malaysian Legal System 1.1 Definition of Law 1.2 Functions and roles of law 1.3 Types of laws 1.3.1 Civil law 1.3.2 Criminal law 1.3.3 Commercial law 1.3.4 Private international law 1.3.5 Public international law 1.3.6 Landed property law 1.3.7 Intellectual property law 1.3.8 Islamic law 1.4 Laws available during the; 1.4.1 Pre-Merdeka 1.4.2 Post Merdeka | G30: CLO 1 | I30: 2 | K30: 4 | M30: 0 | S30: 2 | T30: =SUM(I30:S30) -> 8
C31: 2.0 Sources of law 2.1 Definition of sources of law 2.2 Definition of written law 2.3 Types and categories of written law 2.3.1 Federal constitution 2.3.2 Statues 2.3.3 By-laws 2.3.4 Ordinance 2.3.5 Enactment 2.3.6 Code | G31: CLO 1 | I31: 2 | K31: 4 | O31: 0 | S31: 2 | T31: =SUM(I31:S31) -> 8 | U31: =C31 -> 2.0 Sources of law 2.1 Definition of sources of law 2.2 Definition of written law 2.3 Types and categories of written law 2.3.1 Federal constitution 2.3.2 Statues 2.3.3 By-laws 2.3.4 Ordinance 2.3.5 Enactment 2.3.6 Code
C32: 3.0 Sources of law 3.1 Definition of unwritten law 3.2 Types and categories of unwritten law 3.2.1 Judicial precedent 3.2.1.1 Hierarchy of the courts and its relevancy in law making 3.2.2 Principle of equity 3.2.3 Common law 3.2.4 Customary law- locals 3.2.4.1 Undang-undang adat perpatih 3.2.4.2 Undang-undang adat temenggung 3.2.4.3 Undang-undang adat kaum-kaum lain | G32: CLO 1 | I32: 4 | K32: 6 | S32: 2 | T32: 12 | U32: =C32 -> 3.0 Sources of law 3.1 Definition of unwritten law 3.2 Types and categories of unwritten law 3.2.1 Judicial precedent 3.2.1.1 Hierarchy of the courts and its relevancy in law making 3.2.2 Principle of equity 3.2.3 Common law 3.2.4 Customary law- locals 3.2.4.1 Undang-undang adat perpatih 3.2.4.2 Undang-undang adat temenggung 3.2.4.3 Undang-undang adat kaum-kaum lain
C33: 4.0 Islamic law in Malaysia 4.1 Special status of Islamic law 4.2 As written and unwritten laws 4.2.1 Quran and sunnah 4.2.2 Act and enactment on Islam / religious affairs 4.3 Application of Islamic law 4.3.1 On Muslims 4.3.2 On non Muslims | G33: CLO 1 | I33: 4 | K33: 6 | S33: 2 | T33: 12 | U33: 4.0 Islamic law in Malaysia 4.1 Special status of Islamic law 4.2 As written and unwritten laws 4.2.1 Quran and sunnah 4.2.2 Act and enactment on Islam / religious affairs 4.3 Application of Islamic law 4.3.1 On Muslims 4.3.2 On non Muslims
C34: CONTRACT LAW 5.0 Contract Law 5.1 Definition of contract and types of contract (commercial, domestic, social) 5.2 Capacity to enter into a contract 5.2.1 Parties 5.2.2 Age 5.3 Basic elements in forming a legal contract 5.3.1 Offer –S. 2(a) of Contract Act 1960 5.3.2 Differences between offer and invitation to treat 5.3.3 Examples 5.3.4 Reasons | G34: CLO 3 | I34: 2 | K34: 4 | S34: 2 | T34: 8 | U34: CONTRACT LAW 5.0 Contract Law 5.1 Definition of contract and types of contract (commercial, domestic, social) 5.2 Capacity to enter into a contract 5.2.1 Parties 5.2.2 Age 5.3 Basic elements in forming a legal contract 5.3.1 Offer –S. 2(a) of Contract Act 1960 5.3.2 Differences between offer and invitation to treat 5.3.3 Examples 5.3.4 Reasons
C35: 6.0 Types of offer and communication of contract – s. 3, s. 4, s. 6 6.1 Lapse of an offer – s. 6, s. 7 6.2 Acceptance- s. 2(b) 6.3 Mode of acceptance and communication of acceptance- s. 2(b), s. 3, s. 4, s. 5 s. 6 and s. 7 6.4 Consideration- s. 2(d) 6.5 Types of consideration- s. 2(d) and s. 26 6.6 Conditions for considerations under s. 2 (d) and s. 26 | G35: CLO 2 | I35: 2 | K35: 4 | S35: 2 | T35: 8 | U35: 6.0 Types of offer and communication of contract – s. 3, s. 4, s. 6 6.1 Lapse of an offer – s. 6, s. 7 6.2 Acceptance- s. 2(b) 6.3 Mode of acceptance and communication of acceptance- s. 2(b), s. 3, s. 4, s. 5 s. 6 and s. 7 6.4 Consideration- s. 2(d) 6.5 Types of consideration- s. 2(d) and s. 26 6.6 Conditions for considerations under s. 2 (d) and s. 26
C36: 7.0 Intention to create a contract 7.1 Negotiation could and could not form an intention 7.2 Terms of contract 7.3 Types of terms 7.4 Oral, written, implied, expressed, conditions and warranty 7.5 Differences, significances and affects on contract | G36: CLO 2 | I36: 2 | K36: 4 | S36: 2 | T36: 8 | U36: 7.0 Intention to create a contract 7.1 Negotiation could and could not form an intention 7.2 Terms of contract 7.3 Types of terms 7.4 Oral, written, implied, expressed, conditions and warranty 7.5 Differences, significances and affects on contract
C37: 8.0 Voidable, void and unenforceable contract 8.1 Reasons- for void contract- s. 2, s. 3, s. 4, s6, s. 7, s. 10, s. 11, s.26, 8.2 Reasons for voidable contract, s. 15, 16,s.17.s.18,s. 19, s. 20, s. 21,s. 22 8.3 Discharge of contract 8.3.1 By fulfilment 8.3.2 By breach of contract 8.3.3 Frustration of contract 8.4 Damages of contract and remedies 8.4.1 Compensation- cash 8.4.2 Injunction 8.4.3 Specific performance | G37: CLO 4 | I37: 2 | K37: 4 | S37: 2 | T37: 8 | U37: 8.0 Voidable, void and unenforceable contract 8.1 Reasons- for void contract- s. 2, s. 3, s. 4, s6, s. 7, s. 10, s. 11, s.26, 8.2 Reasons for voidable contract, s. 15, 16,s.17.s.18,s. 19, s. 20, s. 21,s. 22 8.3 Discharge of contract 8.3.1 By fulfilment 8.3.2 By breach of contract 8.3.3 Frustration of contract 8.4 Damages of contract and remedies 8.4.1 Compensation- cash 8.4.2 Injunction 8.4.3 Specific performance
C38: AGENCY LAW 9.0 Agency Law 9.1 Parties in agency relationship 9.2 Capacity 9.3 Intention and purpose of an agency 9.4 Terms of an agency 9.5 Contract of agency 9.6 Manners / methods in creating an agency 9.7 Types of agency 9.7.1 In emergency 9.7.2 Implied 9.7.3 Expressed 9.7.4 Etc 9.7.5 Examples | G38: CLO 2 | I38: 2 | K38: 4 | S38: 2 | T38: 8 | U38: AGENCY LAW 9.0 Agency Law 9.1 Parties in agency relationship 9.2 Capacity 9.3 Intention and purpose of an agency 9.4 Terms of an agency 9.5 Contract of agency 9.6 Manners / methods in creating an agency 9.7 Types of agency 9.7.1 In emergency 9.7.2 Implied 9.7.3 Expressed 9.7.4 Etc 9.7.5 Examples
C39: 10.0 Rights and obligations of; 10.0.1 Agent 10.0.2 Principal 10.0.2.1 Towards each other 10.0.2.2 Towards third parties 10.1 Limitation of powers and obligations; 10.1.1 of agent 10.1.2 principal 10.1.2.1 towards each other 10.1.2.2 towards third parties | G39: CLO 2 | I39: 2 | K39: 4 | S39: 2 | T39: 8 | U39: 10.0 Rights and obligations of; 10.0.1 Agent 10.0.2 Principal 10.0.2.1 Towards each other 10.0.2.2 Towards third parties 10.1 Limitation of powers and obligations; 10.1.1 of agent 10.1.2 principal 10.1.2.1 towards each other 10.1.2.2 towards third parties
C40: TORT LAW 11.1 Definition of tort 11.2 Scope of law 11.3 Negligence 11.4 Definition of negligent (according to literal meaning) 11.5 Definition of tort according law of tort | G40: CLO 2 | I40: 2 | K40: 4 | S40: 2 | T40: 8 | U40: TORT LAW 11.1 Definition of tort 11.2 Scope of law 11.3 Negligence 11.4 Definition of negligent (according to literal meaning) 11.5 Definition of tort according law of tort
C41: 12.0 Duty of care 12.1 Breach of duty of care 12.2 Damages as a direct result from breach 12.3 Damages in terms of physical or non-physical injuries 12.4 Compensation-types of compensation | G41: CLO 4 | I41: 2 | K41: 3 | S41: 2 | T41: 7 | U41: 12.0 Duty of care 12.1 Breach of duty of care 12.2 Damages as a direct result from breach 12.3 Damages in terms of physical or non-physical injuries 12.4 Compensation-types of compensation
C42: Total | T42: =SUM(T30:T41) -> 103 | U42: Total
C44: Continuous Assessment | L44: Percentage (%) | N44: F2F | Q44: NF2F | T44: SLT
C45: 1 | D45: Assignment 1 | L45: 20 | N45: 2 | Q45: 3 | T45: =SUM(N45:S45) -> 5
C46: 2 | D46: Test 1 | L46: 10 | N46: 1.5 | Q46: 1.5 | T46: =SUM(N46:S46) -> 3 | U46: =D46 -> Test 1
C47: 3 | D47: Test 2 | L47: 10 | N47: 1.5 | Q47: 1.5 | T47: 3 | U47: =D47 -> Test 2
C48: 4 | T48: 0 | U48: 0
C49: 5 | T49: 0 | U49: 0
C50: Total | T50: =SUM(T45:T49) -> 11 | U50: 0
C52: Final Assessment | L52: Percentage (%) | N52: F2F | Q52: NF2F | T52: SLT
C53: 1 | D53: Final Examination | L53: 60 | N53: 3 | Q53: 3 | T53: =SUM(N53:S53) -> 6
C54: 2 | T54: =SUM(N54:S54) -> 0 | U54: =D54 -> 0
C55: 3 | T55: 0 | U55: =D55 -> 0
C56: 4 | T56: 0 | U56: 0
C57: 5 | T57: 0
T58: =SUM(T53:T57) -> 6 | U58: 0
C60: **Please tick (ü) in this course is Latihan Industri / Clinical Placement / Practicum / WBL using 2 weeks; 1 credit formula | T60: =+T42+T50+T58 -> 120
C61: L= Lecture, T=Tutorial, P=Practical, O=Others, F2F=Face to Face, NF2F=None Face to Face
C62: *Indicate the CLO based on the CLO's numbering in item 8
B63: 11 | C63: Identify special requirement to deliver the course (e.g: software, nursery, computer lab, simulation room, etc) | H63: None
U64: =H64 -> 0
B65: 12 | C65: References: | H65: 1. Wan Arfah Hamzah Dan Ramy Bulan. (2009). The Malaysian Legal System. Selangor: Fajar Bakti 2. Wu Min Aun. (1990). The Malaysian Legal System. New York: Pearson Longman. 3. Abdul Aziz Husin. (1990). Pengenalan Kepada Undang-Undang Kontrak. Kuala Lumpur: Dewan Bahasa Dan Pustaka. 4. Beatrix Vohrah and Wu Min Aun. (2000). The Commercial Law Of Malaysia. New York: Longman. 5. Lee Mei Pheng. (2014). Business Law. Selangor: Oxford Fajar Sdn. Bhd. 6. The Board of Valuers, Appraisers, Estate Agents and Property Managers (LPPEH) (2018). Contracts Act 1950 (Act 136), Contracts (Amendment) Act 1976 (Act A329) & Government Contracts Act 1949 (Act 120). Akta Kontrak 1950(Akta 136, Akta Kontrak (Pindaan) Akta 1976 (Akta A329) & Akta Kontrak Kerajaan 1949 (Akta 120). Selangor: International Law Book Services (ILBS). 7. (2001). Akta Kontrak 1950(Akta 136) & Akta Kontrak Kerajaan 1949 (Akta 120). Selangor: International Law Book Services (ILBS). 8. Fenwick, Mark. (2016). Flexibility In Modern Business Law: A Comparative Assessment. UK: Springer.
C66: (include required and further readings, and should be the most current) | U66: =H66 -> 0
B67: 13 | C67: Other additional Information | H67: Last updated : 9st February 2020 | U67: Last updated : 9st February 2020

Sheet DDWF 1212
B2: 1 | C2: Name of Course | D2: Valuation Mathematics | AK2: 1 | AL2: 1
C3: Course Code | D3: DDWF 1212 | AJ3: √ | AK3: 2 | AL3: 2
B4: 2 | C4: Synopsis | D4: This course introduces students to some major views and theories in concepts, practices and applications of mathematics in their daily activities and property valuation process. Student s need to understand the subject, so that they are able to apply the valuation mathematics concepts in the following subjects such as property management and property valuation. The course covers topics such as linear equation, non linear equation, arithmetic and geometric sequences, simple interest, compounded interest, annuity, instalment purchases, valuation mathematic, valuation parry’s table, depreciations etc. | U4: =D4 -> This course introduces students to some major views and theories in concepts, practices and applications of mathematics in their daily activities and property valuation process. Student s need to understand the subject, so that they are able to apply the valuation mathematics concepts in the following subjects such as property management and property valuation. The course covers topics such as linear equation, non linear equation, arithmetic and geometric sequences, simple interest, compounded interest, annuity, instalment purchases, valuation mathematic, valuation parry’s table, depreciations etc. | AK4: 3 | AL4: 3
B5: 3 | C5: Name (s) of Academic Staff | D5: Nik Mat Nasri Nik Ramli | AK5: 4 | AL5: 4
B6: 4 | C6: Semester | D6: Semester | E6: 1 | F6: Year | G6: 1 | AK6: 5
B7: 5 | C7: Credit Value | D7: 2 | AK7: 6
B8: 6 | C8: Pre-requisite / Co-requisite (if any) | AK8: 7
B9: 7 | C9: Course Learning Outcomes (CLO): At the end of the course the students will be able to: | AK9: 8
C10: (example) - explain the basic principles of immunisation (C2, PLO1) | AK10: 9
C11: CLO1 | D11: Identify the concept and formula of mathematics needed in real estate profession. Discuss and apply mathematical formulas to solve the simple problems in valuation.Discuss and apply mathematical formulas to solve the simple problem in valuation(C1,C2,C3). | U11: =D11 -> Identify the concept and formula of mathematics needed in real estate profession. Discuss and apply mathematical formulas to solve the simple problems in valuation.Discuss and apply mathematical formulas to solve the simple problem in valuation(C1,C2,C3). | AK11: 10
C12: CLO2 | D12: Identify and explore mathematical formulas in relation to calculations adopted in real estate(P1,P2,P3,CTPSI). | U12: =D12 -> Identify and explore mathematical formulas in relation to calculations adopted in real estate(P1,P2,P3,CTPSI). | AK12: 11
C13: CLO3 | D13: Develop qualities of an effective team player and reporting information(A1,A2,A3,TS-TS2).
C14: CLO4 | D14: Demonstrate and practice leadership skills and qualities(A1,A2,A3,LS1,LS2,LS3)
B15: 8 | C15: Mapping of the Course Learning Outcomes to the Programme Learning Outcomes, Teaching Methods and Assessment:
C16: Course Learning Outcomes (CLO) | D16: Programme Learning Outcomes (PLO) | P16: Teaching Methods | S16: Assessment
D17: PLO1 | E17: PLO2 | F17: PLO3 | G17: PLO4 | H17: PLO5 | I17: PLO6 | J17: PLO7 | K17: PLO8 | L17: PLO9 | M17: PLO10 | N17: PLO11 | O17: PLO12
C18: CLO1 | D18: √ | P18: Lecture | Discussion | S18: Final | Test | Tutorial | U18: =S18 -> Final | Test | Tutorial
C19: CLO2 | F19: √ | P19: Lecture | Discussion | S19: Final | Test | Tutorial
C20: CLO3 | H20: √ | P20: Group Tutorial | S20: Final | Test | Tutorial
C21: CLO4 | L21: √ | P21: Group Tutorial | S21: Final | Test | Tutorial
C22: (The description must be read together with standards 2.1.2, 2.2.1 and 2.2.2 in Area 2 - pages 16 & 18)
B23: 9 | C23: Transferable skills (if applicable) | G23: 1 | H23: Knowledge
C24: (Skills learned in the course of study which can be useful and utilised in other settings) | G24: 2 | H24: Critical Thinking
G25: 3 | H25: Teamworking
G26: 4 | H26: Leadership
B27: 10 | C27: Distribution of Students Learning Time (SLT)
C28: Course Content Outline | G28: CLO | I28: Teaching and Learning Activities | T28: SLT
I29: Guided learning (F2F) | Q29: Guided Learning (NF2F) eg: e-learning | S29: Independent learning (NF2F)
I30: L | K30: T | M30: P | O30: O
C31: 1.0 INTRODUCTION FOR VALUATION MATHEMATIC 1.1 Environment property industry 1.2 Concept of price, value and cost. 1.3 Important valuation’s mathematic for property management and property valuation. | G31: CLO1 | I31: 2 | K31: 1 | M31: 0 | S31: 1 | T31: =SUM(I31:S31) -> 4
C32: 2.0 LINEAR EQUATION AND NONLINEAR EQUATION 2.1 Introduction 2.2 Equation 2.3 Solution of linear equation in one variable 2.4 Linear equation and non linear equation 2.5 Quadratic equation 2.6 Systems of equations 2.7 Using these equations in property valuation and property management | G32: CLO 1 | I32: 4 | K32: 2 | O32: 0 | S32: 2 | T32: =SUM(I32:S32) -> 8 | U32: =C32 -> 2.0 LINEAR EQUATION AND NONLINEAR EQUATION 2.1 Introduction 2.2 Equation 2.3 Solution of linear equation in one variable 2.4 Linear equation and non linear equation 2.5 Quadratic equation 2.6 Systems of equations 2.7 Using these equations in property valuation and property management
C33: 3.0 SQUENCE: Arithmetic sequence 3.1 Introduction 3.2 Arithmetic sequence 3.3 Using these sequences in property valuation and property management. | G33: CLO1 | I33: 2 | K33: 1 | S33: 2 | T33: 5 | U33: =C33 -> 3.0 SQUENCE: Arithmetic sequence 3.1 Introduction 3.2 Arithmetic sequence 3.3 Using these sequences in property valuation and property management.
C34: 4.0 SQUENCE: Geometric sequence 4.1 Introduction 4.2 Geometric sequence 4.3 Using these sequences in property valuation and property management. | G34: CLO 1 | I34: 2 | K34: 1 | S34: 2 | T34: 5 | U34: 4.0 SQUENCE: Geometric sequence 4.1 Introduction 4.2 Geometric sequence 4.3 Using these sequences in property valuation and property management.
C35: 5.0 SIMPLE INTEREST 5.1 Introduction 5.2 Interest 5.3 Simple interest formula 5.4 Simple amount formula 5.5 Four basic concept 5.6 Present value 5.7 Equation of value | G35: CLO2 | I35: 2 | K35: 1 | S35: 2 | T35: 5 | U35: 5.0 SIMPLE INTEREST 5.1 Introduction 5.2 Interest 5.3 Simple interest formula 5.4 Simple amount formula 5.5 Four basic concept 5.6 Present value 5.7 Equation of value
C36: 6.0 COMPOUND INTEREST 6.1 Introduction 6.2 Compound interest formula 6.3 Effective, nominal and equivalent rate 6.4 Relationship between effective and nominal rates 6.5 Relationship between two nominal rates 6.6 Present value 6.7 Equation of value | G36: CLO2 | I36: 2 | K36: 1 | S36: 2 | T36: 5 | U36: 6.0 COMPOUND INTEREST 6.1 Introduction 6.2 Compound interest formula 6.3 Effective, nominal and equivalent rate 6.4 Relationship between effective and nominal rates 6.5 Relationship between two nominal rates 6.6 Present value 6.7 Equation of value
C37: 7.0 ANNUITY 7.1 Introduction 7.2 Future value 7.3 Present value 7.4 Amortisation 7.5 Amortisation schedule 7.6 Sinking fund | G37: CLO3 | I37: 2 | K37: 1 | S37: 2 | T37: 5 | U37: 7.0 ANNUITY 7.1 Introduction 7.2 Future value 7.3 Present value 7.4 Amortisation 7.5 Amortisation schedule 7.6 Sinking fund
C38: 8.0 VALUATION MATHEMATIC 8.1 Introduction 8.2 Amount $1 8.3 Amount $1 per annum 8.4 Present Value of $1 8.5 Present Value of $1 per annum 8.6 Annual Sinking Fund 8.7 Year Purchases Single Rate 8.8 Year Purchase Dual Rate 8.9 Valuation Parry’s Table | G38: CLO2 | I38: 4 | K38: 2 | S38: 2 | T38: 8 | U38: 8.0 VALUATION MATHEMATIC 8.1 Introduction 8.2 Amount $1 8.3 Amount $1 per annum 8.4 Present Value of $1 8.5 Present Value of $1 per annum 8.6 Annual Sinking Fund 8.7 Year Purchases Single Rate 8.8 Year Purchase Dual Rate 8.9 Valuation Parry’s Table
C39: 9.0 INSTALMENT PURCHASES 9.1 Introduction 9.2 Interest charge based on original balance 9.3 Interest charge based on reducing balance 9.4 Unequal instalment payments and repayment schedules. | G39: CLO3 | I39: 4 | K39: 2 | S39: 2 | T39: =SUM(I39:S39) -> 8 | U39: =C40 -> 10.0 DEPRECIATION 10.1 Introduction 10.2 Depreciation 10.3 Terms related to depreciation 10.4 Straight line method 10.5 Declining balance method 10.6 Sum of year digits method
C40: 10.0 DEPRECIATION 10.1 Introduction 10.2 Depreciation 10.3 Terms related to depreciation 10.4 Straight line method 10.5 Declining balance method 10.6 Sum of year digits method | G40: CLO4 | I40: 4 | K40: 2 | S40: 2 | T40: =SUM(I40:S40) -> 8 | U40: =C41 -> Total
C41: Total | T41: =SUM(T31:T40) -> 61
C43: Continuous Assessment | L43: Percentage (%) | N43: F2F | Q43: NF2F | T43: SLT | U43: =D45 -> Tutorial
C44: 1 | D44: Assignment | L44: 5 | Q44: 3 | T44: =SUM(N44:S44) -> 3 | U44: =D46 -> Test 1
C45: 2 | D45: Tutorial | L45: 5 | Q45: 3 | T45: =SUM(N45:S45) -> 3 | U45: Test 2
C46: 3 | D46: Test 1 | L46: 10 | N46: 1 | Q46: 2 | T46: 3 | U46: quiz
C47: 4 | D47: Test 2 | L47: 10 | N47: 1 | Q47: 2 | T47: 3 | U47: 0
C48: 5 | D48: quiz | L48: 10 | N48: 1 | T48: 1
C49: Total | T49: =SUM(T44:T48) -> 13
C51: Final Assessment | L51: Percentage (%) | N51: F2F | Q51: NF2F | T51: SLT | U51: =D53 -> 0
C52: 1 | D52: Final Examination | L52: 60 | N52: 2 | Q52: 4 | T52: =SUM(N52:S52) -> 6 | U52: =D54 -> 0
C53: 2 | T53: =SUM(N53:S53) -> 0 | U53: 0
C54: 3 | T54: 0
C55: 4 | T55: 0 | U55: 0
C56: 5 | T56: 0
T57: =SUM(T52:T56) -> 6
C59: **Please tick (ü) in this course is Latihan Industri / Clinical Placement / Practicum / WBL using 2 weeks; 1 credit formula | T59: =+T41+T49+T57 -> 80
B60: 11 | C60: L= Lecture, T=Tutorial, P=Practical, O=Others, F2F=Face to Face, NF2F=None Face to Face
C61: *Indicate the CLO based on the CLO's numbering in item 8 | U61: =H63 -> 0
B62: 12 | C62: Identify special requirement to deliver the course (e.g: software, nursery, computer lab, simulation room, etc) | H62: None
U63: =H65 -> 0
B64: 13 | C64: References: | H64: 1. Robert A. Brechner (2015). Contemporary Mathematics for Business and Consumers. USA: Cengage. 2. Lau Too Kya, Phang Yook Ngor and Wee Kok Kiang (2012). Business Mathematics for UITM. Kuala Lumpur: Oxford Fajar Sdn. Bhd. 3. Lau Too Kya, Phang Yook Ngor and Wee Kok Kiang (2015). Business Mathematics for UITM. Kuala Lumpur: Oxford Fajar Sdn. Bhd. 4. Davidson, Alick W. (2013). Parry’s Valuation & Investment Tables. 13th Ed. New York: Routledge | U64: =H66 -> Last Update 9th February 2020
C65: (include required and further readings, and should be the most current)
C66: Other additional Information | H66: Last Update 9th February 2020

Sheet ULAB 1042
B2: 1 | C2: Name of Course | D2: Intermediate Academic English | AK2: 1 | AL2: 1
C3: Course Code | D3: ULAB 1042 | AJ3: √ | AK3: 2 | AL3: 2
B4: 2 | C4: Synopsis | D4: This course reinforces and enhances the development of students' receptive and productive skills relevant to academic contexts. The skills are integrated in various task-based activities. These include reading academic texts critically for specific information, listening for main ideas and specific information, writing an argumentative essay and a short report based on non-linear texts and participating in group discussions. At the of the course, students should be able to incorporate relevant skills learned to perform tasks in academic contexts. | U4: =D4 -> This course reinforces and enhances the development of students' receptive and productive skills relevant to academic contexts. The skills are integrated in various task-based activities. These include reading academic texts critically for specific information, listening for main ideas and specific information, writing an argumentative essay and a short report based on non-linear texts and participating in group discussions. At the of the course, students should be able to incorporate relevant skills learned to perform tasks in academic contexts. | AK4: 3 | AL4: 3
B5: 3 | C5: Name (s) of Academic Staff | D5: Sharmin Alam | AK5: 4 | AL5: 4
B6: 4 | C6: Semester | D6: Semester | E6: 2 | F6: Year | G6: 1 | AK6: 5
B7: 5 | C7: Credit Value | D7: =IF(T57=40,1,(IF(T57=80,2,(IF(T57=120,3,(IF(T57=160,4,IF(T57=200,5,IF(T57=240,6,""))))))))) -> 2 | AK7: 6
B8: 6 | C8: Pre-requisite / Co-requisite (if any) | D8: ULAB 1032 (Introductory Academic English) | AK8: 7
B9: 7 | C9: Course Learning Outcomes (CLO): At the end of the course the students will be able to: | AK9: 8
C10: (example) - explain the basic principles of immunisation (C2, PLO1) | AK10: 9
C11: CLO1 | D11: Read critically and extract information from academic texts. (C3, CS1) | U11: =D11 -> Read critically and extract information from academic texts. (C3, CS1) | AK11: 10
C12: CLO2 | D12: Interpret data in non-linear texts and write a short report. (C5, CS1) | U12: =D12 -> Interpret data in non-linear texts and write a short report. (C5, CS1) | AK12: 11
C13: CLO3 | D13: Listen and extract relevant information from a variety of texts. (C2, CS2)
C14: CLO4 | D14: Compose a clear, organised and coherent argumentative essay. (C5, CS1)
C15: CLO5 | D15: Engage in group discussions. (C3,CS5) | AK15: 12
B16: 8 | C16: Mapping of the Course Learning Outcomes to the Programme Learning Outcomes, Teaching Methods and Assessment:
C17: Course Learning Outcomes (CLO) | D17: Programme Learning Outcomes (PLO) | P17: Teaching Methods | S17: Assessment
D18: PLO1 | E18: PLO2 | F18: PLO3 | G18: PLO4 | H18: PLO5 | I18: PLO6 | J18: PLO7 | K18: PLO8 | L18: PLO9 | M18: PLO10 | N18: PLO11 | O18: PLO12
C19: CLO1 | D19: √ | P19: Lecture | Discussion | S19: Final Examination | U19: =S19 -> Final Examination
C20: CLO2 | E20: √ | P20: Practice Exercises | S20: Final Examination | V20: |
C21: CLO3 | F21: √ | P21: Practice Exercises | S21: Listening Test
C22: CLO4 | G22: √ | P22: Practice Exercises | S22: Writing Assignment
C23: CLO5 | H23: √ | P23: Discussion | Presentation | S23: Group Discussion
C24: (The description must be read together with standards 2.1.2, 2.2.1 and 2.2.2 in Area 2 - pages 16 & 18)
B25: 9 | C25: Transferable skills (if applicable) | G25: 1 | H25: Self-Management and Learning
C26: (Skills learned in the course of study which can be useful and utilised in other settings) | G26: 2 | H26: Communication and Teamwork
G27: 3 | H27: Problem Solving and Information Technology
B28: 10 | C28: Distribution of Students Learning Time (SLT)
C29: Course Content Outline | G29: CLO | I29: Teaching and Learning Activities | T29: SLT
I30: Guided learning (F2F) | Q30: Guided Learning (NF2F) eg: e-learning | S30: Independent learning (NF2F)
I31: L | K31: T | M31: P | O31: O
C32: 1.0 Introduction to course 1.1 Reading skills (argumentative texts) 1.11 textual structures 1.12 Language expressions 1.2 Listening main ideas and supporting ideas, notes relevant information, recall information and rephrase key points 1.3 Writing (argumentative essay) -features,structures and sample | G32: CLO1 | H32: CLO3 | I32: 5 | M32: 4 | S32: 4 | T32: =SUM(I32:S32) -> 13
C33: 2.0 Reading skills- recognise organizational structures, identify aims,purpose and perspective,identify stance of authors 2.1 Writing-find suitable topics, stand by agreeing or disagreeing,justify opinion and prepare outline | G33: CLO1 | H33: CLO4 | I33: 5 | M33: 4 | O33: 0 | S33: 4 | T33: =SUM(I33:S33) -> 13 | U33: =C33 -> 2.0 Reading skills- recognise organizational structures, identify aims,purpose and perspective,identify stance of authors 2.1 Writing-find suitable topics, stand by agreeing or disagreeing,justify opinion and prepare outline
C34: 3.0 writing- brainstorming,generating and organising ideas 3.1 Structuring introduction, body, conclusion 3.2 Speaking- opinions,express agree or disagree and relevant justification 3.3 Reading skills texts with visuals | G34: CLO1 | H34: CLO4 | I34: 5 | M34: 4 | S34: 4 | T34: 13 | U34: 3.0 writing- brainstorming,generating and organising ideas 3.1 Structuring introduction, body, conclusion 3.2 Speaking- opinions,express agree or disagree and relevant justification 3.3 Reading skills texts with visuals
C35: 4.0 Write report based on Non-linear texts 4.1 interpret information presented 4.2 Write an introducory paragraph, analysis data, and writing a conclusion | G35: CLO 2 | I35: 5 | M35: 4 | S35: 4 | T35: 13 | U35: 4.0 Write report based on Non-linear texts 4.1 interpret information presented 4.2 Write an introducory paragraph, analysis data, and writing a conclusion
C36: 4.0 Speaking-group discussion 4.1 Fulfilling tasks in discussion 4.2Interrupt a discussion and acknowledge someone in discussion 4.3Asking for clarification | G36: CLO 3 | I36: 5 | M36: 3 | S36: 3 | T36: 11 | U36: 4.0 Speaking-group discussion 4.1 Fulfilling tasks in discussion 4.2Interrupt a discussion and acknowledge someone in discussion 4.3Asking for clarification
C37: 6.0 Speaking-group discussion 6.1 summaries and bulid on what other speaker say 6.2 manage a group discussion | G37: CLO5 | I37: 5 | M37: 3 | S37: 3 | T37: 11 | U37: 6.0 Speaking-group discussion 6.1 summaries and bulid on what other speaker say 6.2 manage a group discussion
U38: 0
C39: Total | T39: =SUM(T32:T38) -> 74 | U39: Total
C41: Continuous Assessment | L41: Percentage (%) | N41: F2F | Q41: NF2F | T41: SLT
C42: 1 | D42: Listening Test | L42: 10 | Q42: 1 | T42: =SUM(N42:S42) -> 1
C43: 2 | D43: Writing Assigment (outline/essay | L43: 15 | Q43: 1 | T43: =SUM(N43:S43) -> 1 | U43: =D43 -> Writing Assigment (outline/essay
C44: 3 | D44: Discussion | L44: 15 | N44: 1 | Q44: 1 | T44: 2 | U44: =D44 -> Discussion
C45: 4 | U45: =D45 -> 0
C46: 5 | T46: 0 | U46: =D46 -> 0
C47: Total | T47: =SUM(T42:T46) -> 4 | U47: =D47 -> 0
C49: Final Assessment | L49: Percentage (%) | N49: F2F | Q49: NF2F | T49: SLT
C50: 1 | D50: Final Examination | L50: 60 | N50: 1 | Q50: 1 | T50: =SUM(N50:S50) -> 2
C51: 2 | T51: =SUM(N51:S51) -> 0 | U51: =D51 -> 0
C52: 3 | T52: 0 | U52: =D52 -> 0
C53: 4 | T53: 0 | U53: =D53 -> 0
C54: 5 | T54: 0
T55: =SUM(T50:T54) -> 2 | U55: =D55 -> 0
C57: **Please tick (ü) in this course is Latihan Industri / Clinical Placement / Practicum / WBL using 2 weeks; 1 credit formula | T57: =+T39+T47+T55 -> 80
C58: L= Lecture, T=Tutorial, P=Practical, O=Others, F2F=Face to Face, NF2F=None Face to Face
C59: *Indicate the CLO based on the CLO's numbering in item 8
B60: 11 | C60: Identify special requirement to deliver the course (e.g: software, nursery, computer lab, simulation room, etc) | H60: None
U61: =H61 -> 0
B62: 12 | C62: References: | H62: Ward, Colin S. & gramer, margot F. (2015). Q: Skills for Success Reading and writing , NY, USA: Oxford University Press.
C63: (include required and further readings, and should be the most current) | H63: Wegmann, B. & Knezevic. M. (2014). Mosaic Reading 1, 6 th ed. NY, USA: McGraw Hill Education. Supplementary Materials, ULAB 1042 Committee Members, Language Academy Kuala Lumpur. | U63: =H63 -> Wegmann, B. & Knezevic. M. (2014). Mosaic Reading 1, 6 th ed. NY, USA: McGraw Hill Education. Supplementary Materials, ULAB 1042 Committee Members, Language Academy Kuala Lumpur.
B64: 13 | C64: Other additional Information | H64: Last updated : 25th March 2018 | U64: =H64 -> Last updated : 25th March 2018

Sheet UHAS 1172
B2: 1 | C2: Name of Course | D2: Dinamika Malaysia | AK2: 1 | AL2: 1
C3: Course Code | D3: UHAS 1172 | AJ3: √ | AK3: 2 | AL3: 2
B4: 2 | C4: Synopsis | D4: Kursus ini membincangkan tentang masyarakat, budaya dan konsep-konsep asas sosiologi dalam hubungan etnik. Kursus ini juga menjelaskan tentang perkembangan dan pembentukan masyarakat di Malaysia. Tumpuan perbincangan adalah tentang isu-isu dan cabaran yang dihadapi oleh masyarakat pelbagai etnik di Malaysia dalam usaha melahirkan masyarakat yang bersatu padu. | U4: =D4 -> Kursus ini membincangkan tentang masyarakat, budaya dan konsep-konsep asas sosiologi dalam hubungan etnik. Kursus ini juga menjelaskan tentang perkembangan dan pembentukan masyarakat di Malaysia. Tumpuan perbincangan adalah tentang isu-isu dan cabaran yang dihadapi oleh masyarakat pelbagai etnik di Malaysia dalam usaha melahirkan masyarakat yang bersatu padu. | AK4: 3 | AL4: 3
B5: 3 | C5: Name (s) of Academic Staff | D5: Azlina Binti Othman | AK5: 4 | AL5: 4
B6: 4 | C6: Semester | D6: Semester | E6: 2 | F6: Year | G6: 1 | AK6: 5
B7: 5 | C7: Credit Value | D7: =IF(T58=40,1,(IF(T58=80,2,(IF(T58=120,3,(IF(T58=160,4,IF(T58=200,5,IF(T58=240,6,""))))))))) -> 2 | AK7: 6
B8: 6 | C8: Pre-requisite / Co-requisite (if any) | AK8: 7
B9: 7 | C9: Course Learning Outcomes (CLO): At the end of the course the students will be able to: | AK9: 8
C10: (example) - explain the basic principles of immunisation (C2, PLO1) | AK10: 9
C11: CLO1 | D11: Menghuraikan konsep-konsep yang berkaitan dengan hubungan etnik di Malaysia dan sejarah perkembangan dan pembentukan masyarakat Malaysia. (PLO1, C4) | U11: =D11 -> Menghuraikan konsep-konsep yang berkaitan dengan hubungan etnik di Malaysia dan sejarah perkembangan dan pembentukan masyarakat Malaysia. (PLO1, C4) | AK11: 10
C12: CLO2 | D12: Mampu bekerjasama dan menghargai kepelbagaian budaya masyarakat Malaysia. (PLO5, PLO6, A3) | U12: =D12 -> Mampu bekerjasama dan menghargai kepelbagaian budaya masyarakat Malaysia. (PLO5, PLO6, A3) | AK12: 11
C13: CLO3 | D13: Mampu menghormati perbezaan nilai dalam budaya pelbagi etnik. (PLO1, PLO6, C4, A3)
AK14: 12
B15: 8 | C15: Mapping of the Course Learning Outcomes to the Programme Learning Outcomes, Teaching Methods and Assessment:
C16: Course Learning Outcomes (CLO) | D16: Programme Learning Outcomes (PLO) | P16: Teaching Methods | S16: Assessment
D17: PLO1 | E17: PLO2 | F17: PLO3 | G17: PLO4 | H17: PLO5 | I17: PLO6 | J17: PLO7 | K17: PLO8 | L17: PLO9 | M17: PLO10 | N17: PLO11 | O17: PLO12
C18: CLO1 | D18: √ | P18: Lecture | Discussion | S18: Assignment | Test | Final Examination | U18: =S18 -> Assignment | Test | Final Examination
C19: CLO2 | H19: √ | I19: √ | P19: Lecture | Activities | S19: Assignment
C20: CLO3 | D20: √ | I20: √ | P20: Lecture | Activities | Presentation | S20: Project | Final Examination
C22: (The description must be read together with standards 2.1.2, 2.2.1 and 2.2.2 in Area 2 - pages 16 & 18)
B23: 9 | C23: Transferable skills (if applicable) | G23: 1 | H23: Self-Management and Learning
C24: (Skills learned in the course of study which can be useful and utilised in other settings) | G24: 2 | H24: Communication and Teamwork
G25: 3 | H25: Problem Solving and Information Technology
B26: 10 | C26: Distribution of Students Learning Time (SLT)
C27: Course Content Outline | G27: CLO | I27: Teaching and Learning Activities | T27: SLT
I28: Guided learning (F2F) | Q28: Guided Learning (NF2F) eg: e-learning | S28: Independent learning (NF2F)
I29: L | K29: T | M29: P | O29: O
C30: 1.0 Malaysia; Kesepaduan dalam Kepelbagaian 1.1 Sebuah Negara, Dua imaginasi sosiologikal: Antara ‘Perpaduan’ dan ‘Kesepaduan’ 1.2 Hubungan etnik di Malaysia 1.3 Masyarakt pelbagai etnik di Malaysia 1.4 Kesepaduan sosial; Pandangan alternatif untuk memahami hubungan etnik di Malaysia 1.5 Kesepaduan sosial melalui akomodasi, akulturasi, amalgamasi dan asimilasiPengenalan Masyarakat Malaysia | G30: CLO 1 | I30: 2 | S30: 2 | T30: =SUM(I30:S30) -> 4
C31: 2.0 Potret Hubungan Etnik. 2.1 Kesultanan Melayu Melaka – Lambang pertemuan masyarakat pelbagai etnik 2.2 Pembentukan masyarakat majmuk era kolonialisme British 2.3 Fokus hubungan etnik 2.4 Kerangka teori & konseptual 2.5 Meneliti konsep ras dan etnik di Malaysia 2.6 Budaya 2.7 Konsep prejudis, stereotaip dan diskriminasi 2.8 Kerangka teoretis konsep-konsep tahap hubungan etnik | G31: CLO 1 | I31: 2 | O31: 0 | S31: 2 | T31: =SUM(I31:S31) -> 4 | U31: =C31 -> 2.0 Potret Hubungan Etnik. 2.1 Kesultanan Melayu Melaka – Lambang pertemuan masyarakat pelbagai etnik 2.2 Pembentukan masyarakat majmuk era kolonialisme British 2.3 Fokus hubungan etnik 2.4 Kerangka teori & konseptual 2.5 Meneliti konsep ras dan etnik di Malaysia 2.6 Budaya 2.7 Konsep prejudis, stereotaip dan diskriminasi 2.8 Kerangka teoretis konsep-konsep tahap hubungan etnik
C32: 3.0 Limpahan Kemakmuran Merentasi Hubungan Etnik. 3.1 Isu sosioekonomi pada awal kemerdekaan 3.2 Ekonomi menjadi isu etnik 3.3 Dasar Ekonomi Baru (DEB) 3.4 Kejayaan ekonomi Malaysia | G32: CLO 3 | I32: 2 | S32: 5 | T32: 7 | U32: =C32 -> 3.0 Limpahan Kemakmuran Merentasi Hubungan Etnik. 3.1 Isu sosioekonomi pada awal kemerdekaan 3.2 Ekonomi menjadi isu etnik 3.3 Dasar Ekonomi Baru (DEB) 3.4 Kejayaan ekonomi Malaysia
C33: 4.0 Perlembagaan Persekutuan: Tiang Seri Hubungan Etnik 4.1 Definisi dan konsep perlembagaan 4.2 Sejarah penggubalan perlembagaan persekutuan 4.3 Malayan Union 1946 4.4 Persekutuan Tanah Melayu 1948 4.5 Kerjasama antara etnik dalam menuju kemerdekaan 4.6 Suruhanjaya Reid 4.7 Jawatankuasa kerja dan pengisytiharan perlembagaan 4.8 Unsur-unsur tradisi dalam perlembagaan persekutuan 4.9 Kesultanan dan pemerintahan beraja 4.10 Isu-isu Islam dan orang Melayu dalam perlembagaan | G33: CLO 2 | I33: 2 | S33: 5 | T33: 7 | U33: 4.0 Perlembagaan Persekutuan: Tiang Seri Hubungan Etnik 4.1 Definisi dan konsep perlembagaan 4.2 Sejarah penggubalan perlembagaan persekutuan 4.3 Malayan Union 1946 4.4 Persekutuan Tanah Melayu 1948 4.5 Kerjasama antara etnik dalam menuju kemerdekaan 4.6 Suruhanjaya Reid 4.7 Jawatankuasa kerja dan pengisytiharan perlembagaan 4.8 Unsur-unsur tradisi dalam perlembagaan persekutuan 4.9 Kesultanan dan pemerintahan beraja 4.10 Isu-isu Islam dan orang Melayu dalam perlembagaan
C34: 5.0 Pemuafakan Politik dalam Konteks Hubungan Etnik di Malaysia 5.1 Pembangunan politik 5.2 Pemupukan hubungan etnik secara formal dalam politik 5.3 Demografi dan politik 5.4 Pakatan politik di Sabah dan Sarawak 5.5 Tsunami politik: Politik perkauman semakin mengendur 5.6 Perubahan trend dan corak pengundian | G34: CLO 3 | I34: 2 | S34: 4 | T34: 6 | U34: 5.0 Pemuafakan Politik dalam Konteks Hubungan Etnik di Malaysia 5.1 Pembangunan politik 5.2 Pemupukan hubungan etnik secara formal dalam politik 5.3 Demografi dan politik 5.4 Pakatan politik di Sabah dan Sarawak 5.5 Tsunami politik: Politik perkauman semakin mengendur 5.6 Perubahan trend dan corak pengundian
C35: 6.0 Kepelbagaian Agama: Mencari Titik Pertemuan 6.1 Takrif agama 6.2 Mengapakah manusia beragama 6.3 Peranan agama 6.4 Penggolongan agama 6.5 Agama-agama di Malaysia 6.6 Konflik agama 6.7 Mencari titik temu | G35: CLO 3 | I35: 4 | S35: 3 | T35: 7 | U35: 6.0 Kepelbagaian Agama: Mencari Titik Pertemuan 6.1 Takrif agama 6.2 Mengapakah manusia beragama 6.3 Peranan agama 6.4 Penggolongan agama 6.5 Agama-agama di Malaysia 6.6 Konflik agama 6.7 Mencari titik temu
C36: 7.0 Dari Segregasi ke Integrasi 7.1 Dari pengasingan ke penyatuan 7.2 Cabaran dalam masyarakat memupuk integrasi di Malaysia 7.3 Peranan kerajaan 7.4 Peranan masyarakat dalam konteks hubungan etnik 7.5 Peranan NGO dalam konteks hubungan etnik | G36: CLO 2 | I36: 4 | S36: 3 | T36: 7 | U36: 7.0 Dari Segregasi ke Integrasi 7.1 Dari pengasingan ke penyatuan 7.2 Cabaran dalam masyarakat memupuk integrasi di Malaysia 7.3 Peranan kerajaan 7.4 Peranan masyarakat dalam konteks hubungan etnik 7.5 Peranan NGO dalam konteks hubungan etnik
C37: 8.0 Pemerkasaan Pendidikan ke Arah Kesepaduan Sosial 8.1 Sejarah pendidikan di Malaysia dan hubungan etnik 8.2 Latar belakang pendidikan komuniti etnik di Tanah Melayu 8.3 Sekolah vernakular Inggeris 8.4 Sekolah kebangsaan dan sekolah vernakular 8.5 Cabaran dalam pendidikan dan bahasa | G37: CLO 3 | I37: 4 | S37: 3 | T37: 7 | U37: 8.0 Pemerkasaan Pendidikan ke Arah Kesepaduan Sosial 8.1 Sejarah pendidikan di Malaysia dan hubungan etnik 8.2 Latar belakang pendidikan komuniti etnik di Tanah Melayu 8.3 Sekolah vernakular Inggeris 8.4 Sekolah kebangsaan dan sekolah vernakular 8.5 Cabaran dalam pendidikan dan bahasa
C38: 9.0 Pengalaman Harian: Menjalin Kesepaduan dan Melahirkan Keharmonian. 9.1 Kepelbagaian makanan etnik pemangkin perpaduan 9.2 Makanan dan ruang sosial dalam konteks hubungan etnik 9.3 Kesepaduan pelbagai etnik dan kesepaduan sosial 9.4 Media dan kesepaduan sosial | G38: CLO 2 | I38: 4 | S38: 3 | T38: 7 | U38: 9.0 Pengalaman Harian: Menjalin Kesepaduan dan Melahirkan Keharmonian. 9.1 Kepelbagaian makanan etnik pemangkin perpaduan 9.2 Makanan dan ruang sosial dalam konteks hubungan etnik 9.3 Kesepaduan pelbagai etnik dan kesepaduan sosial 9.4 Media dan kesepaduan sosial
C39: 10.0 Rumusan | G39: CLO 3 | I39: 2 | S39: 2 | T39: 4 | U39: 10.0 Rumusan
C40: Total | T40: =SUM(T30:T39) -> 60 | U40: Total
C42: Continuous Assessment | L42: Percentage (%) | N42: F2F | Q42: NF2F | T42: SLT
C43: 1 | D43: Assignment 1 | L43: 10 | Q43: 3 | T43: =SUM(N43:S43) -> 3
C44: 2 | D44: Assignment 2 | L44: 10 | Q44: 3 | T44: =SUM(N44:S44) -> 3 | U44: =D44 -> Assignment 2
C45: 3 | D45: Test 1 | L45: 10 | N45: 1.5 | Q45: 2 | T45: 3.5 | U45: =D45 -> Test 1
C46: 4 | D46: Test 2 | L46: 10 | N46: 1.5 | Q46: 2 | T46: 3.5 | U46: Test 2
C47: 5 | T47: 0 | U47: 0
C48: Total | T48: =SUM(T43:T47) -> 13 | U48: 0
C50: Final Assessment | L50: Percentage (%) | N50: F2F | Q50: NF2F | T50: SLT
C51: 1 | D51: Final Examination | L51: 60 | N51: 2.5 | Q51: 4.5 | T51: =SUM(N51:S51) -> 7
C52: 2 | T52: =SUM(N52:S52) -> 0 | U52: =D52 -> 0
C53: 3 | T53: 0 | U53: =D53 -> 0
C54: 4 | T54: 0 | U54: 0
C55: 5 | T55: 0
T56: =SUM(T51:T55) -> 7 | U56: 0
C58: **Please tick (ü) in this course is Latihan Industri / Clinical Placement / Practicum / WBL using 2 weeks; 1 credit formula | T58: =+T40+T48+T56 -> 80
C59: L= Lecture, T=Tutorial, P=Practical, O=Others, F2F=Face to Face, NF2F=None Face to Face
C60: *Indicate the CLO based on the CLO's numbering in item 8
B61: 11 | C61: Identify special requirement to deliver the course (e.g: software, nursery, computer lab, simulation room, etc) | H61: None
U62: =H62 -> 0
B63: 12 | C63: References: | H63: 1. Mardiana Nordin & Hanah Hussin. (2011).Pengajian Malaysia. Selangor. Oxford Fajar.
C64: (include required and further readings, and should be the most current) | U64: =H64 -> 0
B65: 13 | C65: Other additional Information | H65: Last updated : 9st February 2020 | U65: Last updated : 9st February 2020

Sheet DDWF 1523
B2: 1 | C2: Name of Course | D2: Building Services | AK2: 1 | AL2: 1
C3: Course Code | D3: DDWF 1523 | AJ3: √ | AK3: 2 | AL3: 2
B4: 2 | C4: Synopsis | D4: This course introduces students to some major views and theories in environment of building services in Malaysia based on the Uniform Building Act 1984. It will emphasize on the general concepts of introduction to the building services, the water supply system, electricity supply system, drainage system, air system etc. At the end of this courses, students should be able to appreciate the building services environment in Malaysia, increase their awareness on the roles of building development based on Uniform Building Act 1984, comprehend the concepts and practical aspects of building services. Besides that, students should also be able to work in a team. | U4: =D4 -> This course introduces students to some major views and theories in environment of building services in Malaysia based on the Uniform Building Act 1984. It will emphasize on the general concepts of introduction to the building services, the water supply system, electricity supply system, drainage system, air system etc. At the end of this courses, students should be able to appreciate the building services environment in Malaysia, increase their awareness on the roles of building development based on Uniform Building Act 1984, comprehend the concepts and practical aspects of building services. Besides that, students should also be able to work in a team. | AK4: 3 | AL4: 3
B5: 3 | C5: Name (s) of Academic Staff | D5: Nasibah Az-zahra binti Rusli | AK5: 4 | AL5: 4
B6: 4 | C6: Semester | D6: Semester | E6: 2 | F6: Year | G6: 1 | AK6: 5
B7: 5 | C7: Credit Value | D7: =IF(T56=40,1,(IF(T56=80,2,(IF(T56=120,3,(IF(T56=160,4,IF(T56=200,5,IF(T56=240,6,""))))))))) -> 3 | AK7: 6
B8: 6 | C8: Pre-requisite / Co-requisite (if any) | AK8: 7
B9: 7 | C9: Course Learning Outcomes (CLO): At the end of the course the students will be able to: | AK9: 8
C10: (example) - explain the basic principles of immunisation (C2, PLO1) | AK10: 9
C11: CLO1 | D11: Define, describe and apply several types ofbuilding services and various rules, regulations and associated by-laws. (PLO1, C3) | U11: =D11 -> Define, describe and apply several types ofbuilding services and various rules, regulations and associated by-laws. (PLO1, C3) | AK11: 10
C12: CLO2 | D12: Identify and explore problems in relation to practices of building services. (PLO3, P3, CTPS1) | U12: =D12 -> Identify and explore problems in relation to practices of building services. (PLO3, P3, CTPS1) | AK12: 11
C13: CLO3 | D13: Express ideas clearly and effectively as well as demonstrate understanding. (PLO4, P3, SC1-CS3)
C14: CLO4 | AK14: 12
B15: 8 | C15: Mapping of the Course Learning Outcomes to the Programme Learning Outcomes, Teaching Methods and Assessment:
C16: Course Learning Outcomes (CLO) | D16: Programme Learning Outcomes (PLO) | P16: Teaching Methods | S16: Assessment
D17: PLO1 | E17: PLO2 | F17: PLO3 | G17: PLO4 | H17: PLO5 | I17: PLO6 | J17: PLO7 | K17: PLO8 | L17: PLO9 | M17: PLO10 | N17: PLO11 | O17: PLO12
C18: CLO1 | D18: √ | P18: Lecture | Discussion | S18: Test | Final Examination | U18: =S18 -> Test | Final Examination
C19: CLO2 | F19: √ | P19: Lecture | Discussion | Group Assignment | S19: Project
C20: CLO3 | G20: √ | P20: Co-operative Learning | Lecture | Discussion | S20: Presentation
C21: CLO4
C22: (The description must be read together with standards 2.1.2, 2.2.1 and 2.2.2 in Area 2 - pages 16 & 18)
B23: 9 | C23: Transferable skills (if applicable) | G23: 1 | H23: Self-Management and Learning
C24: (Skills learned in the course of study which can be useful and utilised in other settings) | G24: 2 | H24: Communication and Teamwork
G25: 3 | H25: Problem Solving and Information Technology
B26: 10 | C26: Distribution of Students Learning Time (SLT)
C27: Course Content Outline | G27: CLO | I27: Teaching and Learning Activities | T27: SLT
I28: Guided learning (F2F) | Q28: Guided Learning (NF2F) eg: e-learning | S28: Independent learning (NF2F)
I29: L | K29: T | M29: P | O29: O
C30: 1.0 Introduction To Building Services 1.1 Definition of building 1.2 Types of building. 1.3 Functions of building. 1.4 Types of building services. 1.5 The various rules, regulations, and by laws associated with the construction. | G30: CLO 2 | I30: 2 | K30: 4 | M30: 0 | S30: 2 | T30: =SUM(I30:S30) -> 8
C31: 2.0 Water Supply System 2.1 Introduction for water supply system. 2.2 The several of rules, regulations and by-laws associated with water supply system especially JBA. 2.3 Several resources of water supply. 2.4 Processing 2.5 Water’s tank. 2.6 Types of water supply system for housing. 2.7 Types of water supply system for higher building. | G31: CLO 1 | I31: 4 | K31: 8 | O31: 0 | S31: 4 | T31: 16 | U31: =C31 -> 2.0 Water Supply System 2.1 Introduction for water supply system. 2.2 The several of rules, regulations and by-laws associated with water supply system especially JBA. 2.3 Several resources of water supply. 2.4 Processing 2.5 Water’s tank. 2.6 Types of water supply system for housing. 2.7 Types of water supply system for higher building.
C32: 3.0 Electric Supply System 3.1 Introduction for electric supply system. The several of rules, regulations and by-laws associated with water supply system especially TNB. 3.2 Types of electric supply system. 3.3 Wiring system and Accessories | G32: CLO 3 | I32: 4 | K32: 8 | S32: 4 | T32: 16 | U32: 3.0 Electric Supply System 3.1 Introduction for electric supply system. The several of rules, regulations and by-laws associated with water supply system especially TNB. 3.2 Types of electric supply system. 3.3 Wiring system and Accessories
C33: 4.0 Drainage Sewerage Disposal System 4.1 Introduction for drainage and sewerage disposal system. 4.2 The several of rules, regulations and by-laws associated for drainage and sewerage disposal system especially Indah Water Consortium. 4.3 Principle of drainage and sewerage disposal system. 4.4 Sewerage disposal system: septic tank, imhoff tank, mechanical system: component equipment and method of construction. 4.5 Drainage system: one pipe, two pipe , combined 2.5 Steel frame construction. | G33: CLO 1 | I33: 4 | K33: 8 | S33: 4 | T33: 16 | U33: 4.0 Drainage Sewerage Disposal System 4.1 Introduction for drainage and sewerage disposal system. 4.2 The several of rules, regulations and by-laws associated for drainage and sewerage disposal system especially Indah Water Consortium. 4.3 Principle of drainage and sewerage disposal system. 4.4 Sewerage disposal system: septic tank, imhoff tank, mechanical system: component equipment and method of construction. 4.5 Drainage system: one pipe, two pipe , combined 2.5 Steel frame construction.
C34: 5.0 Ventilation System 5.1 Introduction for ventilation system 5.2 The several of rules, regulations and by-laws associated for ventilation system. 5.3 Requirement and importance 5.4 Types of ventilation system. | G34: CLO 3 | I34: 2 | K34: 4 | S34: 3 | T34: 9 | U34: 5.0 Ventilation System 5.1 Introduction for ventilation system 5.2 The several of rules, regulations and by-laws associated for ventilation system. 5.3 Requirement and importance 5.4 Types of ventilation system.
C35: 6.0 Air Conditioning System 6.1 Introduction for air conditioning system. 6.2 The several of rules, regulations and by-laws associated for ventilation system. 6.3 Requirement and importance 6.4 Processing of air conditioning. 6.5 Types of air conditioning system | G35: CLO 2 | I35: 2 | K35: 4 | S35: 3 | T35: 9 | U35: 6.0 Air Conditioning System 6.1 Introduction for air conditioning system. 6.2 The several of rules, regulations and by-laws associated for ventilation system. 6.3 Requirement and importance 6.4 Processing of air conditioning. 6.5 Types of air conditioning system
C36: 7.0 Mechanical Handling System 7.1 Introduction of mechanical handling system (MHS) in building. 7.2 Lift system: planning, lift capacity, components, types and equipments. 7.3 Escalators: planning, escalator capacity, component, types and equipment. 7.4 Introduction to travellator and others latest mechanical handling system. | G36: CLO 2 | I36: 4 | K36: 8 | S36: 4 | T36: 16 | U36: 7.0 Mechanical Handling System 7.1 Introduction of mechanical handling system (MHS) in building. 7.2 Lift system: planning, lift capacity, components, types and equipments. 7.3 Escalators: planning, escalator capacity, component, types and equipment. 7.4 Introduction to travellator and others latest mechanical handling system.
C37: 8.0 Lighting Protection System 8.1 Theory of lightning, method of lightning protection and the effects of lightning strikes on building. 8.2 The components, fittings and accessories associated with lightning protection system and the methods of installation. | G37: CLO 2 | I37: 2 | K37: 4 | S37: 3 | T37: 9 | U37: 8.0 Lighting Protection System 8.1 Theory of lightning, method of lightning protection and the effects of lightning strikes on building. 8.2 The components, fittings and accessories associated with lightning protection system and the methods of installation.
C38: Total | T38: =SUM(T30:T37) -> 99 | U38: Total
C40: Continuous Assessment | L40: Percentage (%) | N40: F2F | Q40: NF2F | T40: SLT
C41: 1 | D41: Project | L41: 20 | N41: 2 | Q41: 3 | T41: =SUM(N41:S41) -> 5
C42: 2 | D42: Test 1 | L42: 10 | N42: 2 | Q42: 2 | T42: =SUM(N42:S42) -> 4 | U42: =D42 -> Test 1
C43: 3 | D43: Test 2 | L43: 10 | N43: 2 | Q43: 2.5 | T43: =SUM(N43:S43) -> 4.5 | U43: =D43 -> Test 2
C44: 4 | T44: =SUM(N44:S44) -> 0 | U44: =D44 -> 0
C45: 5 | T45: =SUM(N45:S45) -> 0 | U45: =D45 -> 0
C46: Total | T46: =SUM(T41:T45) -> 13.5 | U46: =D46 -> 0
C48: Final Assessment | L48: Percentage (%) | N48: F2F | Q48: NF2F | T48: SLT
C49: 1 | D49: Final Examination | L49: 60 | N49: 2.5 | Q49: 5 | T49: =SUM(N49:S49) -> 7.5
C50: 2 | T50: =SUM(N50:S50) -> 0 | U50: =D50 -> 0
C51: 3 | T51: =SUM(N51:S51) -> 0 | U51: =D51 -> 0
C52: 4 | T52: =SUM(N52:S52) -> 0 | U52: =D52 -> 0
C53: 5 | T53: =SUM(N53:S53) -> 0
T54: =SUM(T49:T53) -> 7.5 | U54: =D54 -> 0
C56: **Please tick (ü) in this course is Latihan Industri / Clinical Placement / Practicum / WBL using 2 weeks; 1 credit formula | T56: =+T38+T46+T54 -> 120
C57: L= Lecture, T=Tutorial, P=Practical, O=Others, F2F=Face to Face, NF2F=None Face to Face
C58: *Indicate the CLO based on the CLO's numbering in item 8
B59: 11 | C59: Identify special requirement to deliver the course (e.g: software, nursery, computer lab, simulation room, etc) | H59: None
U60: =H60 -> 0
B61: 12 | C61: References: | H61: 1. Michael Frankel (2010). Piping Facility System Handbook: For Industrial, Commercial And Healthcare Facilities. New York: Mc Graw Hill. 2. Richard R. Janis and William K.Y.Toa (2014). Mechanical And Electrical System In Building. Boston: Pearson. 3. Fred Hall and Roger Greeno (2011). Building Services Handbook Incorporating Current Building & Construction Regulation. Elsevier Ltd. 4. Fred Hall and Roger Greeno (2017),Building Services Handbook Incorporating Current Building & Construction Regulation. Elsevier Ltd. 5. Allen, Edward & Iano, Joseph. (2014).Fundamentals Of Building Construction : Materials And Methods. 6th Ed. New York:John Wiley. 6. Allen, Edward & Iano, Joseph. (2019).Fundamentals Of Building Construction : Materials And Methods. 7th Ed. New York: John Wiley. 7. Ching, Francis, D. K. (2014). Building ,Construction Illustrated. 5th Ed. New York,John Wiley. 8. Chudley, Roy And Greeno, Roger. (2016). Building Construction Handbook. 11th Ed. New York: Routledge.
C62: (include required and further readings, and should be the most current) | U62: =H62 -> 0
B63: 13 | C63: Other additional Information | H63: Last updated : 9st February 2020 | U63: =H63 -> Last updated : 9st February 2020

Sheet DDWG 1023
B2: 1 | C2: Name of Course | D2: Principle of Economic | AK2: 1 | AL2: 1
C3: Course Code | D3: DDWG 1023 | AJ3: √ | AK3: 2 | AL3: 2
B4: 2 | C4: Synopsis | D4: This course is design to expose students to basic economics level. This 3 credit subject will consist of both theories and concepts in microeconomics and macroeconomics at a foundation level. The course starts with basic principles of economics, demand and supply, market equilibrium, consumer behavior, production and cost of production and market structure. The course will then proceed to the topics in macroeconomics, consumption and savings, investment and public finance, introduction to monetory system and finally, inflation. At the end of the course students will understand basic economics knowledge and able to apply the concept for future related subjects in their daily lives | U4: =D4 -> This course is design to expose students to basic economics level. This 3 credit subject will consist of both theories and concepts in microeconomics and macroeconomics at a foundation level. The course starts with basic principles of economics, demand and supply, market equilibrium, consumer behavior, production and cost of production and market structure. The course will then proceed to the topics in macroeconomics, consumption and savings, investment and public finance, introduction to monetory system and finally, inflation. At the end of the course students will understand basic economics knowledge and able to apply the concept for future related subjects in their daily lives | AK4: 3 | AL4: 3
B5: 3 | C5: Name (s) of Academic Staff | D5: Juliana binti Ismail | AK5: 4 | AL5: 4
B6: 4 | C6: Semester | D6: Semester | E6: 2 | F6: Year | G6: 1 | AK6: 5
B7: 5 | C7: Credit Value | D7: =IF(T62=40,1,(IF(T62=80,2,(IF(T62=120,3,(IF(T62=160,4,IF(T62=200,5,IF(T62=240,6,""))))))))) -> 3 | AK7: 6
B8: 6 | C8: Pre-requisite / Co-requisite (if any) | AK8: 7
B9: 7 | C9: Course Learning Outcomes (CLO): At the end of the course the students will be able to: | AK9: 8
C10: (example) - explain the basic principles of immunisation (C2, PLO1) | AK10: 9
C11: CLO1 | D11: Define, recognize and explain the basic concept of economic theories | U11: =D11 -> Define, recognize and explain the basic concept of economic theories | AK11: 10
C12: CLO2 | D12: Identify and recognize the concept of supply, demand, elasticity, market equilibrium, consumer and producer behavior | U12: =D12 -> Identify and recognize the concept of supply, demand, elasticity, market equilibrium, consumer and producer behavior | AK12: 11
C13: CLO3 | D13: Calculate the national income, national income equilibrium, multiplier, national trade and balance of payment
C14: CLO4 | D14: Differentiate between monetory and fiscal policy. Recognize the functions | AK14: 12
B15: 8 | C15: Mapping of the Course Learning Outcomes to the Programme Learning Outcomes, Teaching Methods and Assessment:
C16: Course Learning Outcomes (CLO) | D16: Programme Learning Outcomes (PLO) | P16: Teaching Methods | S16: Assessment
D17: PLO1 | E17: PLO2 | F17: PLO3 | G17: PLO4 | H17: PLO5 | I17: PLO6 | J17: PLO7 | K17: PLO8 | L17: PLO9 | M17: PLO10 | N17: PLO11 | O17: PLO12
C18: CLO1 | D18: √ | P18: Lecture | Discussion | S18: Assignment | Test | Final Examination | U18: =S18 -> Assignment | Test | Final Examination
C19: CLO2 | D19: √ | P19: Lecture | Discussion | S19: Assignment | Test | Final Examination
C20: CLO3 | F20: √ | P20: Lecture | Discussion | S20: Assignment | Test | Final Examination
C21: CLO4 | F21: √ | P21: Discussion | Presentation | S21: Project
C22: (The description must be read together with standards 2.1.2, 2.2.1 and 2.2.2 in Area 2 - pages 16 & 18)
B23: 9 | C23: Transferable skills (if applicable) | G23: 1 | H23: Self-Management and Learning
C24: (Skills learned in the course of study which can be useful and utilised in other settings) | G24: 2 | H24: Communication and Teamwork
G25: 3 | H25: Problem Solving and critical thinking
B26: 10 | C26: Distribution of Students Learning Time (SLT)
C27: Course Content Outline | G27: CLO | I27: Teaching and Learning Activities | T27: SLT
I28: Guided learning (F2F) | Q28: Guided Learning (NF2F) eg: e-learning | S28: Independent learning (NF2F)
I29: L | K29: T | M29: P | O29: O
C30: Intoductuction to the course 1.1 Econommic 1.2 Concept of opportunity 1.3 Basics of economics problems 1.4 Production possibility curve 1.5 Economic systems | G30: CLO 2 | I30: 1 | K30: 3 | S30: 2 | T30: =SUM(I30:S30) -> 6
C31: Demand and Supply 2.1 Demand ,law od demand, factors of effecting demand 2.2 Supply, law of supply, factors of effecting supply | G31: CLO 1 | I31: 1 | K31: 2 | S31: 2 | T31: =SUM(I31:S31) -> 5 | U31: =C31 -> Demand and Supply 2.1 Demand ,law od demand, factors of effecting demand 2.2 Supply, law of supply, factors of effecting supply
C32: Elasticity 3.1 Elasticity of demand, types and calculation 3.2 Elasticity od supply, types and calculation 3.3 Elasticity and application | G32: CLO 3 | I32: 1 | K32: 6 | S32: 4 | T32: 11 | U32: =C32 -> Elasticity 3.1 Elasticity of demand, types and calculation 3.2 Elasticity od supply, types and calculation 3.3 Elasticity and application
C33: Market equilibrium 4.1 Determination of market equilibrium 4.2 Graph and calculation 4.3 Price ceilling and price floor | G33: CLO 1 | I33: 1.5 | K33: 6 | S33: 4 | T33: 11.5 | U33: Market equilibrium 4.1 Determination of market equilibrium 4.2 Graph and calculation 4.3 Price ceilling and price floor
C34: Theory of consumer behaviour 5.1 Marginal utility, consumer equilibrium 5.2 Indifferent curve 5.3 Budget line and consumer equilibrium | G34: CLO 3 | I34: 1 | K34: 4 | S34: 3 | T34: 8 | U34: Theory of consumer behaviour 5.1 Marginal utility, consumer equilibrium 5.2 Indifferent curve 5.3 Budget line and consumer equilibrium
C35: Theory of production 6.1 Production of one variables input 6.2 Production with two variables input 6.3 Producer equilibrium | G35: CLO 2 | I35: 1.5 | K35: 3 | S35: 3 | T35: 7.5 | U35: Theory of production 6.1 Production of one variables input 6.2 Production with two variables input 6.3 Producer equilibrium
C36: Cost of production 7.1 Measuring cost 7.2 Short run and long run cost 7.3 Production with two output 7.4 Cost minimization and output minimization 7.5 Expansion path, economic of scope | G36: CLO 2 | I36: 1 | K36: 3 | S36: 4 | T36: 8 | U36: Cost of production 7.1 Measuring cost 7.2 Short run and long run cost 7.3 Production with two output 7.4 Cost minimization and output minimization 7.5 Expansion path, economic of scope
C37: Market structure 8.1 Perfect competition 8.2 Monopoly 8.3 Monopolistic 8.4 Oligopoly | G37: CLO 2 | I37: 1 | K37: 4 | S37: 2 | T37: 7 | U37: Market structure 8.1 Perfect competition 8.2 Monopoly 8.3 Monopolistic 8.4 Oligopoly
C38: Introduction to macroeconomics 9.1 Economic goals,policy and tools 9.2 Circular flow of income 9.3 National income,usage and calculation | G38: CLO 2 | I38: 1 | K38: 3 | S38: 2 | T38: 6 | U38: Introduction to macroeconomics 9.1 Economic goals,policy and tools 9.2 Circular flow of income 9.3 National income,usage and calculation
C39: Consumption and saving 10.1 Definition of consumption and savings,MPC,MPS 10.2 Equilibrium calculations for two sectors economy 10.3 Full employment and multiplier,leakage and injection | G39: CLO 2 | I39: 1 | K39: 3 | S39: 2 | T39: 6 | U39: Consumption and saving 10.1 Definition of consumption and savings,MPC,MPS 10.2 Equilibrium calculations for two sectors economy 10.3 Full employment and multiplier,leakage and injection
C40: Investment theory 11.1 Types of invesments,calculations and factors affecting invesments 11.2 Fiscal policy and output determination 11.3 Equilibrium for 3 sectors of economy | G40: CLO 2 | I40: 1 | K40: 3 | S40: 2 | T40: 6 | U40: Investment theory 11.1 Types of invesments,calculations and factors affecting invesments 11.2 Fiscal policy and output determination 11.3 Equilibrium for 3 sectors of economy
C41: Money and bangking 12.1 Commercial and central banks 12.2 Theory of money 12.3 Equilibrium of money market | G41: CLO 2 | I41: 1 | K41: 3 | S41: 2 | T41: 6 | U41: Money and bangking 12.1 Commercial and central banks 12.2 Theory of money 12.3 Equilibrium of money market
C42: Inflation 13.1 Inflation, definition and types 13.2 Control of inflation 13.3 Effects of inflation | G42: CLO 2 | I42: 1 | K42: 3 | S42: 2 | T42: 6 | U42: Inflation 13.1 Inflation, definition and types 13.2 Control of inflation 13.3 Effects of inflation
C43: Balance of payments account and exchange rates 14.1 Fiscal expansion 14.2 Monetory Expansion 14.3 Differences between fixed and flexible exchange rates | G43: CLO 2 | I43: 1 | K43: 3 | S43: 2 | T43: 6 | U43: Balance of payments account and exchange rates 14.1 Fiscal expansion 14.2 Monetory Expansion 14.3 Differences between fixed and flexible exchange rates
C44: Total | T44: =SUM(T30:T43) -> 100 | U44: Total
C46: Continuous Assessment | L46: Percentage (%) | N46: F2F | Q46: NF2F | T46: SLT
C47: 1 | D47: Assignment | L47: 10 | Q47: 3 | T47: =SUM(N47:S47) -> 3
C48: 2 | D48: Quiz | L48: 10 | Q48: 3 | T48: =SUM(N48:S48) -> 3 | U48: =D48 -> Quiz
C49: 3 | D49: Test 1 | L49: 10 | N49: 1.5 | Q49: 2 | T49: 3.5 | U49: =D49 -> Test 1
C50: 4 | D50: Test 2 | L50: 10 | N50: 1.5 | Q50: 2 | T50: 3.5 | U50: Test 2
C51: 5 | T51: 0 | U51: 0
C52: Total | T52: =SUM(T47:T51) -> 13 | U52: 0
C54: Final Assessment | L54: Percentage (%) | N54: F2F | Q54: NF2F | T54: SLT
C55: 1 | D55: Final Examination | L55: 60 | N55: 2.5 | Q55: 4.5 | T55: =SUM(N55:S55) -> 7
C56: 2 | T56: =SUM(N56:S56) -> 0 | U56: =D56 -> 0
C57: 3 | T57: 0 | U57: =D57 -> 0
C58: 4 | T58: 0 | U58: 0
C59: 5 | T59: 0
T60: =SUM(T55:T59) -> 7 | U60: 0
C62: **Please tick (ü) in this course is Latihan Industri / Clinical Placement / Practicum / WBL using 2 weeks; 1 credit formula | T62: =+T44+T52+T60 -> 120
C63: L= Lecture, T=Tutorial, P=Practical, O=Others, F2F=Face to Face, NF2F=None Face to Face
C64: *Indicate the CLO based on the CLO's numbering in item 8
B65: 11 | C65: Identify special requirement to deliver the course (e.g: software, nursery, computer lab, simulation room, etc) | H65: None
U66: =H66 -> 0
B67: 12 | C67: References: | H67: 1. Sarimah Aman Shah. (2014). Principles of Economics. Selangor: Oxford. 2. Karl E. Case. (2007). Principle of Economics. USA: Pearson. 3. Deviga Vengedasalam. (2013). Principles Of Economics. Selangor: Oxford University Press. 4. Mankiw, N. Gregory. (2017). Principles Of Economics. New York: South-Western College Pub. 5. Coppock, Lee & Mateer, Dirk. (2018). Principles Of Economics. 2nd. Edition. Canada: W. W. Norton & Company, Inc. 6. Bade, Robin & Parkin, Michael. (2013). Foundations Of Economics. 6th Ed. Boston: Pearson.
C68: (include required and further readings, and should be the most current) | U68: =H68 -> 0
B69: 13 | C69: Other additional Information | H69: Last updated : 9 February 2020 | U69: Last updated : 9 February 2020

Sheet DDWF 1623
B2: 1 | C2: Name of Course | D2: Real Estate Law | AK2: 1 | AL2: 1
C3: Course Code | D3: DDWF 1623 | AJ3: √ | AK3: 2 | AL3: 2
B4: 2 | C4: Synopsis | D4: The course is designed to introduce students to applicable laws governing land matters in Malaysia and its close relationships with any type of landed property development. Students are taught the concept of land, jurisdictions and authorities of concerned parties over land matters. The importance of the Torrens system and understanding the types of commercial transactions created over land by land owners that are currently available and recognized by the National Land Code. | U4: =D4 -> The course is designed to introduce students to applicable laws governing land matters in Malaysia and its close relationships with any type of landed property development. Students are taught the concept of land, jurisdictions and authorities of concerned parties over land matters. The importance of the Torrens system and understanding the types of commercial transactions created over land by land owners that are currently available and recognized by the National Land Code. | AK4: 3 | AL4: 3
B5: 3 | C5: Name (s) of Academic Staff | D5: Azizah binti Musa | AK5: 4 | AL5: 4
B6: 4 | C6: Semester | D6: Semester | E6: 2 | F6: Year | G6: 1 | AK6: 5
B7: 5 | C7: Credit Value | D7: =IF(T63=40,1,(IF(T63=80,2,(IF(T63=120,3,(IF(T63=160,4,IF(T63=200,5,IF(T63=240,6,""))))))))) -> 3 | AK7: 6
B8: 6 | C8: Pre-requisite / Co-requisite (if any) | AK8: 7
B9: 7 | C9: Course Learning Outcomes (CLO): At the end of the course the students will be able to: | AK9: 8
C10: (example) - explain the basic principles of immunisation (C2, PLO1) | AK10: 9
C11: CLO1 | D11: Explain the concept of land law, how the NLC , the Torrens systems operate in Malaysia , the principles relating to land law as governs by the National Land Code, the jurisdictions and principles relating to land law, the principles and system in running and managing of land matters by the land office and Registrar of land office and distinguish the differences between rights and responsibilities of parties involved. (PLO3, C3) | U11: =D11 -> Explain the concept of land law, how the NLC , the Torrens systems operate in Malaysia , the principles relating to land law as governs by the National Land Code, the jurisdictions and principles relating to land law, the principles and system in running and managing of land matters by the land office and Registrar of land office and distinguish the differences between rights and responsibilities of parties involved. (PLO3, C3) | AK11: 10
C12: CLO2 | D12: Express ideas clearly and effectively as well as demonstrate understanding. (PLO4, P3, CS1, CS3) | U12: =D12 -> Express ideas clearly and effectively as well as demonstrate understanding. (PLO4, P3, CS1, CS3) | AK12: 11
C13: CLO3 | D13: Develop qualities of an effective team player and reporting information. (PLO5, A3TS1-TS3)
C14: CLO4 | AK14: 12
B15: 8 | C15: Mapping of the Course Learning Outcomes to the Programme Learning Outcomes, Teaching Methods and Assessment:
C16: Course Learning Outcomes (CLO) | D16: Programme Learning Outcomes (PLO) | P16: Teaching Methods | S16: Assessment
D17: PLO1 | E17: PLO2 | F17: PLO3 | G17: PLO4 | H17: PLO5 | I17: PLO6 | J17: PLO7 | K17: PLO8 | L17: PLO9 | M17: PLO10 | N17: PLO11 | O17: PLO12
C18: CLO1 | D18: √ | P18: Lecture | Discussion | S18: Test | Final Examination | U18: =S18 -> Test | Final Examination
C19: CLO2 | G19: √ | P19: Lecture | Discussion | S19: Assignment
C20: CLO3 | H20: √ | P20: Lecture | Lab Activities | Presentation | S20: Assignment
C21: CLO4
C22: (The description must be read together with standards 2.1.2, 2.2.1 and 2.2.2 in Area 2 - pages 16 & 18)
B23: 9 | C23: Transferable skills (if applicable) | G23: 1 | H23: Self-Management and Learning
C24: (Skills learned in the course of study which can be useful and utilised in other settings) | G24: 2 | H24: Communication and Teamwork
G25: 3 | H25: Problem Solving and Information Technology
B26: 10 | C26: Distribution of Students Learning Time (SLT)
C27: Course Content Outline | G27: CLO | I27: Teaching and Learning Activities | T27: SLT
I28: Guided learning (F2F) | Q28: Guided Learning (NF2F) eg: e-learning | S28: Independent learning (NF2F)
I29: L | K29: T | M29: P | O29: O
C30: 1.0 Introduction to Malaysian Land Law 1.1 Historical background of Malaysian Land Law 1.2 Sources of Malaysian Land Laws 1.3 National Land Code and other relevant and applicable statutes. 1.4 Relationship between Federal and State Governments regarding land as a subject matter as provided by the federal constitution. | G30: CLO 1 | I30: 2 | K30: 4 | M30: 0 | S30: 2 | T30: =SUM(I30:S30) -> 8
C31: 2.0 Terminologies 2.1 The concept and terminologies of land law | G31: CLO 1 | I31: 2 | K31: 4 | O31: 0 | S31: 2 | T31: =SUM(I31:S31) -> 8 | U31: =C31 -> 2.0 Terminologies 2.1 The concept and terminologies of land law
C32: 3.0 Torrens System 3.1 Land law system pre – Torrens. 3.2 All lands belong to the Malay Rulers 3.3 Feudal system. 3.4 Tanah adapt. 3.5 The advantages and disadvantages. 3.6 Torrens system – registration is everything 3.7 The advantages and disadvantages. | G32: CLO 1 | I32: 2 | K32: 4 | S32: 2 | T32: =SUM(I32:S32) -> 8
C33: 4.0 Right To Land 4.1 Right to; 4.1.1 Natural support of land 4.1.2 Air space 4.1.3 To develop 4.1.4 Not to develop 4.1.5 Limits and restrictions to the rights above | G33: CLO 2 | I33: 2 | K33: 4 | S33: 1 | T33: 7 | U33: =C33 -> 4.0 Right To Land 4.1 Right to; 4.1.1 Natural support of land 4.1.2 Air space 4.1.3 To develop 4.1.4 Not to develop 4.1.5 Limits and restrictions to the rights above
C34: 5.0 Title of Land 5.1 Land held under HSM title 5.2 Land held under HSD title 5.3 Differences 5.4 Freehold title 5.5 Leasehold title 5.6 Qualified title | G34: CLO 1 | I34: 2 | K34: 4 | S34: 1 | T34: 7 | U34: 5.0 Title of Land 5.1 Land held under HSM title 5.2 Land held under HSD title 5.3 Differences 5.4 Freehold title 5.5 Leasehold title 5.6 Qualified title
C35: 6.0 State Government 6.1 Types and categories of land 6.2 Mines, permanent and reserved forest, sea, river etc. | G35: CLO 2 | I35: 2 | K35: 4 | S35: 1 | T35: 7 | U35: 6.0 State Government 6.1 Types and categories of land 6.2 Mines, permanent and reserved forest, sea, river etc.
C36: 7.0 State Government 7.1 Disposal of land 7.2 Reserve 7.3 Alienation 7.4 Temporary license of occupation (TOL) 7.5 Rights and responsibilities of TOL Holder. | G36: CLO 1 | I36: 2 | K36: 4 | S36: 1 | T36: 7 | U36: 7.0 State Government 7.1 Disposal of land 7.2 Reserve 7.3 Alienation 7.4 Temporary license of occupation (TOL) 7.5 Rights and responsibilities of TOL Holder.
C37: 8.0 Commercial Transaction Under NLC 8.1 Transfer; 8.1.1 Parties 8.1.2 Legal capacity 8.1.3 Contract document | G37: CLO 2 | I37: 2 | K37: 3 | S37: 1 | T37: 6 | U37: 8.0 Commercial Transaction Under NLC 8.1 Transfer; 8.1.1 Parties 8.1.2 Legal capacity 8.1.3 Contract document
C38: 9.0 Commercial Transaction Under NLC 9.1 Charges; 9.1.1 Parties 9.1.2 Legal capacity 9.1.3 Contract document 9.1.4 Purpose 9.1.5 Procedures 9.1.6 Documents for registration 9.1.7 Grounds in rejecting registration | G38: CLO 2 | I38: 2 | K38: 3 | S38: 1 | T38: 6 | U38: 9.0 Commercial Transaction Under NLC 9.1 Charges; 9.1.1 Parties 9.1.2 Legal capacity 9.1.3 Contract document 9.1.4 Purpose 9.1.5 Procedures 9.1.6 Documents for registration 9.1.7 Grounds in rejecting registration
C39: 10.0 Commercial Transaction Under NLC 10.1 Lease; 10.1.1 Parties 10.1.2 Legal capacity 10.1.3 Contract document 10.1.4 Purpose 10.1.5 Procedures 10.1.6 Documents for registration 10.1.7 Grounds in rejecting registration | G39: CLO 2 | I39: 2 | K39: 3 | S39: 1 | T39: =SUM(I39:S39) -> 6
C40: 11.0 Commercial Transaction Under NLC 11.1 Tenancy; 11.1.1Legal capacity 11.1.3 Contract document 11.1.4 Purpose 11.1.5 Procedures 11.1.6 Documents for registration 11.1.7 Grounds in rejecting registration 11.1.8 Types of tenancy 11.1.9 Procedures | G40: CLO 2 | I40: 2 | K40: 3 | S40: 1 | T40: =SUM(I40:S40) -> 6
C41: 12.0 Commercial Transaction Under NLC 12.1 Lien 12.1.1 Differences between charges, lease, lien 12.1.2 Legal capacity 12.1.3 Contract document | G41: CLO 1 | I41: 2 | K41: 3 | S41: 1 | T41: =SUM(I41:S41) -> 6
C42: 13.0 Idefeasibility of Title 13.1 Bad Title 13.1.1 Bona fide purchaser 13.1.2 Incomplete instrument 13.1.3 Inadequate instrument section 340 (1) and section 340(2) National Land Code 13.1.4 The right to challenge the title of land. 13.1.5 Jurisdictions of the courts. 13.1.6 Parties. | G42: CLO 1 | I42: 2 | K42: 3 | S42: 1 | T42: =SUM(I42:S42) -> 6
C43: 14.0 Encumbrances in Land 14.1 Caveat 14.1.1 Parties an dlegal capacity 14.1.2 Types of caveats: registrar, private and lien holder caveat 14.1.3 Lifespan of caveat 14.1.4 Removal of caveat 14.1.5 Grounds | G43: CLO 2 | I43: 2 | K43: 3 | S43: 1 | T43: 6 | U43: 14.0 Encumbrances in Land 14.1 Caveat 14.1.1 Parties an dlegal capacity 14.1.2 Types of caveats: registrar, private and lien holder caveat 14.1.3 Lifespan of caveat 14.1.4 Removal of caveat 14.1.5 Grounds
C44: 15.0 Prohibitory Order 15.1 Purpose 15.2 Effects of a prohibitory order 15.3 Who may apply? 15.4 Reason for applying 15.5 Lifespan of a prohibitory order 15.6 Removal of lapsed of a prohibitory order | G44: CLO 3 | I44: 2 | K44: 3 | S44: 1 | T44: 6 | U44: 15.0 Prohibitory Order 15.1 Purpose 15.2 Effects of a prohibitory order 15.3 Who may apply? 15.4 Reason for applying 15.5 Lifespan of a prohibitory order 15.6 Removal of lapsed of a prohibitory order
C45: Total | T45: =SUM(T30:T44) -> 100 | U45: Total
C47: Continuous Assessment | L47: Percentage (%) | N47: F2F | Q47: NF2F | T47: SLT
C48: 1 | D48: Assignment 1 | L48: 20 | N48: 2 | Q48: 2 | T48: =SUM(N48:S48) -> 4
C49: 2 | D49: Test 1 | L49: 10 | N49: 2 | Q49: 2 | T49: =SUM(N49:S49) -> 4 | U49: =D49 -> Test 1
C50: 3 | D50: Test 2 | L50: 10 | N50: 2 | Q50: 2 | T50: 4 | U50: =D50 -> Test 2
C51: 4 | T51: 0 | U51: 0
C52: 5 | T52: 0 | U52: 0
C53: Total | T53: =SUM(T48:T52) -> 12 | U53: 0
C55: Final Assessment | L55: Percentage (%) | N55: F2F | Q55: NF2F | T55: SLT
C56: 1 | D56: Final Examination | L56: 60 | N56: 3 | Q56: 5 | T56: =SUM(N56:S56) -> 8
C57: 2 | T57: =SUM(N57:S57) -> 0 | U57: =D57 -> 0
C58: 3 | T58: 0 | U58: =D58 -> 0
C59: 4 | T59: 0 | U59: 0
C60: 5 | T60: 0
T61: =SUM(T56:T60) -> 8 | U61: 0
C63: **Please tick (ü) in this course is Latihan Industri / Clinical Placement / Practicum / WBL using 2 weeks; 1 credit formula | T63: =+T45+T53+T61 -> 120
C64: L= Lecture, T=Tutorial, P=Practical, O=Others, F2F=Face to Face, NF2F=None Face to Face
C65: *Indicate the CLO based on the CLO's numbering in item 8
B66: 11 | C66: Identify special requirement to deliver the course (e.g: software, nursery, computer lab, simulation room, etc) | H66: None
U67: =H67 -> 0
B68: 12 | C68: References: | H68: 1. Hj Salleh Hj. Buang, (2015). Malaysian Torrens System. Kuala Lumpur: Dewan Bahasa dan Pustaka. 2. S Y Kok (2010). The Torrens System and Equitable Principles. Selangor: Sweet and Maxwell Malaysia. 3. Lembaga Penyelidikan Undang-Undang. (2018). Town And Country Planning Act 1976 (Akta 172). Akta Perancangan Bandar Dan Desa 1976 (Akta 172) Selangor: International Law Book Services (ILBS). 4. Laterrase, Jean. (2019). Transport And Town Planning: The City And Search Of Sustainable Development. New York: John Wiley.
C69: (include required and further readings, and should be the most current) | U69: =H69 -> 0
B70: 13 | C70: Other additional Information | H70: Last updated : 9st February 2020 | U70: Last updated : 9st February 2020

Sheet DDWF 1423
B2: 1 | C2: Name of Course | D2: Valuation Methodology | AK2: 1 | AL2: 1
C3: Course Code | D3: DDWF 1423 | AJ3: √ | AK3: 2 | AL3: 2
B4: 2 | C4: Synopsis | D4: This course consists of introduction to general understanding of the appraisal process and appraisal methodology for valuing the real estate for any purpose of valuation, with reference to “Manual of Valuation Standards” produced by the Board of Valuers, Appraisers and Estate Agents, Malaysia. Appraisal is the formulating of an opinion of market value of property. This opinion is derived by five main methods of valuation. Appraisal is a way to approach value that includes all the market and property considerations that are part of our framework for analysis. The five approaches to value; sales comparison method, investment method, cost method, profit or income approach and residual method. The first is the most useful when a number of comparable properties can be located. The investment method is useful when the property is rented and easy getting rental comparable. The cost method is useful when the property is new and relies on the principle of substitution. The income approach value the property is expected to generate profit. While the residual approach is useful for the property has potential value or potential highest and the best use in future. Through assignments and project work, students are led to develop skills to communicate effectively, to lead and cooperate as team members, be highly motivated, disciplined and ethical | U4: =D4 -> This course consists of introduction to general understanding of the appraisal process and appraisal methodology for valuing the real estate for any purpose of valuation, with reference to “Manual of Valuation Standards” produced by the Board of Valuers, Appraisers and Estate Agents, Malaysia. Appraisal is the formulating of an opinion of market value of property. This opinion is derived by five main methods of valuation. Appraisal is a way to approach value that includes all the market and property considerations that are part of our framework for analysis. The five approaches to value; sales comparison method, investment method, cost method, profit or income approach and residual method. The first is the most useful when a number of comparable properties can be located. The investment method is useful when the property is rented and easy getting rental comparable. The cost method is useful when the property is new and relies on the principle of substitution. The income approach value the property is expected to generate profit. While the residual approach is useful for the property has potential value or potential highest and the best use in future. Through assignments and project work, students are led to develop skills to communicate effectively, to lead and cooperate as team members, be highly motivated, disciplined and ethical | AK4: 3 | AL4: 3
B5: 3 | C5: Name (s) of Academic Staff | D5: NIK MAT NASRI BIN NIK RAMLI | AK5: 4 | AL5: 4
B6: 4 | C6: Semester | D6: Semester | E6: 2 | F6: Year | G6: 1 | AK6: 5
B7: 5 | C7: Credit Value | D7: =IF(T56=40,1,(IF(T56=80,2,(IF(T56=120,3,(IF(T56=160,4,IF(T56=200,5,IF(T56=240,6,""))))))))) -> 3 | AK7: 6
B8: 6 | C8: Pre-requisite / Co-requisite (if any) | D8: DDWF1413 (Introduction To Real Estate) | AK8: 7
B9: 7 | C9: Course Learning Outcomes (CLO): At the end of the course the students will be able to: | AK9: 8
C10: (example) - explain the basic principles of immunisation (C2, PLO1) | AK10: 9
C11: CLO1 | D11: Describe and explain concepts and principles of real estate methodology for five (5) methods of valuation. (PLO1, C3) | U11: =D11 -> Describe and explain concepts and principles of real estate methodology for five (5) methods of valuation. (PLO1, C3) | AK11: 10
C12: CLO2 | D12: a) Produce the property information by inspecting the property, information searching from land office and others, and also produce the property price or from the suitable sources. b) Identify and discuss the suitable method of valuation according to the types of properties. (PLO3, P3, CTPS1-CTPS2) | U12: =D12 -> a) Produce the property information by inspecting the property, information searching from land office and others, and also produce the property price or from the suitable sources. b) Identify and discuss the suitable method of valuation according to the types of properties. (PLO3, P3, CTPS1-CTPS2) | AK12: 11
C13: CLO3 | D13: Practice ethics and values towards oneself, group members and group efforts. (PLO8, A3, EMI-EM2)
C14: CLO4 | AK14: 12
B15: 8 | C15: Mapping of the Course Learning Outcomes to the Programme Learning Outcomes, Teaching Methods and Assessment:
C16: Course Learning Outcomes (CLO) | D16: Programme Learning Outcomes (PLO) | P16: Teaching Methods | S16: Assessment
D17: PLO1 | E17: PLO2 | F17: PLO3 | G17: PLO4 | H17: PLO5 | I17: PLO6 | J17: PLO7 | K17: PLO8 | L17: PLO9 | M17: PLO10 | N17: PLO11 | O17: PLO12
C18: CLO1 | D18: √ | P18: Lecture | Discussion | Independent Study | S18: Assignment | Test | Final Examination | U18: =S18 -> Assignment | Test | Final Examination
C19: CLO2 | F19: √ | P19: Lecture | Tutorial | Co-operative Learning | S19: Test | Final Examination | Project
C20: CLO3 | K20: √ | P20: Lecture | Discussion | Presentation | S20: Project
C21: CLO4
C22: (The description must be read together with standards 2.1.2, 2.2.1 and 2.2.2 in Area 2 - pages 16 & 18)
B23: 9 | C23: Transferable skills (if applicable) | G23: 1 | H23: Self-Management and Learning
C24: (Skills learned in the course of study which can be useful and utilised in other settings) | G24: 2 | H24: Communication and Teamwork
G25: 3 | H25: Problem Solving and Information Technology
B26: 10 | C26: Distribution of Students Learning Time (SLT)
C27: Course Content Outline | G27: CLO | I27: Teaching and Learning Activities | T27: SLT
I28: Guided learning (F2F) | Q28: Guided Learning (NF2F) eg: e-learning | S28: Independent learning (NF2F)
I29: L | K29: T | M29: P | O29: O
C30: 1.0 Property Valuation Process 1.1 Client’s instruction 1.2 Collection of information a. Title search b. Property inspection c. Planning search d. Property market search 1.3 Data Analysis 1.4 Valuation and report writing 1.5 Format of valuation report | G30: CLO 1 | I30: 2 | K30: 4 | M30: 0 | S30: 2 | T30: =SUM(I30:S30) -> 8
C31: 2.0 Valuation Method 2.1 Five (5) common methods 2.2 Advance methods 2.3 Comparison method 2.3.1 Principle & concept of comparison method 2.3.2 Steps of the method 2.3.3 Types of comparison method | G31: CLO 1 | I31: 2 | K31: 4 | O31: 0 | S31: 2 | T31: 8 | U31: =C31 -> 2.0 Valuation Method 2.1 Five (5) common methods 2.2 Advance methods 2.3 Comparison method 2.3.1 Principle & concept of comparison method 2.3.2 Steps of the method 2.3.3 Types of comparison method
C32: 3.0 Direct Sale Comparison Method 3.1 Principle and concept of direct comparison 3.2 Principles and characteristics of comparables 3.3 Valuation of property by direct comparison. | G32: CLO 3 | I32: 2 | K32: 4 | S32: 4 | T32: 10 | U32: 3.0 Direct Sale Comparison Method 3.1 Principle and concept of direct comparison 3.2 Principles and characteristics of comparables 3.3 Valuation of property by direct comparison.
C33: 4.0 Indirect Comparison Method 4.1 Principle and concept of indirect comparison 4.2 Principles and characteristics of comparables 4.3 Types and factors of adjustment 4.4 Rates of adjustment 4.5 Matched pair technique 4.6 Analysis data comparables 4.7 Concept of unit of comparison 4.8 Method of adjusting the comparables 4.9 Reconcile different value into a single value 4.10 Valuation of property by indirect comparison method. | G33: CLO 1 | I33: 4 | K33: 8 | S33: 2 | T33: 14 | U33: 4.0 Indirect Comparison Method 4.1 Principle and concept of indirect comparison 4.2 Principles and characteristics of comparables 4.3 Types and factors of adjustment 4.4 Rates of adjustment 4.5 Matched pair technique 4.6 Analysis data comparables 4.7 Concept of unit of comparison 4.8 Method of adjusting the comparables 4.9 Reconcile different value into a single value 4.10 Valuation of property by indirect comparison method.
C34: 5.0 Investment Method - Capital Value 5.1 The principles and the concept of investment method 5.2 Formula of investment method 5.3 Outgoings factors 5.4 Capitalization factor or property yield rates 5.5 Analysis of rental value 5.6 Valuation of property – freehold property 5.7 Valuation of property – leasehold property 5.8 The concept of land interest/property interest 5.9 Investment Method - Interest Value 5.9 Valuation tables – Parry’s valuation table 5.10 Valuation of interest of property – deferred income 5.11 Valuation of interest land – varying incomes | G34: CLO 3 | I34: 4 | K34: 8 | S34: 3 | T34: 15 | U34: 5.0 Investment Method - Capital Value 5.1 The principles and the concept of investment method 5.2 Formula of investment method 5.3 Outgoings factors 5.4 Capitalization factor or property yield rates 5.5 Analysis of rental value 5.6 Valuation of property – freehold property 5.7 Valuation of property – leasehold property 5.8 The concept of land interest/property interest 5.9 Investment Method - Interest Value 5.9 Valuation tables – Parry’s valuation table 5.10 Valuation of interest of property – deferred income 5.11 Valuation of interest land – varying incomes
C35: 6.0 Profit Method 6.1 The principles and concepts of profit method 6.2 Formula of the method 6.3 Pro forma incomes, gross incomes, net incomes 6.4 Operating cost and outgoings 6.5 Divisible balance – tenant’s share and interest on capital 6.6 Relationship of investment method 6.7 Valuation of property by profit method | G35: CLO 2 | I35: 4 | K35: 8 | S35: 3 | T35: 15 | U35: 6.0 Profit Method 6.1 The principles and concepts of profit method 6.2 Formula of the method 6.3 Pro forma incomes, gross incomes, net incomes 6.4 Operating cost and outgoings 6.5 Divisible balance – tenant’s share and interest on capital 6.6 Relationship of investment method 6.7 Valuation of property by profit method
C36: 7.0 Residual Method 7.1 The principles and concepts of the residual method 7.2 The type of properties 7.3 The concepts of HBU and the potential value 7.4 The formula of the method 7.5 Gross development value 7.6 Gross development cost 7.7 The multipliers factor 7.8 Valuation of property by residual method | G36: CLO 2 | I36: 4 | K36: 8 | S36: 3 | T36: 15 | U36: 7.0 Residual Method 7.1 The principles and concepts of the residual method 7.2 The type of properties 7.3 The concepts of HBU and the potential value 7.4 The formula of the method 7.5 Gross development value 7.6 Gross development cost 7.7 The multipliers factor 7.8 Valuation of property by residual method
C37: 8.0 Cost Method 8.1 The principles and concepts of cost method 8.2 The suitable properties 8.3 Definition of replacement and reinstatement cost 8.4 The steps of the cost method. 8.5 The formula of the cost method 8.6 Analysis land value 8.7 Value of building 8.8 Depreciation of value – types and the concepts | G37: CLO 2 | I37: 4 | K37: 8 | S37: 2 | T37: 14 | U37: 8.0 Cost Method 8.1 The principles and concepts of cost method 8.2 The suitable properties 8.3 Definition of replacement and reinstatement cost 8.4 The steps of the cost method. 8.5 The formula of the cost method 8.6 Analysis land value 8.7 Value of building 8.8 Depreciation of value – types and the concepts
C38: Total | T38: =SUM(T30:T37) -> 99 | U38: Total
C40: Continuous Assessment | L40: Percentage (%) | N40: F2F | Q40: NF2F | T40: SLT
C41: 1 | D41: Project | L41: 20 | N41: 1 | Q41: 3 | T41: =SUM(N41:S41) -> 4
C42: 2 | D42: Test 1 | L42: 10 | N42: 2.5 | Q42: 2.5 | T42: =SUM(N42:S42) -> 5 | U42: =D42 -> Test 1
C43: 3 | D43: Test 2 | L43: 10 | N43: 2.5 | Q43: 2.5 | T43: =SUM(N43:S43) -> 5 | U43: =D43 -> Test 2
C44: 4 | T44: =SUM(N44:S44) -> 0 | U44: =D44 -> 0
C45: 5 | T45: =SUM(N45:S45) -> 0 | U45: =D45 -> 0
C46: Total | T46: =SUM(T41:T45) -> 14 | U46: =D46 -> 0
C48: Final Assessment | L48: Percentage (%) | N48: F2F | Q48: NF2F | T48: SLT
C49: 1 | D49: Final Examination | L49: 60 | N49: 2.5 | Q49: 4.5 | T49: =SUM(N49:S49) -> 7
C50: 2 | T50: =SUM(N50:S50) -> 0 | U50: =D50 -> 0
C51: 3 | T51: =SUM(N51:S51) -> 0 | U51: =D51 -> 0
C52: 4 | T52: =SUM(N52:S52) -> 0 | U52: =D52 -> 0
C53: 5 | T53: =SUM(N53:S53) -> 0
T54: =SUM(T49:T53) -> 7 | U54: =D54 -> 0
C56: **Please tick (ü) in this course is Latihan Industri / Clinical Placement / Practicum / WBL using 2 weeks; 1 credit formula | T56: =+T38+T46+T54 -> 120
C57: L= Lecture, T=Tutorial, P=Practical, O=Others, F2F=Face to Face, NF2F=None Face to Face
C58: *Indicate the CLO based on the CLO's numbering in item 8
B59: 11 | C59: Identify special requirement to deliver the course (e.g: software, nursery, computer lab, simulation room, etc) | H59: None
U60: =H60 -> 0
B61: 12 | C61: References: | H61: 1. Eric Shapiro, David Mackmin & Gary Sams. (2013). Modern Methods Of Valuation. New York: Routledge. 2. Douglas Scarret (2014), Property Valuation: The Five Methods. New York: Routledge. 3. Ismail Omar. (2019). Real Estate Valuation: Theory and Practice. Kuala Lumpur: Pearson Malaysia. 4. Azhari Husin. (1996). Harta Tanah: Kaedah Penilaian. Kuala Lumpur : Dewan Bahasa Dan Pustaka.
C62: (include required and further readings, and should be the most current) | U62: =H62 -> 0
B63: 13 | C63: Other additional Information | H63: Last updated : 9st February 2020 | U63: =H63 -> Last updated : 9st February 2020

Sheet UKQA2072
B2: 1 | C2: Name of Course | D2: Perkhidmatan ICT Untuk Komuniti | AK2: 1 | AL2: 1
C3: Course Code | D3: UKQA2072 | AJ3: √ | AK3: 2 | AL3: 2
B4: 2 | C4: Synopsis | D4: Kursus ini memberikan pendedahan tentang pengetahuan ICT dari aspek teori dan teknikal yang akan membantu memberi kelebihan kepada mahasiswa dalam menguasai ilmu ICT | U4: =D4 -> Kursus ini memberikan pendedahan tentang pengetahuan ICT dari aspek teori dan teknikal yang akan membantu memberi kelebihan kepada mahasiswa dalam menguasai ilmu ICT | AK4: 3 | AL4: 3
B5: 3 | C5: Name (s) of Academic Staff | D5: Wan Muhammad Silmi Bin Hamzah | AK5: 4 | AL5: 4
B6: 4 | C6: Semester | D6: Semester | E6: 1 | F6: Year | G6: 1 | AK6: 5
B7: 5 | C7: Credit Value | D7: =IF(T58=40,1,(IF(T58=80,2,(IF(T58=120,3,(IF(T58=160,4,IF(T58=200,5,IF(T58=240,6,""))))))))) -> 2 | AK7: 6
B8: 6 | C8: Pre-requisite / Co-requisite (if any) | AK8: 7
B9: 7 | C9: Course Learning Outcomes (CLO): At the end of the course the students will be able to: | AK9: 8
C10: (example) - explain the basic principles of immunisation (C2, PLO1) | AK10: 9
C11: CLO1 | D11: Bekerja secara kolaborasi dan berkomunikasi dengan berkesan dalam komuniti. (A3, TS3, LL2, PLO6) | U11: =D11 -> Bekerja secara kolaborasi dan berkomunikasi dengan berkesan dalam komuniti. (A3, TS3, LL2, PLO6) | AK11: 10
C12: CLO2 | D12: Mengaplikasikan pengetahuan dalam perkhidmatan ICT kepada komuniti. (C3, P3, PLO2) | U12: =D12 -> Mengaplikasikan pengetahuan dalam perkhidmatan ICT kepada komuniti. (C3, P3, PLO2) | AK12: 11
C13: CLO3 | D13: Mempraktikan kemahiran insaniah melalui program yang dijalankan bersama komuniti. (A3, EM2, PLO8)
AK14: 12
B15: 8 | C15: Mapping of the Course Learning Outcomes to the Programme Learning Outcomes, Teaching Methods and Assessment:
C16: Course Learning Outcomes (CLO) | D16: Programme Learning Outcomes (PLO) | P16: Teaching Methods | S16: Assessment
D17: PLO1 | E17: PLO2 | F17: PLO3 | G17: PLO4 | H17: PLO5 | I17: PLO6 | J17: PLO7 | K17: PLO8 | L17: PLO9 | M17: PLO10 | N17: PLO11 | O17: PLO12
C18: CLO1 | I18: √ | P18: Amali, Tugasan | S18: Kerja Lapangan | Tugasan | U18: =S18 -> Kerja Lapangan | Tugasan
C19: CLO2 | E19: √ | P19: Amali, Tugasan | S19: Kerja Lapangan | Tugasan
C20: CLO3 | K20: √ | P20: Amali, Tugasan | S20: Kerja Lapangan | Tugasan
C22: (The description must be read together with standards 2.1.2, 2.2.1 and 2.2.2 in Area 2 - pages 16 & 18)
B23: 9 | C23: Transferable skills (if applicable) | G23: 1 | H23: Kemahiran pembelajaran sepanjang hayat.
C24: (Skills learned in the course of study which can be useful and utilised in other settings) | G24: 2 | H24: Kemahiran kepimpinan dan kerja berpasukan
G25: 3 | H25: Kemahiran Etika dan profesionalisme
B26: 10 | C26: Distribution of Students Learning Time (SLT)
C27: Course Content Outline | G27: CLO | I27: Teaching and Learning Activities | T27: SLT
I28: Guided learning (F2F) | Q28: Guided Learning (NF2F) eg: e-learning | S28: Independent learning (NF2F)
I29: L | K29: T | M29: P | O29: O
C30: Langkah 1: Persediaan dan Perancangan | G30: CLO1 CLO2 CLO3 | I30: 3 | S30: 5 | T30: =SUM(I30:S30) -> 8
C31: Langkah 2: Servis dan Pembelajaran | G31: CLO1 CLO2 CLO3 | I31: 3 | S31: 5 | T31: =SUM(I31:S31) -> 8 | U31: =C31 -> Langkah 2: Servis dan Pembelajaran
C32: Langkah 3: Refleksi dan Aplikasi | G32: CLO1 CLO2 CLO3 | I32: 4 | S32: 13 | T32: 17 | U32: =C32 -> Langkah 3: Refleksi dan Aplikasi
C33: Langkah 4: Penilaian dan Demonstrasi | G33: CLO1 CLO2 CLO3 | I33: 4 | S33: 14 | T33: 18 | U33: Langkah 4: Penilaian dan Demonstrasi
U34: 0
U35: 0
U36: 0
U37: 0
U38: 0
U39: 0
C40: Total | T40: =SUM(T30:T39) -> 51 | U40: Total
C42: Continuous Assessment | L42: Percentage (%) | N42: F2F | Q42: NF2F | T42: SLT
C43: 1 | D43: Kerja Lapangan | L43: 30 | N43: 1 | Q43: 10 | T43: =SUM(N43:S43) -> 11
C44: 2 | D44: Laporan | L44: 20 | Q44: 2 | T44: =SUM(N44:S44) -> 2 | U44: =D44 -> Laporan
C45: 3 | D45: Pembentangan | L45: 10 | N45: 2 | Q45: 5 | T45: 7 | U45: =D45 -> Pembentangan
C46: 4 | D46: Aktiviti (Life long learning) | L46: 20 | N46: 2 | Q46: 6 | U46: Aktiviti (Life long learning)
C47: 5 | D47: Aktiviti (Kemahiran insaniah) | L47: 20 | N47: 1 | Q47: 8 | T47: 9 | U47: Aktiviti (Kemahiran insaniah)
C48: Total | T48: =SUM(T43:T47) -> 29 | U48: 0
C50: Final Assessment | L50: Percentage (%) | N50: F2F | Q50: NF2F | T50: SLT
C51: 1 | T51: =SUM(N51:S51) -> 0
C52: 2 | T52: =SUM(N52:S52) -> 0 | U52: =D52 -> 0
C53: 3 | T53: 0 | U53: =D53 -> 0
C54: 4 | T54: 0 | U54: 0
C55: 5 | T55: 0
T56: =SUM(T51:T55) -> 0 | U56: 0
C58: **Please tick (ü) in this course is Latihan Industri / Clinical Placement / Practicum / WBL using 2 weeks; 1 credit formula | T58: =+T40+T48+T56 -> 80
C59: L= Lecture, T=Tutorial, P=Practical, O=Others, F2F=Face to Face, NF2F=None Face to Face
C60: *Indicate the CLO based on the CLO's numbering in item 8
B61: 11 | C61: Identify special requirement to deliver the course (e.g: software, nursery, computer lab, simulation room, etc) | H61: None
U62: =H62 -> 0
B63: 12 | C63: References:
C64: (include required and further readings, and should be the most current) | U64: =H64 -> 0
B65: 13 | C65: Other additional Information | H65: Last updated : 16th April 2018 | U65: Last updated : 16th April 2018

Sheet UKQR2012
B2: 1 | C2: Name of Course | D2: Kepimpinan & Komuniti | AK2: 1 | AL2: 1
C3: Course Code | D3: UKQR2012 | AJ3: √ | AK3: 2 | AL3: 2
B4: 2 | C4: Synopsis | D4: Kursus ini memberi pendedahan kepada mahasiswa mengenai prinsip-prinsip kepimpinan dalam mengurus aktiviti kemasyarakatan melalui kegiatan kelab dan persatuan | U4: =D4 -> Kursus ini memberi pendedahan kepada mahasiswa mengenai prinsip-prinsip kepimpinan dalam mengurus aktiviti kemasyarakatan melalui kegiatan kelab dan persatuan | AK4: 3 | AL4: 3
B5: 3 | C5: Name (s) of Academic Staff | D5: Wan Muhammad Silmi Bin Hamzah | AK5: 4 | AL5: 4
B6: 4 | C6: Semester | D6: Semester | E6: 1 | F6: Year | G6: 1 | AK6: 5
B7: 5 | C7: Credit Value | D7: =IF(T58=40,1,(IF(T58=80,2,(IF(T58=120,3,(IF(T58=160,4,IF(T58=200,5,IF(T58=240,6,""))))))))) -> 2 | AK7: 6
B8: 6 | C8: Pre-requisite / Co-requisite (if any) | AK8: 7
B9: 7 | C9: Course Learning Outcomes (CLO): At the end of the course the students will be able to: | AK9: 8
C10: (example) - explain the basic principles of immunisation (C2, PLO1) | AK10: 9
C11: CLO1 | D11: Bekerja secara kolaborasi dan berkomunikasi dengan berkesan dalam komuniti. (A3, TS3, LL2, PLO6) | U11: =D11 -> Bekerja secara kolaborasi dan berkomunikasi dengan berkesan dalam komuniti. (A3, TS3, LL2, PLO6) | AK11: 10
C12: CLO2 | D12: Mengaplikasikan pengetahuan dalam kepimpinan dan komuniti kepada komuniti. (C3, P3, PLO2) | U12: =D12 -> Mengaplikasikan pengetahuan dalam kepimpinan dan komuniti kepada komuniti. (C3, P3, PLO2) | AK12: 11
C13: CLO3 | D13: Mempraktikan kemahiran insaniah melalui program yang dijalankan bersama komuniti. (A3, EM2, PLO8)
AK14: 12
B15: 8 | C15: Mapping of the Course Learning Outcomes to the Programme Learning Outcomes, Teaching Methods and Assessment:
C16: Course Learning Outcomes (CLO) | D16: Programme Learning Outcomes (PLO) | P16: Teaching Methods | S16: Assessment
D17: PLO1 | E17: PLO2 | F17: PLO3 | G17: PLO4 | H17: PLO5 | I17: PLO6 | J17: PLO7 | K17: PLO8 | L17: PLO9 | M17: PLO10 | N17: PLO11 | O17: PLO12
C18: CLO1 | I18: √ | P18: Amali, Tugasan | S18: Kerja Lapangan | Tugasan | U18: =S18 -> Kerja Lapangan | Tugasan
C19: CLO2 | E19: √ | P19: Amali, Tugasan | S19: Kerja Lapangan | Tugasan
C20: CLO3 | K20: √ | P20: Amali, Tugasan | S20: Kerja Lapangan | Tugasan
C22: (The description must be read together with standards 2.1.2, 2.2.1 and 2.2.2 in Area 2 - pages 16 & 18)
B23: 9 | C23: Transferable skills (if applicable) | G23: 1 | H23: Kemahiran pembelajaran sepanjang hayat.
C24: (Skills learned in the course of study which can be useful and utilised in other settings) | G24: 2 | H24: Kemahiran kepimpinan dan kerja berpasukan
G25: 3 | H25: Kemahiran Etika dan profesionalisme
B26: 10 | C26: Distribution of Students Learning Time (SLT)
C27: Course Content Outline | G27: CLO | I27: Teaching and Learning Activities | T27: SLT
I28: Guided learning (F2F) | Q28: Guided Learning (NF2F) eg: e-learning | S28: Independent learning (NF2F)
I29: L | K29: T | M29: P | O29: O
C30: Langkah 1: Persediaan dan Perancangan | G30: CLO1 CLO2 CLO3 | I30: 3 | S30: 5 | T30: =SUM(I30:S30) -> 8
C31: Langkah 2: Servis dan Pembelajaran | G31: CLO1 CLO2 CLO3 | I31: 3 | S31: 5 | T31: =SUM(I31:S31) -> 8 | U31: =C31 -> Langkah 2: Servis dan Pembelajaran
C32: Langkah 3: Refleksi dan Aplikasi | G32: CLO1 CLO2 CLO3 | I32: 4 | S32: 13 | T32: 17 | U32: =C32 -> Langkah 3: Refleksi dan Aplikasi
C33: Langkah 4: Penilaian dan Demonstrasi | G33: CLO1 CLO2 CLO3 | I33: 4 | S33: 14 | T33: 18 | U33: Langkah 4: Penilaian dan Demonstrasi
U34: 0
U35: 0
U36: 0
U37: 0
U38: 0
U39: 0
C40: Total | T40: =SUM(T30:T39) -> 51 | U40: Total
C42: Continuous Assessment | L42: Percentage (%) | N42: F2F | Q42: NF2F | T42: SLT
C43: 1 | D43: Kerja Lapangan | L43: 30 | N43: 1 | Q43: 10 | T43: =SUM(N43:S43) -> 11
C44: 2 | D44: Laporan | L44: 20 | Q44: 2 | T44: =SUM(N44:S44) -> 2 | U44: =D44 -> Laporan
C45: 3 | D45: Pembentangan | L45: 10 | N45: 2 | Q45: 5 | T45: 7 | U45: =D45 -> Pembentangan
C46: 4 | D46: Aktiviti (Life long learning) | L46: 20 | N46: 2 | Q46: 6 | U46: Aktiviti (Life long learning)
C47: 5 | D47: Aktiviti (Kemahiran insaniah) | L47: 20 | N47: 1 | Q47: 8 | T47: 9 | U47: Aktiviti (Kemahiran insaniah)
C48: Total | T48: =SUM(T43:T47) -> 29 | U48: 0
C50: Final Assessment | L50: Percentage (%) | N50: F2F | Q50: NF2F | T50: SLT
C51: 1 | T51: =SUM(N51:S51) -> 0
C52: 2 | T52: =SUM(N52:S52) -> 0 | U52: =D52 -> 0
C53: 3 | T53: 0 | U53: =D53 -> 0
C54: 4 | T54: 0 | U54: 0
C55: 5 | T55: 0
T56: =SUM(T51:T55) -> 0 | U56: 0
C58: **Please tick (ü) in this course is Latihan Industri / Clinical Placement / Practicum / WBL using 2 weeks; 1 credit formula | T58: =+T40+T48+T56 -> 80
C59: L= Lecture, T=Tutorial, P=Practical, O=Others, F2F=Face to Face, NF2F=None Face to Face
C60: *Indicate the CLO based on the CLO's numbering in item 8
B61: 11 | C61: Identify special requirement to deliver the course (e.g: software, nursery, computer lab, simulation room, etc) | H61: None
U62: =H62 -> 0
B63: 12 | C63: References:
C64: (include required and further readings, and should be the most current) | U64: =H64 -> 0
B65: 13 | C65: Other additional Information | H65: Last updated : 16th April 2018 | U65: Last updated : 16th April 2018

Sheet UKQR2022
B2: 1 | C2: Name of Course | D2: Budi Penyayang | AK2: 1 | AL2: 1
C3: Course Code | D3: UKQR2022 | AJ3: √ | AK3: 2 | AL3: 2
B4: 2 | C4: Synopsis | D4: Kursus ini akan mendedahkan mahasiswa dengan program kemasyarakatan, kebajikan dan kesedaran. Mahasiswa juga akan diajar mengenai ciri-ciri kepimpinan dalam menguruskan sesebuah program. | U4: =D4 -> Kursus ini akan mendedahkan mahasiswa dengan program kemasyarakatan, kebajikan dan kesedaran. Mahasiswa juga akan diajar mengenai ciri-ciri kepimpinan dalam menguruskan sesebuah program. | AK4: 3 | AL4: 3
B5: 3 | C5: Name (s) of Academic Staff | D5: Wan Muhammad Silmi Bin Hamzah | AK5: 4 | AL5: 4
B6: 4 | C6: Semester | D6: Semester | E6: 1 | F6: Year | G6: 1 | AK6: 5
B7: 5 | C7: Credit Value | D7: =IF(T58=40,1,(IF(T58=80,2,(IF(T58=120,3,(IF(T58=160,4,IF(T58=200,5,IF(T58=240,6,""))))))))) -> 2 | AK7: 6
B8: 6 | C8: Pre-requisite / Co-requisite (if any) | AK8: 7
B9: 7 | C9: Course Learning Outcomes (CLO): At the end of the course the students will be able to: | AK9: 8
C10: (example) - explain the basic principles of immunisation (C2, PLO1) | AK10: 9
C11: CLO1 | D11: Bekerja secara kolaborasi dan berkomunikasi dengan berkesan dalam komuniti. (A3, TS3, LL2, PLO6) | U11: =D11 -> Bekerja secara kolaborasi dan berkomunikasi dengan berkesan dalam komuniti. (A3, TS3, LL2, PLO6) | AK11: 10
C12: CLO2 | D12: Mengaplikasikan pengetahuan dalam Budi Penyayang kepada komuniti. (C3, P3, PLO2) | U12: =D12 -> Mengaplikasikan pengetahuan dalam Budi Penyayang kepada komuniti. (C3, P3, PLO2) | AK12: 11
C13: CLO3 | D13: Mempraktikan kemahiran insaniah melalui program yang dijalankan bersama komuniti. (A3, EM2, PLO8)
AK14: 12
B15: 8 | C15: Mapping of the Course Learning Outcomes to the Programme Learning Outcomes, Teaching Methods and Assessment:
C16: Course Learning Outcomes (CLO) | D16: Programme Learning Outcomes (PLO) | P16: Teaching Methods | S16: Assessment
D17: PLO1 | E17: PLO2 | F17: PLO3 | G17: PLO4 | H17: PLO5 | I17: PLO6 | J17: PLO7 | K17: PLO8 | L17: PLO9 | M17: PLO10 | N17: PLO11 | O17: PLO12
C18: CLO1 | I18: √ | P18: Amali, Tugasan | S18: Kerja Lapangan | Tugasan | U18: =S18 -> Kerja Lapangan | Tugasan
C19: CLO2 | E19: √ | P19: Amali, Tugasan | S19: Kerja Lapangan | Tugasan
C20: CLO3 | K20: √ | P20: Amali, Tugasan | S20: Kerja Lapangan | Tugasan
C22: (The description must be read together with standards 2.1.2, 2.2.1 and 2.2.2 in Area 2 - pages 16 & 18)
B23: 9 | C23: Transferable skills (if applicable) | G23: 1 | H23: Kemahiran pembelajaran sepanjang hayat.
C24: (Skills learned in the course of study which can be useful and utilised in other settings) | G24: 2 | H24: Kemahiran kepimpinan dan kerja berpasukan
G25: 3 | H25: Kemahiran Etika dan profesionalisme
B26: 10 | C26: Distribution of Students Learning Time (SLT)
C27: Course Content Outline | G27: CLO | I27: Teaching and Learning Activities | T27: SLT
I28: Guided learning (F2F) | Q28: Guided Learning (NF2F) eg: e-learning | S28: Independent learning (NF2F)
I29: L | K29: T | M29: P | O29: O
C30: Langkah 1: Persediaan dan Perancangan | G30: CLO1 CLO2 CLO3 | I30: 3 | S30: 5 | T30: =SUM(I30:S30) -> 8
C31: Langkah 2: Servis dan Pembelajaran | G31: CLO1 CLO2 CLO3 | I31: 3 | S31: 5 | T31: =SUM(I31:S31) -> 8 | U31: =C31 -> Langkah 2: Servis dan Pembelajaran
C32: Langkah 3: Refleksi dan Aplikasi | G32: CLO1 CLO2 CLO3 | I32: 4 | S32: 13 | T32: 17 | U32: =C32 -> Langkah 3: Refleksi dan Aplikasi
C33: Langkah 4: Penilaian dan Demonstrasi | G33: CLO1 CLO2 CLO3 | I33: 4 | S33: 14 | T33: 18 | U33: Langkah 4: Penilaian dan Demonstrasi
U34: 0
U35: 0
U36: 0
U37: 0
U38: 0
U39: 0
C40: Total | T40: =SUM(T30:T39) -> 51 | U40: Total
C42: Continuous Assessment | L42: Percentage (%) | N42: F2F | Q42: NF2F | T42: SLT
C43: 1 | D43: Kerja Lapangan | L43: 30 | N43: 1 | Q43: 10 | T43: =SUM(N43:S43) -> 11
C44: 2 | D44: Laporan | L44: 20 | Q44: 2 | T44: =SUM(N44:S44) -> 2 | U44: =D44 -> Laporan
C45: 3 | D45: Pembentangan | L45: 10 | N45: 2 | Q45: 5 | T45: 7 | U45: =D45 -> Pembentangan
C46: 4 | D46: Aktiviti (Life long learning) | L46: 20 | N46: 2 | Q46: 6 | U46: Aktiviti (Life long learning)
C47: 5 | D47: Aktiviti (Kemahiran insaniah) | L47: 20 | N47: 1 | Q47: 8 | T47: 9 | U47: Aktiviti (Kemahiran insaniah)
C48: Total | T48: =SUM(T43:T47) -> 29 | U48: 0
C50: Final Assessment | L50: Percentage (%) | N50: F2F | Q50: NF2F | T50: SLT
C51: 1 | T51: =SUM(N51:S51) -> 0
C52: 2 | T52: =SUM(N52:S52) -> 0 | U52: =D52 -> 0
C53: 3 | T53: 0 | U53: =D53 -> 0
C54: 4 | T54: 0 | U54: 0
C55: 5 | T55: 0
T56: =SUM(T51:T55) -> 0 | U56: 0
C58: **Please tick (ü) in this course is Latihan Industri / Clinical Placement / Practicum / WBL using 2 weeks; 1 credit formula | T58: =+T40+T48+T56 -> 80
C59: L= Lecture, T=Tutorial, P=Practical, O=Others, F2F=Face to Face, NF2F=None Face to Face
C60: *Indicate the CLO based on the CLO's numbering in item 8
B61: 11 | C61: Identify special requirement to deliver the course (e.g: software, nursery, computer lab, simulation room, etc) | H61: None
U62: =H62 -> 0
B63: 12 | C63: References:
C64: (include required and further readings, and should be the most current) | U64: =H64 -> 0
B65: 13 | C65: Other additional Information | H65: Last updated : 16th April 2018 | U65: Last updated : 16th April 2018

Sheet UKQS2012
B2: 1 | C2: Name of Course | D2: Badminton | AK2: 1 | AL2: 1
C3: Course Code | D3: UKQS2012 | AJ3: √ | AK3: 2 | AL3: 2
B4: 2 | C4: Synopsis | D4: Kursus ini memperkenalkan kepada mahasiswa cara bemain badminton dengan berul, asas-asas kepada kemahiran bermain badminton serta melibatkan mahasiswa dengan latihan bermain dan menganjurkan serta mengendalikan suatu pertandingan. | U4: =D4 -> Kursus ini memperkenalkan kepada mahasiswa cara bemain badminton dengan berul, asas-asas kepada kemahiran bermain badminton serta melibatkan mahasiswa dengan latihan bermain dan menganjurkan serta mengendalikan suatu pertandingan. | AK4: 3 | AL4: 3
B5: 3 | C5: Name (s) of Academic Staff | D5: Wan Muhammad Silmi Bin Hamzah | AK5: 4 | AL5: 4
B6: 4 | C6: Semester | D6: Semester | E6: 1 | F6: Year | G6: 1 | AK6: 5
B7: 5 | C7: Credit Value | D7: =IF(T58=40,1,(IF(T58=80,2,(IF(T58=120,3,(IF(T58=160,4,IF(T58=200,5,IF(T58=240,6,""))))))))) -> 2 | AK7: 6
B8: 6 | C8: Pre-requisite / Co-requisite (if any) | AK8: 7
B9: 7 | C9: Course Learning Outcomes (CLO): At the end of the course the students will be able to: | AK9: 8
C10: (example) - explain the basic principles of immunisation (C2, PLO1) | AK10: 9
C11: CLO1 | D11: Bekerja secara kolaborasi dan berkomunikasi dengan berkesan dalam komuniti. (A3, TS3, LL2, PLO6) | U11: =D11 -> Bekerja secara kolaborasi dan berkomunikasi dengan berkesan dalam komuniti. (A3, TS3, LL2, PLO6) | AK11: 10
C12: CLO2 | D12: Mengaplikasikan pengetahuan dalam Badminton kepada komuniti. (C3, P3, PLO2) | U12: =D12 -> Mengaplikasikan pengetahuan dalam Badminton kepada komuniti. (C3, P3, PLO2) | AK12: 11
C13: CLO3 | D13: Mempraktikan kemahiran insaniah melalui program yang dijalankan bersama komuniti. (A3, EM2, PLO8)
AK14: 12
B15: 8 | C15: Mapping of the Course Learning Outcomes to the Programme Learning Outcomes, Teaching Methods and Assessment:
C16: Course Learning Outcomes (CLO) | D16: Programme Learning Outcomes (PLO) | P16: Teaching Methods | S16: Assessment
D17: PLO1 | E17: PLO2 | F17: PLO3 | G17: PLO4 | H17: PLO5 | I17: PLO6 | J17: PLO7 | K17: PLO8 | L17: PLO9 | M17: PLO10 | N17: PLO11 | O17: PLO12
C18: CLO1 | I18: √ | P18: Amali, Tugasan | S18: Kerja Lapangan | Tugasan | U18: =S18 -> Kerja Lapangan | Tugasan
C19: CLO2 | E19: √ | P19: Amali, Tugasan | S19: Kerja Lapangan | Tugasan
C20: CLO3 | K20: √ | P20: Amali, Tugasan | S20: Kerja Lapangan | Tugasan
C22: (The description must be read together with standards 2.1.2, 2.2.1 and 2.2.2 in Area 2 - pages 16 & 18)
B23: 9 | C23: Transferable skills (if applicable) | G23: 1 | H23: Kemahiran pembelajaran sepanjang hayat.
C24: (Skills learned in the course of study which can be useful and utilised in other settings) | G24: 2 | H24: Kemahiran kepimpinan dan kerja berpasukan
G25: 3 | H25: Kemahiran Etika dan profesionalisme
B26: 10 | C26: Distribution of Students Learning Time (SLT)
C27: Course Content Outline | G27: CLO | I27: Teaching and Learning Activities | T27: SLT
I28: Guided learning (F2F) | Q28: Guided Learning (NF2F) eg: e-learning | S28: Independent learning (NF2F)
I29: L | K29: T | M29: P | O29: O
C30: Langkah 1: Persediaan dan Perancangan | G30: CLO1 CLO2 CLO3 | I30: 3 | S30: 5 | T30: =SUM(I30:S30) -> 8
C31: Langkah 2: Servis dan Pembelajaran | G31: CLO1 CLO2 CLO3 | I31: 3 | S31: 5 | T31: =SUM(I31:S31) -> 8 | U31: =C31 -> Langkah 2: Servis dan Pembelajaran
C32: Langkah 3: Refleksi dan Aplikasi | G32: CLO1 CLO2 CLO3 | I32: 4 | S32: 13 | T32: 17 | U32: =C32 -> Langkah 3: Refleksi dan Aplikasi
C33: Langkah 4: Penilaian dan Demonstrasi | G33: CLO1 CLO2 CLO3 | I33: 4 | S33: 14 | T33: 18 | U33: Langkah 4: Penilaian dan Demonstrasi
U34: 0
U35: 0
U36: 0
U37: 0
U38: 0
U39: 0
C40: Total | T40: =SUM(T30:T39) -> 51 | U40: Total
C42: Continuous Assessment | L42: Percentage (%) | N42: F2F | Q42: NF2F | T42: SLT
C43: 1 | D43: Kerja Lapangan | L43: 30 | N43: 1 | Q43: 10 | T43: =SUM(N43:S43) -> 11
C44: 2 | D44: Laporan | L44: 20 | Q44: 2 | T44: =SUM(N44:S44) -> 2 | U44: =D44 -> Laporan
C45: 3 | D45: Pembentangan | L45: 10 | N45: 2 | Q45: 5 | T45: 7 | U45: =D45 -> Pembentangan
C46: 4 | D46: Aktiviti (Life long learning) | L46: 20 | N46: 2 | Q46: 6 | U46: Aktiviti (Life long learning)
C47: 5 | D47: Aktiviti (Kemahiran insaniah) | L47: 20 | N47: 1 | Q47: 8 | T47: 9 | U47: Aktiviti (Kemahiran insaniah)
C48: Total | T48: =SUM(T43:T47) -> 29 | U48: 0
C50: Final Assessment | L50: Percentage (%) | N50: F2F | Q50: NF2F | T50: SLT
C51: 1 | T51: =SUM(N51:S51) -> 0
C52: 2 | T52: =SUM(N52:S52) -> 0 | U52: =D52 -> 0
C53: 3 | T53: 0 | U53: =D53 -> 0
C54: 4 | T54: 0 | U54: 0
C55: 5 | T55: 0
T56: =SUM(T51:T55) -> 0 | U56: 0
C58: **Please tick (ü) in this course is Latihan Industri / Clinical Placement / Practicum / WBL using 2 weeks; 1 credit formula | T58: =+T40+T48+T56 -> 80
C59: L= Lecture, T=Tutorial, P=Practical, O=Others, F2F=Face to Face, NF2F=None Face to Face
C60: *Indicate the CLO based on the CLO's numbering in item 8
B61: 11 | C61: Identify special requirement to deliver the course (e.g: software, nursery, computer lab, simulation room, etc) | H61: None
U62: =H62 -> 0
B63: 12 | C63: References:
C64: (include required and further readings, and should be the most current) | U64: =H64 -> 0
B65: 13 | C65: Other additional Information | H65: Last updated : 16th April 2018 | U65: Last updated : 16th April 2018

Sheet UKQS2082
B2: 1 | C2: Name of Course | D2: Treking | AK2: 1 | AL2: 1
C3: Course Code | D3: UKQS2082 | AJ3: √ | AK3: 2 | AL3: 2
B4: 2 | C4: Synopsis | D4: Kursus ini akan memberikan pendedahan kepada mahasiswa akan prinsip-prinsip kegiatan "outdoor adventure", kemahiran keada pergerakan di hutan serta menerapkan kemahiran berdikari hidup dalam hutan. | U4: =D4 -> Kursus ini akan memberikan pendedahan kepada mahasiswa akan prinsip-prinsip kegiatan "outdoor adventure", kemahiran keada pergerakan di hutan serta menerapkan kemahiran berdikari hidup dalam hutan. | AK4: 3 | AL4: 3
B5: 3 | C5: Name (s) of Academic Staff | D5: Wan Muhammad Silmi Bin Hamzah | AK5: 4 | AL5: 4
B6: 4 | C6: Semester | D6: Semester | E6: 1 | F6: Year | G6: 1 | AK6: 5
B7: 5 | C7: Credit Value | D7: =IF(T58=40,1,(IF(T58=80,2,(IF(T58=120,3,(IF(T58=160,4,IF(T58=200,5,IF(T58=240,6,""))))))))) -> 2 | AK7: 6
B8: 6 | C8: Pre-requisite / Co-requisite (if any) | AK8: 7
B9: 7 | C9: Course Learning Outcomes (CLO): At the end of the course the students will be able to: | AK9: 8
C10: (example) - explain the basic principles of immunisation (C2, PLO1) | AK10: 9
C11: CLO1 | D11: Bekerja secara kolaborasi dan berkomunikasi dengan berkesan dalam komuniti. (A3, TS3, LL2, PLO6) | U11: =D11 -> Bekerja secara kolaborasi dan berkomunikasi dengan berkesan dalam komuniti. (A3, TS3, LL2, PLO6) | AK11: 10
C12: CLO2 | D12: Mengaplikasikan pengetahuan dalam Treking kepada komuniti. (C3, P3, PLO2) | U12: =D12 -> Mengaplikasikan pengetahuan dalam Treking kepada komuniti. (C3, P3, PLO2) | AK12: 11
C13: CLO3 | D13: Mempraktikan kemahiran insaniah melalui program yang dijalankan bersama komuniti. (A3, EM2, PLO8)
AK14: 12
B15: 8 | C15: Mapping of the Course Learning Outcomes to the Programme Learning Outcomes, Teaching Methods and Assessment:
C16: Course Learning Outcomes (CLO) | D16: Programme Learning Outcomes (PLO) | P16: Teaching Methods | S16: Assessment
D17: PLO1 | E17: PLO2 | F17: PLO3 | G17: PLO4 | H17: PLO5 | I17: PLO6 | J17: PLO7 | K17: PLO8 | L17: PLO9 | M17: PLO10 | N17: PLO11 | O17: PLO12
C18: CLO1 | I18: √ | P18: Amali, Tugasan | S18: Kerja Lapangan | Tugasan | U18: =S18 -> Kerja Lapangan | Tugasan
C19: CLO2 | E19: √ | P19: Amali, Tugasan | S19: Kerja Lapangan | Tugasan
C20: CLO3 | K20: √ | P20: Amali, Tugasan | S20: Kerja Lapangan | Tugasan
C22: (The description must be read together with standards 2.1.2, 2.2.1 and 2.2.2 in Area 2 - pages 16 & 18)
B23: 9 | C23: Transferable skills (if applicable) | G23: 1 | H23: Kemahiran pembelajaran sepanjang hayat.
C24: (Skills learned in the course of study which can be useful and utilised in other settings) | G24: 2 | H24: Kemahiran kepimpinan dan kerja berpasukan
G25: 3 | H25: Kemahiran Etika dan profesionalisme
B26: 10 | C26: Distribution of Students Learning Time (SLT)
C27: Course Content Outline | G27: CLO | I27: Teaching and Learning Activities | T27: SLT
I28: Guided learning (F2F) | Q28: Guided Learning (NF2F) eg: e-learning | S28: Independent learning (NF2F)
I29: L | K29: T | M29: P | O29: O
C30: Langkah 1: Persediaan dan Perancangan | G30: CLO1 CLO2 CLO3 | I30: 3 | S30: 5 | T30: =SUM(I30:S30) -> 8
C31: Langkah 2: Servis dan Pembelajaran | G31: CLO1 CLO2 CLO3 | I31: 3 | S31: 5 | T31: =SUM(I31:S31) -> 8 | U31: =C31 -> Langkah 2: Servis dan Pembelajaran
C32: Langkah 3: Refleksi dan Aplikasi | G32: CLO1 CLO2 CLO3 | I32: 4 | S32: 13 | T32: 17 | U32: =C32 -> Langkah 3: Refleksi dan Aplikasi
C33: Langkah 4: Penilaian dan Demonstrasi | G33: CLO1 CLO2 CLO3 | I33: 4 | S33: 14 | T33: 18 | U33: Langkah 4: Penilaian dan Demonstrasi
U34: 0
U35: 0
U36: 0
U37: 0
U38: 0
U39: 0
C40: Total | T40: =SUM(T30:T39) -> 51 | U40: Total
C42: Continuous Assessment | L42: Percentage (%) | N42: F2F | Q42: NF2F | T42: SLT
C43: 1 | D43: Kerja Lapangan | L43: 30 | N43: 1 | Q43: 10 | T43: =SUM(N43:S43) -> 11
C44: 2 | D44: Laporan | L44: 20 | Q44: 2 | T44: =SUM(N44:S44) -> 2 | U44: =D44 -> Laporan
C45: 3 | D45: Pembentangan | L45: 10 | N45: 2 | Q45: 5 | T45: 7 | U45: =D45 -> Pembentangan
C46: 4 | D46: Aktiviti (Life long learning) | L46: 20 | N46: 2 | Q46: 6 | U46: Aktiviti (Life long learning)
C47: 5 | D47: Aktiviti (Kemahiran insaniah) | L47: 20 | N47: 1 | Q47: 8 | T47: 9 | U47: Aktiviti (Kemahiran insaniah)
C48: Total | T48: =SUM(T43:T47) -> 29 | U48: 0
C50: Final Assessment | L50: Percentage (%) | N50: F2F | Q50: NF2F | T50: SLT
C51: 1 | T51: =SUM(N51:S51) -> 0
C52: 2 | T52: =SUM(N52:S52) -> 0 | U52: =D52 -> 0
C53: 3 | T53: 0 | U53: =D53 -> 0
C54: 4 | T54: 0 | U54: 0
C55: 5 | T55: 0
T56: =SUM(T51:T55) -> 0 | U56: 0
C58: **Please tick (ü) in this course is Latihan Industri / Clinical Placement / Practicum / WBL using 2 weeks; 1 credit formula | T58: =+T40+T48+T56 -> 80
C59: L= Lecture, T=Tutorial, P=Practical, O=Others, F2F=Face to Face, NF2F=None Face to Face
C60: *Indicate the CLO based on the CLO's numbering in item 8
B61: 11 | C61: Identify special requirement to deliver the course (e.g: software, nursery, computer lab, simulation room, etc) | H61: None
U62: =H62 -> 0
B63: 12 | C63: References:
C64: (include required and further readings, and should be the most current) | U64: =H64 -> 0
B65: 13 | C65: Other additional Information | H65: Last updated : 16th April 2018 | U65: Last updated : 16th April 2018

Sheet UKQS2102
B2: 1 | C2: Name of Course | D2: Iqra' | AK2: 1 | AL2: 1
C3: Course Code | D3: UKQS2102 | AJ3: √ | AK3: 2 | AL3: 2
B4: 2 | C4: Synopsis | D4: Kursus ini mendedahkan kepada mahasiswa cara mempelajari Al-Quran dengan cara yang mudah dan cepat dengan membaca modul iqra' dengan lancar mengikut kaedah iqra' dan mengaplikasikan tanda-tanda bacaan rasmi Uthman dalam cara bacaan Al-Quran. | U4: =D4 -> Kursus ini mendedahkan kepada mahasiswa cara mempelajari Al-Quran dengan cara yang mudah dan cepat dengan membaca modul iqra' dengan lancar mengikut kaedah iqra' dan mengaplikasikan tanda-tanda bacaan rasmi Uthman dalam cara bacaan Al-Quran. | AK4: 3 | AL4: 3
B5: 3 | C5: Name (s) of Academic Staff | D5: Wan Muhammad Silmi Bin Hamzah | AK5: 4 | AL5: 4
B6: 4 | C6: Semester | D6: Semester | E6: 1 | F6: Year | G6: 1 | AK6: 5
B7: 5 | C7: Credit Value | D7: =IF(T58=40,1,(IF(T58=80,2,(IF(T58=120,3,(IF(T58=160,4,IF(T58=200,5,IF(T58=240,6,""))))))))) -> 2 | AK7: 6
B8: 6 | C8: Pre-requisite / Co-requisite (if any) | AK8: 7
B9: 7 | C9: Course Learning Outcomes (CLO): At the end of the course the students will be able to: | AK9: 8
C10: (example) - explain the basic principles of immunisation (C2, PLO1) | AK10: 9
C11: CLO1 | D11: Bekerja secara kolaborasi dan berkomunikasi dengan berkesan dalam komuniti. (A3, TS3, LL2, PLO6) | U11: =D11 -> Bekerja secara kolaborasi dan berkomunikasi dengan berkesan dalam komuniti. (A3, TS3, LL2, PLO6) | AK11: 10
C12: CLO2 | D12: Mengaplikasikan pengetahuan dalam Modul Iqra' kepada komuniti. (C3, P3, PLO2) | U12: =D12 -> Mengaplikasikan pengetahuan dalam Modul Iqra' kepada komuniti. (C3, P3, PLO2) | AK12: 11
C13: CLO3 | D13: Mempraktikan kemahiran insaniah melalui program yang dijalankan bersama komuniti. (A3, EM2, PLO8)
AK14: 12
B15: 8 | C15: Mapping of the Course Learning Outcomes to the Programme Learning Outcomes, Teaching Methods and Assessment:
C16: Course Learning Outcomes (CLO) | D16: Programme Learning Outcomes (PLO) | P16: Teaching Methods | S16: Assessment
D17: PLO1 | E17: PLO2 | F17: PLO3 | G17: PLO4 | H17: PLO5 | I17: PLO6 | J17: PLO7 | K17: PLO8 | L17: PLO9 | M17: PLO10 | N17: PLO11 | O17: PLO12
C18: CLO1 | I18: √ | P18: Amali, Tugasan | S18: Kerja Lapangan | Tugasan | U18: =S18 -> Kerja Lapangan | Tugasan
C19: CLO2 | E19: √ | P19: Amali, Tugasan | S19: Kerja Lapangan | Tugasan
C20: CLO3 | K20: √ | P20: Amali, Tugasan | S20: Kerja Lapangan | Tugasan
C22: (The description must be read together with standards 2.1.2, 2.2.1 and 2.2.2 in Area 2 - pages 16 & 18)
B23: 9 | C23: Transferable skills (if applicable) | G23: 1 | H23: Kemahiran pembelajaran sepanjang hayat.
C24: (Skills learned in the course of study which can be useful and utilised in other settings) | G24: 2 | H24: Kemahiran kepimpinan dan kerja berpasukan
G25: 3 | H25: Kemahiran Etika dan profesionalisme
B26: 10 | C26: Distribution of Students Learning Time (SLT)
C27: Course Content Outline | G27: CLO | I27: Teaching and Learning Activities | T27: SLT
I28: Guided learning (F2F) | Q28: Guided Learning (NF2F) eg: e-learning | S28: Independent learning (NF2F)
I29: L | K29: T | M29: P | O29: O
C30: Langkah 1: Persediaan dan Perancangan | G30: CLO1 CLO2 CLO3 | I30: 3 | S30: 5 | T30: =SUM(I30:S30) -> 8
C31: Langkah 2: Servis dan Pembelajaran | G31: CLO1 CLO2 CLO3 | I31: 3 | S31: 5 | T31: =SUM(I31:S31) -> 8 | U31: =C31 -> Langkah 2: Servis dan Pembelajaran
C32: Langkah 3: Refleksi dan Aplikasi | G32: CLO1 CLO2 CLO3 | I32: 4 | S32: 13 | T32: 17 | U32: =C32 -> Langkah 3: Refleksi dan Aplikasi
C33: Langkah 4: Penilaian dan Demonstrasi | G33: CLO1 CLO2 CLO3 | I33: 4 | S33: 14 | T33: 18 | U33: Langkah 4: Penilaian dan Demonstrasi
U34: 0
U35: 0
U36: 0
U37: 0
U38: 0
U39: 0
C40: Total | T40: =SUM(T30:T39) -> 51 | U40: Total
C42: Continuous Assessment | L42: Percentage (%) | N42: F2F | Q42: NF2F | T42: SLT
C43: 1 | D43: Kerja Lapangan | L43: 30 | N43: 1 | Q43: 10 | T43: =SUM(N43:S43) -> 11
C44: 2 | D44: Laporan | L44: 20 | Q44: 2 | T44: =SUM(N44:S44) -> 2 | U44: =D44 -> Laporan
C45: 3 | D45: Pembentangan | L45: 10 | N45: 2 | Q45: 5 | T45: 7 | U45: =D45 -> Pembentangan
C46: 4 | D46: Aktiviti (Life long learning) | L46: 20 | N46: 2 | Q46: 6 | U46: Aktiviti (Life long learning)
C47: 5 | D47: Aktiviti (Kemahiran insaniah) | L47: 20 | N47: 1 | Q47: 8 | T47: 9 | U47: Aktiviti (Kemahiran insaniah)
C48: Total | T48: =SUM(T43:T47) -> 29 | U48: 0
C50: Final Assessment | L50: Percentage (%) | N50: F2F | Q50: NF2F | T50: SLT
C51: 1 | T51: =SUM(N51:S51) -> 0
C52: 2 | T52: =SUM(N52:S52) -> 0 | U52: =D52 -> 0
C53: 3 | T53: 0 | U53: =D53 -> 0
C54: 4 | T54: 0 | U54: 0
C55: 5 | T55: 0
T56: =SUM(T51:T55) -> 0 | U56: 0
C58: **Please tick (ü) in this course is Latihan Industri / Clinical Placement / Practicum / WBL using 2 weeks; 1 credit formula | T58: =+T40+T48+T56 -> 80
C59: L= Lecture, T=Tutorial, P=Practical, O=Others, F2F=Face to Face, NF2F=None Face to Face
C60: *Indicate the CLO based on the CLO's numbering in item 8
B61: 11 | C61: Identify special requirement to deliver the course (e.g: software, nursery, computer lab, simulation room, etc) | H61: None
U62: =H62 -> 0
B63: 12 | C63: References:
C64: (include required and further readings, and should be the most current) | U64: =H64 -> 0
B65: 13 | C65: Other additional Information | H65: Last updated : 16th April 2018 | U65: Last updated : 16th April 2018

Sheet DDWL2733
B2: 1 | C2: Name of Course | D2: Land Information and Land Tenure | AK2: 1 | AL2: 1
C3: Course Code | D3: DDWL2733 | AJ3: √ | AK3: 2 | AL3: 2
B4: 2 | C4: Synopsis | D4: This course introduces the structure of the land administration of Malaysia and describes every department's responsibilities under its administration. It focuses on the title record system kept at the Registrar and Land Office, registration of title, different types of land categories and land alienation. It also introduces the basic operation of surveying works which includes the measurement of angles, bearings and distances, traverse and heights, and the varoius computational aspects and problem solving commonly found in engineering surveys. It also shows the various types of survey plans and maps used. | U4: =D4 -> This course introduces the structure of the land administration of Malaysia and describes every department's responsibilities under its administration. It focuses on the title record system kept at the Registrar and Land Office, registration of title, different types of land categories and land alienation. It also introduces the basic operation of surveying works which includes the measurement of angles, bearings and distances, traverse and heights, and the varoius computational aspects and problem solving commonly found in engineering surveys. It also shows the various types of survey plans and maps used. | AK4: 3 | AL4: 3
B5: 3 | C5: Name (s) of Academic Staff | D5: Kamasuzaini binti Osman | AK5: 4 | AL5: 4
B6: 4 | C6: Semester | D6: Semester | E6: 1 | F6: Year | G6: 2 | AK6: 5
B7: 5 | C7: Credit Value | D7: =IF(T59=40,1,(IF(T59=80,2,(IF(T59=120,3,(IF(T59=160,4,IF(T59=200,5,IF(T59=240,6,""))))))))) -> 3 | AK7: 6
B8: 6 | C8: Pre-requisite / Co-requisite (if any) | AK8: 7
B9: 7 | C9: Course Learning Outcomes (CLO): At the end of the course the students will be able to: | AK9: 8
C10: (example) - explain the basic principles of immunisation (C2, PLO1) | AK10: 9
C11: CLO1 | D11: State varoius surveying operation and their usage (PLO1, C1-C3) | U11: =D11 -> State varoius surveying operation and their usage (PLO1, C1-C3) | AK11: 10
C12: CLO2 | D12: Explain the function of the Land Survey and Mapping Department. Land Office and, Land and Mineralogy (PLO2, C1-C2) | U12: =D12 -> Explain the function of the Land Survey and Mapping Department. Land Office and, Land and Mineralogy (PLO2, C1-C2) | AK12: 11
C13: CLO3 | D13: Differentiate the ownership system in Malaysia between final and qualified title, classification and category of land according to the National Land Code 1965 (PLO2, PLO4, C1-C3, P1-P3, CS1-CS3)
C14: CLO4 | D14: Apply in group the surveying measurements and computations such as traverse and height determination according to the Surveying and Mapping Department Land Surveying regulation 1976 (PLO3, PLO5, P1-P3, CTPS1-CTPS3, A1-A3, TS1-TS4) | AK14: 12
B15: 8 | C15: Mapping of the Course Learning Outcomes to the Programme Learning Outcomes, Teaching Methods and Assessment:
C16: Course Learning Outcomes (CLO) | D16: Programme Learning Outcomes (PLO) | P16: Teaching Methods | S16: Assessment
D17: PLO1 | E17: PLO2 | F17: PLO3 | G17: PLO4 | H17: PLO5 | I17: PLO6 | J17: PLO7 | K17: PLO8 | L17: PLO9 | M17: PLO10 | N17: PLO11 | O17: PLO12
C18: CLO1 | D18: √ | P18: Lecture | Discussion | S18: Test | U18: =S18 -> Test
C19: CLO2 | E19: √ | P19: Lecture | Discussion | Independent Study | S19: Assignment | Test | Final Examnination
C20: CLO3 | G20: √ | P20: Lecture | Discussion | Independent Study | S20: Assignment | Test | Final Examnination
C21: CLO4 | H21: √ | P21: Group Project | Co-operative Learning | S21: Project | Peer Assessment
C22: (The description must be read together with standards 2.1.2, 2.2.1 and 2.2.2 in Area 2 - pages 16 & 18)
B23: 9 | C23: Transferable skills (if applicable) | G23: 1 | H23: Knowledge and Practical Skill
C24: (Skills learned in the course of study which can be useful and utilised in other settings) | G24: 2 | H24: Communication and Teamwork
G25: 3 | H25: Problem Solving and Critical Thinking
B26: 10 | C26: Distribution of Students Learning Time (SLT)
C27: Course Content Outline | G27: CLO | I27: Teaching and Learning Activities | T27: SLT
I28: Guided learning (F2F) | Q28: Guided Learning (NF2F) eg: e-learning | S28: Independent learning (NF2F)
I29: L | K29: T | M29: P | O29: O
C30: 1.0 Introduction to Surveying 1.1 Definition 1.2 Survey branches 1.3 Survey classification 1.4 Role of JUPEM 1.5 Survey regulation | G30: CLO 2 | I30: 2 | K30: 3 | S30: 2 | T30: =SUM(I30:S30) -> 7
C31: 2.0 Basic surveying observation and measurement 2.1 Basic measurement 2.2 Survey principle 2.3 Field work 2.4 Coordinate system 2.5 Concept of errors in measurement | G31: CLO 1 | I31: 3 | K31: 4 | S31: 3 | T31: =SUM(I31:S31) -> 10 | U31: =C31 -> 2.0 Basic surveying observation and measurement 2.1 Basic measurement 2.2 Survey principle 2.3 Field work 2.4 Coordinate system 2.5 Concept of errors in measurement
C32: 3.0 Traverse surveying 3.1 Introduction 3.2 Types of traverse 3.3 Classification of traverse 3.4 Survey instrument 3.5 Traverse measurement 3.6 Traverse computation 3.7 Sources of errors | G32: CLO 4 | I32: 4 | K32: 4 | S32: 4 | T32: 12 | U32: =C32 -> 3.0 Traverse surveying 3.1 Introduction 3.2 Types of traverse 3.3 Classification of traverse 3.4 Survey instrument 3.5 Traverse measurement 3.6 Traverse computation 3.7 Sources of errors
C33: 4.0 Levelling 4.1 Introduction 4.2 Types and uses of levelling 4.3 Basic concept of levelling 4.4 Levelling datum 4.5 Levelling mark 4.6 Levelling instruments 4.7 Method of levelling work 4.8 Levelling booking and computation 4.9 Permissible error 5.0 Sources of errors | G33: CLO 4 | I33: 4 | K33: 4 | S33: 3 | T33: 11 | U33: 4.0 Levelling 4.1 Introduction 4.2 Types and uses of levelling 4.3 Basic concept of levelling 4.4 Levelling datum 4.5 Levelling mark 4.6 Levelling instruments 4.7 Method of levelling work 4.8 Levelling booking and computation 4.9 Permissible error 5.0 Sources of errors
C34: 5.0 Contour surveying 5.1 Introduction 5.2 Methods od contouring | G34: CLO 2 | I34: 3 | K34: 4 | S34: 3 | T34: 10 | U34: 5.0 Contour surveying 5.1 Introduction 5.2 Methods od contouring
C35: 6.0 Contour surveying 6.1 Volume calculation from contouring | G35: CLO 4 | I35: 2 | K35: 3 | S35: 4 | T35: 9 | U35: 6.0 Contour surveying 6.1 Volume calculation from contouring
C36: 7.0 Survey plans and maps 7.1 Introduction 7.2 Types of plans and maps 7.3 Elements of map 7.4 Plan design 7.5 Plotting method | G36: CLO 1 | I36: 2 | K36: 4 | S36: 2 | T36: 8 | U36: 7.0 Survey plans and maps 7.1 Introduction 7.2 Types of plans and maps 7.3 Elements of map 7.4 Plan design 7.5 Plotting method
C37: 8.0 Land administration structure and its responsibilities 8.1 Types of land law used in Malaysia 8.2 Types of agencies involved in the land administration structure - federal, state and district level 8.3 Responsibilities of each department involved | G37: CLO 3 | I37: 2 | K37: 4 | S37: 2 | T37: 8 | U37: 8.0 Land administration structure and its responsibilities 8.1 Types of land law used in Malaysia 8.2 Types of agencies involved in the land administration structure - federal, state and district level 8.3 Responsibilities of each department involved
C38: 9.0 Registration of title 9.1 Torren system 9.2 Principle of Torren system 9.3 Benefit of Torren system 9.4 Types of titles 9.5 Registration procedure and forms used | G38: CLO 3 | I38: 2 | K38: 4 | S38: 2 | T38: 8
C39: 10.0 Land categories 10.1 Purpose 10.2 Types of land categories - agriculture, building and industrial 10.3 Implied and express conditions 10.4 Penalty of breaking of condition | G39: CLO 3 | I39: 2 | K39: 4 | S39: 2 | T39: 8 | U39: =C39 -> 10.0 Land categories 10.1 Purpose 10.2 Types of land categories - agriculture, building and industrial 10.3 Implied and express conditions 10.4 Penalty of breaking of condition
C40: 11.0 Land alienation 11.1 Freehold and leasehold of state land 11.2 Freehold and leasehold of reserved land 11.3 Temporary Occupation License (TOL) 11.4 Permit | G40: CLO 3 | I40: 2 | K40: 4 | S40: 2 | T40: 8 | U40: 11.0 Land alienation 11.1 Freehold and leasehold of state land 11.2 Freehold and leasehold of reserved land 11.3 Temporary Occupation License (TOL) 11.4 Permit
C41: Total | T41: =SUM(T30:T40) -> 99 | U41: Total
C43: Continuous Assessment | L43: Percentage (%) | N43: F2F | Q43: NF2F | T43: SLT
C44: 1 | D44: Assignment 1 | L44: 5 | N44: 1 | Q44: 1 | T44: =SUM(N44:S44) -> 2
C45: 2 | D45: Assignment 2 | L45: 5 | N45: 1 | Q45: 1 | T45: =SUM(N45:S45) -> 2 | U45: =D45 -> Assignment 2
C46: 3 | D46: Test 1 | L46: 10 | N46: 1.5 | Q46: 2 | T46: 3.5 | U46: =D46 -> Test 1
C47: 4 | D47: Test 2 | L47: 10 | N47: 1.5 | Q47: 2 | T47: 3.5 | U47: Test 2
C48: 5 | D48: Project and presentation | L48: 10 | N48: 1.5 | Q48: 2 | T48: 3.5 | U48: Project and presentation
C49: Total | T49: =SUM(T44:T48) -> 14.5 | U49: 0
C51: Final Assessment | L51: Percentage (%) | N51: F2F | Q51: NF2F | T51: SLT
C52: 1 | D52: Final Examination | L52: 60 | N52: 2.5 | Q52: 4 | T52: =SUM(N52:S52) -> 6.5
C53: 2 | T53: =SUM(N53:S53) -> 0 | U53: =D53 -> 0
C54: 3 | T54: 0 | U54: =D54 -> 0
C55: 4 | T55: 0 | U55: 0
C56: 5 | T56: 0
T57: =SUM(T52:T56) -> 6.5 | U57: 0
C59: **Please tick (ü) in this course is Latihan Industri / Clinical Placement / Practicum / WBL using 2 weeks; 1 credit formula | T59: =+T41+T49+T57 -> 120
C60: L= Lecture, T=Tutorial, P=Practical, O=Others, F2F=Face to Face, NF2F=None Face to Face
C61: *Indicate the CLO based on the CLO's numbering in item 8
B62: 11 | C62: Identify special requirement to deliver the course (e.g: software, nursery, computer lab, simulation room, etc) | H62: None
U63: =H63 -> 0
B64: 12 | C64: References: | H64: 1. Kavanagh, B.F. (2015). Surveying With Construction Application. England: Pearson Prentice Hall. 2. Ghilani C.D, Wolf. P.R. (2016). Elementary Surveying: An Introduction To Geomatics. England: Pearson Prentice Hall. 3. Uren, J. And Price, W.F. (2010). Surveying For Engineers. New York: Palgrave Macmillan. 4. Uren, J. And Price, W.F. (2010). Surveying For Engineers. New York: Palgrave Macmillan. 5. Halmi Zainol. (2018). Perancangan Fizikal Kontemporari. Selangor: UiTM. 6. (2018). Laporan Pasaran Harta. Kuala Lumpur: Jabatan Penilaian Dan Perkhidmatan Harta (JPPH).
C65: (include required and further readings, and should be the most current) | U65: =H65 -> 0
B66: 13 | C66: Other additional Information | H66: Last updated : 9th February 2020 | U66: Last updated : 9th February 2020

Sheet DDWF2533
B2: 1 | C2: Name of Course | D2: Building Maintenance | AK2: 1 | AL2: 1
C3: Course Code | D3: DDWF2533 | AJ3: √ | AK3: 2 | AL3: 2
B4: 2 | C4: Synopsis | D4: This subject consists of introduction to building maintenance management system, cause and defects on building components and material and building defects. It also explains the maintenance approach and functions, planning and develop maintenance system, building surveys works and procedures, organization of building maintenance management and preventive maintenance. | U4: =D4 -> This subject consists of introduction to building maintenance management system, cause and defects on building components and material and building defects. It also explains the maintenance approach and functions, planning and develop maintenance system, building surveys works and procedures, organization of building maintenance management and preventive maintenance. | AK4: 3 | AL4: 3
B5: 3 | C5: Name (s) of Academic Staff | D5: Nasibah Az-zahra binti Rusli | AK5: 4 | AL5: 4
B6: 4 | C6: Semester | D6: Semester | E6: 3 | F6: Year | G6: 2 | AK6: 5
B7: 5 | C7: Credit Value | D7: =IF(T56=40,1,(IF(T56=80,2,(IF(T56=120,3,(IF(T56=160,4,IF(T56=200,5,IF(T56=240,6,""))))))))) -> 3 | AK7: 6
B8: 6 | C8: Pre-requisite / Co-requisite (if any) | AK8: 7
B9: 7 | C9: Course Learning Outcomes (CLO): At the end of the course the students will be able to: | AK9: 8
C10: (example) - explain the basic principles of immunisation (C2, PLO1) | AK10: 9
C11: CLO1 | D11: Describe and apply concepts of building maintenance management system. (PLO1, C3) | U11: =D11 -> Describe and apply concepts of building maintenance management system. (PLO1, C3) | AK11: 10
C12: CLO2 | D12: Demonstrate basic concepts of building maintenance to solve the building maintenance problems. (PLO3, P3, CTPS1) | U12: =D12 -> Demonstrate basic concepts of building maintenance to solve the building maintenance problems. (PLO3, P3, CTPS1) | AK12: 11
C13: CLO3 | D13: Express ideas clearly and effectively as well as demonstrate understnding. (PLO4, P3, CS1-CS3)
C14: CLO4 | D14: Practice ethics and values towards ineself and others. (PLO8, A3, EM1-EM2) | AK14: 12
B15: 8 | C15: Mapping of the Course Learning Outcomes to the Programme Learning Outcomes, Teaching Methods and Assessment:
C16: Course Learning Outcomes (CLO) | D16: Programme Learning Outcomes (PLO) | P16: Teaching Methods | S16: Assessment
D17: PLO1 | E17: PLO2 | F17: PLO3 | G17: PLO4 | H17: PLO5 | I17: PLO6 | J17: PLO7 | K17: PLO8 | L17: PLO9 | M17: PLO10 | N17: PLO11 | O17: PLO12
C18: CLO1 | D18: √ | P18: Lecture | Discussion | S18: Test | Final Examination | U18: =S18 -> Test | Final Examination
C19: CLO2 | F19: √ | P19: Lecture | Discussion | S19: Project
C20: CLO3 | G20: √ | P20: Lecture | Discuccion | Presentation | S20: Presentation
C21: CLO4 | K21: √ | P21: Group Discussion | Independent Learning | S21: Project
C22: (The description must be read together with standards 2.1.2, 2.2.1 and 2.2.2 in Area 2 - pages 16 & 18)
B23: 9 | C23: Transferable skills (if applicable) | G23: 1 | H23: Self-Management and Learning
C24: (Skills learned in the course of study which can be useful and utilised in other settings) | G24: 2 | H24: Communication and Teamwork
G25: 3 | H25: Problem Solving and Information Technology
B26: 10 | C26: Distribution of Students Learning Time (SLT)
C27: Course Content Outline | G27: CLO | I27: Teaching and Learning Activities | T27: SLT
I28: Guided learning (F2F) | Q28: Guided Learning (NF2F) eg: e-learning | S28: Independent learning (NF2F)
I29: L | K29: T | M29: P | O29: O
C30: 1.0 Introduction to Building Maintenance 1.1 Background introduction 1.2 Definition of building maintenance 1.3 Classification of building maintenance 1.4 Building maintenance management System. 1.5 General principle of building design | G30: CLO 1 | I30: 2 | K30: 4 | M30: 0 | S30: 4 | T30: =SUM(I30:S30) -> 10
C31: 2.0 Building Defects 2.1 The types of building defect 2.2 The several factors effecting building defect: humans factors, environmental factors etc. 2.3 The cause and the types of building components defect 2.4 The cause and the types of materials defect 2.5 Building maintenance objectives | G31: CLO 2 | I31: 2 | K31: 4 | O31: 0 | S31: 2 | T31: =SUM(I31:S31) -> 8 | U31: =C31 -> 2.0 Building Defects 2.1 The types of building defect 2.2 The several factors effecting building defect: humans factors, environmental factors etc. 2.3 The cause and the types of building components defect 2.4 The cause and the types of materials defect 2.5 Building maintenance objectives
C32: 3.0 Building Defect 3.1 Foundation 3.2 Roof 3.3 Staircase 3.4 Wall 3.5 Floor 3.6 Structure | G32: CLO 1 | I32: 6 | K32: 10 | S32: 4 | T32: 20 | U32: =C32 -> 3.0 Building Defect 3.1 Foundation 3.2 Roof 3.3 Staircase 3.4 Wall 3.5 Floor 3.6 Structure
C33: 4.0 Building Maintenance Works 4.1 Types of building maintenance work: 4.1.1 Planned maintenance 4.1.2 Unplanned maintenance 4.2 Building maintenance method 4.3 Building maintenance approach and practical 4.4 Function of building maintenance | G33: CLO 1 | I33: 4 | K33: 8 | S33: 4 | T33: 16 | U33: 4.0 Building Maintenance Works 4.1 Types of building maintenance work: 4.1.1 Planned maintenance 4.1.2 Unplanned maintenance 4.2 Building maintenance method 4.3 Building maintenance approach and practical 4.4 Function of building maintenance
C34: 5.0 Building Maintenance System Planning 5.1 Planning levels 5.2 Maintenance works planning 5.3 Maintenance time management and supervision 5.4 Financial and budget allocation 5.4.1 Building maintenance cost and expenses 5.4.2 Budget controlling and planning 5.4.3 Prepare report for budget allocation | G34: CLO 3 | I34: 4 | K34: 6 | S34: 4 | T34: 14 | U34: 5.0 Building Maintenance System Planning 5.1 Planning levels 5.2 Maintenance works planning 5.3 Maintenance time management and supervision 5.4 Financial and budget allocation 5.4.1 Building maintenance cost and expenses 5.4.2 Budget controlling and planning 5.4.3 Prepare report for budget allocation
C35: 6.0 Building Survey Procedure 6.1 Introduction 6.2 Tools and equipment for site inspection 6.3 Survey procedure and site inspection 6.4 Site inspection list 6.5 Survey and site inspection report | G35: CLO 2 | I35: 2 | K35: 4 | S35: 3 | T35: 9 | U35: 6.0 Building Survey Procedure 6.1 Introduction 6.2 Tools and equipment for site inspection 6.3 Survey procedure and site inspection 6.4 Site inspection list 6.5 Survey and site inspection report
C36: 7.0 Organization on Building Maintenance Management 7.1 Organization Structure 7.2 Management Hierarchy 7.3 Communication 7.4 Human Factors | G36: CLO 3 | I36: 2 | K36: 4 | S36: 4 | T36: 10 | U36: 7.0 Organization on Building Maintenance Management 7.1 Organization Structure 7.2 Management Hierarchy 7.3 Communication 7.4 Human Factors
C37: 8.0 Standard Maintenance Service and Operation 8.1 Standard Evaluation 8.2 Life Cycle Of Components and Materials 8.3 Maintenance Cycle 8.4 Preventive Maintenance | G37: CLO 4 | I37: 2 | K37: 4 | S37: 2 | T37: 8 | U37: 8.0 Standard Maintenance Service and Operation 8.1 Standard Evaluation 8.2 Life Cycle Of Components and Materials 8.3 Maintenance Cycle 8.4 Preventive Maintenance
C38: Total | T38: =SUM(T30:T37) -> 95 | U38: Total
C40: Continuous Assessment | L40: Percentage (%) | N40: F2F | Q40: NF2F | T40: SLT
C41: 1 | D41: Project | L41: 15 | N41: 2 | Q41: 3 | T41: =SUM(N41:S41) -> 5
C42: 2 | D42: Presentation | L42: 5 | N42: 2 | Q42: 3 | T42: =SUM(N42:S42) -> 5 | U42: =D42 -> Presentation
C43: 3 | D43: Test 1 | L43: 10 | N43: 2 | Q43: 2 | T43: 4 | U43: =D43 -> Test 1
C44: 4 | D44: Test 2 | L44: 10 | N44: 2 | Q44: 2 | T44: 4 | U44: Test 2
C45: 5 | T45: 0 | U45: 0
C46: Total | T46: =SUM(T41:T45) -> 18 | U46: 0
C48: Final Assessment | L48: Percentage (%) | N48: F2F | Q48: NF2F | T48: SLT
C49: 1 | D49: Final Examination | L49: 60 | N49: 2.5 | Q49: 4.5 | T49: =SUM(N49:S49) -> 7
C50: 2 | T50: =SUM(N50:S50) -> 0 | U50: =D50 -> 0
C51: 3 | T51: 0 | U51: =D51 -> 0
C52: 4 | T52: 0 | U52: 0
C53: 5 | T53: 0
T54: =SUM(T49:T53) -> 7 | U54: 0
C56: **Please tick (ü) in this course is Latihan Industri / Clinical Placement / Practicum / WBL using 2 weeks; 1 credit formula | T56: =+T38+T46+T54 -> 120
C57: L= Lecture, T=Tutorial, P=Practical, O=Others, F2F=Face to Face, NF2F=None Face to Face
C58: *Indicate the CLO based on the CLO's numbering in item 8
B59: 11 | C59: Identify special requirement to deliver the course (e.g: software, nursery, computer lab, simulation room, etc) | H59: None
U60: =H60 -> 0
B61: 12 | C61: References: | H61: 1. Barrier Chatter And Peter Swallow (2007). Building Maintenance Management. New York: Blackwell Publisher. 2. Cruzan, Ryan. (2009). Manager’s Guide To Preventive Building Maintenance. USA: Taylor & Francis Ltd. 3. Cotts, David G., Roper, Kathy O. & Payant, Richard P. (2014). The Facility Management Handbook. 3rd Ed. New York: AMACOM. 4. Cotts, David G., Roper, Kathy O. & Payant, Richard P. (2010). The Facility Management Handbook. 2nd. Ed. New York: AMACOM. 5. Abdul Hakim Bin Mohammed & Wan Min Bin Wan Mat. (1991). Teknologi Penyenggaraan Bangunan. KL: DBP. 6. Abdul Hakim Bin Mohammed & Wan Min Bin Wan Mat. (2000). Penyediaan tapak dan struktur bawah. KL:DBP. 7. Martani, Claudio. (2015). Risk Management In Architectural Design Control Of Uncertainty Over Building Use And Maintenance. UK: Springer.
C62: (include required and further readings, and should be the most current) | U62: =H62 -> 0
B63: 13 | C63: Other additional Information | H63: Last updated :16 March 2020 | U63: Last updated :16 March 2020

Sheet DDWF2433
B2: 1 | C2: Name of Course | D2: Investment Valuation | AK2: 1 | AL2: 1
C3: Course Code | D3: DDWF2433 | AJ3: √ | AK3: 2 | AL3: 2
B4: 2 | C4: Synopsis | D4: This course introduces students to theories and practices in property investment area. It will emphasize on the general concepts of investment, the usage of investment method in determining the capital value or rental of freehold or leasehold properties, rental elements, rates of returns and analyzing the investment alternatives. Students shall also be exposed to the cash flow techniques in property investment. Students shall also be introduced to REITS as an alternative in property investment. At the end of the course, students should also be able to demonstrate and apply the knowledge by producing a standard valuation report using the investment method and also able to analyze the return of investments within a given portfolio. Through assignments and project works, students are led to develop skills to communicate effectively, to lead and cooperate as team members, be highly motivated, disciplined and ethical. | U4: =D4 -> This course introduces students to theories and practices in property investment area. It will emphasize on the general concepts of investment, the usage of investment method in determining the capital value or rental of freehold or leasehold properties, rental elements, rates of returns and analyzing the investment alternatives. Students shall also be exposed to the cash flow techniques in property investment. Students shall also be introduced to REITS as an alternative in property investment. At the end of the course, students should also be able to demonstrate and apply the knowledge by producing a standard valuation report using the investment method and also able to analyze the return of investments within a given portfolio. Through assignments and project works, students are led to develop skills to communicate effectively, to lead and cooperate as team members, be highly motivated, disciplined and ethical. | AK4: 3 | AL4: 3
B5: 3 | C5: Name (s) of Academic Staff | D5: Rosman Adli bin Osman | AK5: 4 | AL5: 4
B6: 4 | C6: Semester | D6: Semester | E6: 3 | F6: Year | G6: 2 | AK6: 5
B7: 5 | C7: Credit Value | D7: =IF(T59=40,1,(IF(T59=80,2,(IF(T59=120,3,(IF(T59=160,4,IF(T59=200,5,IF(T59=240,6,""))))))))) -> 3 | AK7: 6
B8: 6 | C8: Pre-requisite / Co-requisite (if any) | D8: DDWF1433 (Valuation Mehodology) | AK8: 7
B9: 7 | C9: Course Learning Outcomes (CLO): At the end of the course the students will be able to: | AK9: 8
C10: (example) - explain the basic principles of immunisation (C2, PLO1) | AK10: 9
C11: CLO1 | D11: • Acquire knowledge of property valuation and investment, rate of return for property investment and different types of investment. • Differentiate between the usage of amount per annum, premium decision, concept and usage of annuity value. • Able to adopt and use the Parry’s Valuation Table valuation property investment calculation, in order to support the decision making for property investment. (PLO1, C1-C3) | U11: =D11 -> • Acquire knowledge of property valuation and investment, rate of return for property investment and different types of investment. • Differentiate between the usage of amount per annum, premium decision, concept and usage of annuity value. • Able to adopt and use the Parry’s Valuation Table valuation property investment calculation, in order to support the decision making for property investment. (PLO1, C1-C3) | AK11: 10
C12: CLO2 | D12: Calculate and evaluate gross income, net income, IRR etc. (PLO3, P1-P3, CTPS1-CTPS3) | U12: =D12 -> Calculate and evaluate gross income, net income, IRR etc. (PLO3, P1-P3, CTPS1-CTPS3) | AK12: 11
C13: CLO3 | D13: Practise moral values, ethics and professionalism towards oneself and one’s work. (PLO8, A1-A3, EM1-EM2)
C14: CLO4 | AK14: 12
B15: 8 | C15: Mapping of the Course Learning Outcomes to the Programme Learning Outcomes, Teaching Methods and Assessment:
C16: Course Learning Outcomes (CLO) | D16: Programme Learning Outcomes (PLO) | P16: Teaching Methods | S16: Assessment
D17: PLO1 | E17: PLO2 | F17: PLO3 | G17: PLO4 | H17: PLO5 | I17: PLO6 | J17: PLO7 | K17: PLO8 | L17: PLO9 | M17: PLO10 | N17: PLO11 | O17: PLO12
C18: CLO1 | D18: √ | P18: Lecture | Discussion | S18: Assignment | Test | Final Examination | U18: =S18 -> Assignment | Test | Final Examination
C19: CLO2 | F19: √ | P19: Lecture | Discussion | S19: Project | Test | Final Examination
C20: CLO3 | K20: √ | P20: Lecture | Presentation | S20: Project
C21: CLO4
C22: (The description must be read together with standards 2.1.2, 2.2.1 and 2.2.2 in Area 2 - pages 16 & 18)
B23: 9 | C23: Transferable skills (if applicable) | G23: 1 | H23: Self-Management and Learning
C24: (Skills learned in the course of study which can be useful and utilised in other settings) | G24: 2 | H24: Communication and Teamwork
G25: 3 | H25: Problem Solving and Information Technology
B26: 10 | C26: Distribution of Students Learning Time (SLT)
C27: Course Content Outline | G27: CLO | I27: Teaching and Learning Activities | T27: SLT
I28: Guided learning (F2F) | Q28: Guided Learning (NF2F) eg: e-learning | S28: Independent learning (NF2F)
I29: L | K29: T | M29: P | O29: O
C30: 1.0 Introduction og Property Investment 1.1 Types of necessity in property 1.2 Criteria of the property 1.3 Factors that influnce value 1.4 Return from property investment 1.5 Other types of investment - REITS | G30: CLO 1 | I30: 2 | K30: 4 | M30: 0 | S30: 2 | T30: =SUM(I30:S30) -> 8
C31: 2.0 Determination of rent 2.1 Principles of rent decision 2.2 Rent characteristic 2.3 Outgoings and expenditures and building vacancy 2.4 Net and gross rent 2.5 Rent analysis and building measurement calculation | G31: CLO 1 | I31: 2 | K31: 4 | O31: 0 | S31: 4 | T31: =SUM(I31:S31) -> 10 | U31: =C31 -> 2.0 Determination of rent 2.1 Principles of rent decision 2.2 Rent characteristic 2.3 Outgoings and expenditures and building vacancy 2.4 Net and gross rent 2.5 Rent analysis and building measurement calculation
C32: 3.0 Rate of Return (In Perpetuity) 3.1 Formula's and calculation 3.2 Factors influence the rate of return 3.3 How to use Parry's Table Book | G32: CLO 3 | I32: 2 | K32: 4 | S32: 2 | T32: 8 | U32: =C32 -> 3.0 Rate of Return (In Perpetuity) 3.1 Formula's and calculation 3.2 Factors influence the rate of return 3.3 How to use Parry's Table Book
C33: 4.0 Introduction of Years's Purchase (Dual Rate) 4.1 Year's purchase (dual rate) 4.2 Annual sinking fund 4.3 Usage and tax impact towards annual sinking fund | G33: CLO 1 | I33: 2 | K33: 4 | S33: 3 | T33: 9 | U33: 4.0 Introduction of Years's Purchase (Dual Rate) 4.1 Year's purchase (dual rate) 4.2 Annual sinking fund 4.3 Usage and tax impact towards annual sinking fund
C34: 5.0 Valuation Principles Using Rent Information 5.1 Investment principles and calculation Formula; CV = NI x YP | G34: CLO 2 | I34: 2 | K34: 4 | S34: 3 | T34: 9 | U34: 5.0 Valuation Principles Using Rent Information 5.1 Investment principles and calculation Formula; CV = NI x YP
C35: 6.0 Usage of the Annuity Value 6.1 Formula's introduction and the usage of formula's | G35: CLO 2 | I35: 2 | K35: 4 | S35: 3 | T35: 9 | U35: 6.0 Usage of the Annuity Value 6.1 Formula's introduction and the usage of formula's
C36: 7.0 Concept of Extensions and Renewal of Leases 7.1 Concept of extensions 7.2 Renewal of leases application | G36: CLO 2 | I36: 2 | K36: 4 | S36: 4 | T36: 10 | U36: 7.0 Concept of Extensions and Renewal of Leases 7.1 Concept of extensions 7.2 Renewal of leases application
C37: 8.0 Premium Decision 8.1 The concept 8.2 Condition of the premium usage 8.3 Pinciples of premium calculation | G37: CLO 2 | I37: 2 | K37: 4 | S37: 2 | T37: 8 | U37: 8.0 Premium Decision 8.1 The concept 8.2 Condition of the premium usage 8.3 Pinciples of premium calculation
C38: 9.0 Concept of Joint Valuation 9.1 Concept definition 9.2 The usage 9.3 Principle of calculation | G38: CLO 3 | I38: 2 | K38: 4 | S38: 2 | T38: 8 | U38: 9.0 Concept of Joint Valuation 9.1 Concept definition 9.2 The usage 9.3 Principle of calculation
C39: 10.0 Introduction to Discounted Cash Flow 10.1 The concept of discounted cash flow (DCF) 10.2 Net Present Value (NPV) 10.3 Internal rate or return (IRR) 10.3.1 Calculation and usage | G39: CLO 2 | I39: 2 | K39: 4 | S39: 2 | T39: 8 | U39: 10.0 Introduction to Discounted Cash Flow 10.1 The concept of discounted cash flow (DCF) 10.2 Net Present Value (NPV) 10.3 Internal rate or return (IRR) 10.3.1 Calculation and usage
C40: 11.0 Property Valuation for Varoius Purpose 11.1 Buy 11.2 Sel 11.3 Mortgage 11.4 Auction | G40: CLO 3 | I40: 2 | K40: 4 | S40: 2 | T40: 8 | U40: 11.0 Property Valuation for Varoius Purpose 11.1 Buy 11.2 Sel 11.3 Mortgage 11.4 Auction
C41: Total | T41: =SUM(T30:T40) -> 95 | U41: Total
C43: Continuous Assessment | L43: Percentage (%) | N43: F2F | Q43: NF2F | T43: SLT
C44: 1 | D44: Project | L44: 15 | N44: 2 | Q44: 3 | T44: =SUM(N44:S44) -> 5
C45: 2 | D45: Quiz | L45: 5 | N45: 2 | Q45: 3 | T45: =SUM(N45:S45) -> 5 | U45: =D45 -> Quiz
C46: 3 | D46: Test 1 | L46: 10 | N46: 2 | Q46: 2 | T46: 4 | U46: =D46 -> Test 1
C47: 4 | D47: Test 2 | L47: 10 | N47: 2 | Q47: 2 | T47: 4 | U47: Test 2
C48: 5 | T48: 0 | U48: 0
C49: Total | T49: =SUM(T44:T48) -> 18 | U49: 0
C51: Final Assessment | L51: Percentage (%) | N51: F2F | Q51: NF2F | T51: SLT
C52: 1 | D52: Final Examination | L52: 60 | N52: 2.5 | Q52: 4.5 | T52: =SUM(N52:S52) -> 7
C53: 2 | T53: =SUM(N53:S53) -> 0 | U53: =D53 -> 0
C54: 3 | T54: 0 | U54: =D54 -> 0
C55: 4 | T55: 0 | U55: 0
C56: 5 | T56: 0
T57: =SUM(T52:T56) -> 7 | U57: 0
C59: **Please tick (ü) in this course is Latihan Industri / Clinical Placement / Practicum / WBL using 2 weeks; 1 credit formula | T59: =+T41+T49+T57 -> 120
C60: L= Lecture, T=Tutorial, P=Practical, O=Others, F2F=Face to Face, NF2F=None Face to Face
C61: *Indicate the CLO based on the CLO's numbering in item 8
B62: 11 | C62: Identify special requirement to deliver the course (e.g: software, nursery, computer lab, simulation room, etc) | H62: None
U63: =H63 -> 0
B64: 12 | C64: References: | H64: 1. Baum, Andrew. (2009). Commercial Real Estate Investment. A Strategic Approach. London: Estates Gazette. 2. Martin J Gruber, Stephen J Brown & William N. Goetzman. (1987). Modern Portfolio and Investment Analysis. 3. Ismail Omar. (2002) Pelaburan Harta Tanah. Kuala Lumpur: Dewan Bahasa dan Pustaka. 4. Ismail Omar, Shahrom Md. Ariffin & Mazlan Ismail. (2012) Prinsip-Prinsip Pelaburan Harta Tanah. Edisi Kedua. Kuala Lumpur: Dewan Bahasa dan Pustaka. 5. Elton, Edwin J. (2014). Modern Portfolio Theory And Investment Analysis. New York: John Wiley. 6. Isaac, David. (1998). Property investment. London: Macmillan. 7. Peter, Wyatt (2007). Property Valuation: In Economic Context. New York: Blackwell Publishing. 8. The Board of Valuers, Appraisers, Estate Agents and Property Managers (LPPEH). (2015). Malaysian Valuation Standards. (MVS). 5th ed. Kuala Lumpur : The Board Of Valuers , Appraisers And Estate Agents and Property Managers (LPPEH). 9. The Board of Valuers, Appraisers, Estate Agents and Property Managers. (LPPEH). (2019). Malaysian Valuation Standards. (MVS). 6th ed. Kuala Lumpur: The Board of Valuers, Appraisers and Estate Agents and Property Managers (LPPEH). 10. Parker, David. (2016). International Valuation Standards: A Guide To The Valuation Of Real Property Assets. New York: John Wiley.
C65: (include required and further readings, and should be the most current) | U65: =H65 -> 0
B66: 13 | C66: Other additional Information | H66: Last updated : 9st February 2020 | U66: Last updated : 9st February 2020

Sheet DDWF2232
B2: 1 | C2: Name of Course | D2: Statistics for Real Estate Manager | AK2: 1 | AL2: 1
C3: Course Code | D3: DDWF2232 | AJ3: √ | AK3: 2 | AL3: 2
B4: 2 | C4: Synopsis | D4: This course consists of introduction to statistics for manager. Before statistics analysis, student should know the concept of sampling theory and types types of statistics and the types of data, the theory of data collection, arranging data, presenting the data and analyze the data. Analyze the data is very important to property manager and using the result of analysis for decision-making of for management. Analysis of statistics consists of measure of central tendency and dispersion, correlation and simple linear regression, multiple regression, index. Through assignments and project work, students are led to develop skills to communicate effectively, to lead and cooperate as team members, be highly motivated, disciplined and ethical. | U4: =D4 -> This course consists of introduction to statistics for manager. Before statistics analysis, student should know the concept of sampling theory and types types of statistics and the types of data, the theory of data collection, arranging data, presenting the data and analyze the data. Analyze the data is very important to property manager and using the result of analysis for decision-making of for management. Analysis of statistics consists of measure of central tendency and dispersion, correlation and simple linear regression, multiple regression, index. Through assignments and project work, students are led to develop skills to communicate effectively, to lead and cooperate as team members, be highly motivated, disciplined and ethical. | AK4: 3 | AL4: 3
B5: 3 | C5: Name (s) of Academic Staff | D5: Dr Jusoh Bin Yacob | AK5: 4 | AL5: 4
B6: 4 | C6: Semester | D6: Semester | E6: 1 | F6: Year | G6: 2 | AK6: 5
B7: 5 | C7: Credit Value | D7: =IF(T55=40,1,(IF(T55=80,2,(IF(T55=120,3,(IF(T55=160,4,IF(T55=200,5,IF(T55=240,6,""))))))))) -> 2 | AK7: 6
B8: 6 | C8: Pre-requisite / Co-requisite (if any) | AK8: 7
B9: 7 | C9: Course Learning Outcomes (CLO): At the end of the course the students will be able to: | AK9: 8
C10: (example) - explain the basic principles of immunisation (C2, PLO1) | AK10: 9
C11: CLO1 | D11: Describe and explain the concept and the methodology of sampling techniques to solve the problem in real estate.(PLO1, C3) | U11: =D11 -> Describe and explain the concept and the methodology of sampling techniques to solve the problem in real estate.(PLO1, C3) | AK11: 10
C12: CLO2 | D12: Define an index number, compute and evaluate the simple index, composite index and weighted index numbers. Conduct a mini project-collect the raw data. Organize, analysis and present the the raw data into statistical analysis. (PLO3, P1-P3, CTPS1-CTPS2) | U12: Define an index number, compute and evaluate the simple index, composite index and weighted index numbers. Conduct a mini project-collect the raw data. Organize, analysis and present the the raw data into statistical analysis. (PLO3, P1-P3, CTPS1-CTPS2) | AK12: 11
C13: CLO3 | D13: Develop qualities of an effective team player and reporting information. (PLO5, A1-A3, TS-TS2)
C14: CLO4 | D14: Demonstrate and practice leaderships skills and qualities. (PLO9, A1-A3, LS-LS2) | AK14: 12
B15: 8 | C15: Mapping of the Course Learning Outcomes to the Programme Learning Outcomes, Teaching Methods and Assessment:
C16: Course Learning Outcomes (CLO) | D16: Programme Learning Outcomes (PLO) | P16: Teaching Methods | S16: Assessment
D17: PLO1 | E17: PLO2 | F17: PLO3 | G17: PLO4 | H17: PLO5 | I17: PLO6 | J17: PLO7 | K17: PLO8 | L17: PLO9 | M17: PLO10 | N17: PLO11 | O17: PLO12
C18: CLO1 | D18: √ | P18: Lecture | Discussion| In-class exercises | S18: Quiz | Test | Final Examination | U18: =S18 -> Quiz | Test | Final Examination
C19: CLO2 | F19: √ | P19: Lecture | Discussion|In-class exercises | S19: Project
C20: CLO3 | H20: √ | P20: Lecture | Discusion | Co-operative Learning|Individual and group mini project | S20: Tutorial | Project
C21: CLO4 | L21: √ | P21: Discussion | In-class exercises|Individual and group mini project | S21: Tutorial| Project
C22: (The description must be read together with standards 2.1.2, 2.2.1 and 2.2.2 in Area 2 - pages 16 & 18)
B23: 9 | C23: Transferable skills (if applicable) | G23: 1 | H23: Knowledge
C24: (Skills learned in the course of study which can be useful and utilised in other settings) | G24: 2 | H24: Thinking skill and scientific approach
G25: 3 | H25: Social skills and reponsibility
B26: 10 | C26: Distribution of Students Learning Time (SLT)
C27: Course Content Outline | G27: CLO | I27: Teaching and Learning Activities | T27: SLT
I28: Guided learning (F2F) | Q28: Guided Learning (NF2F) eg: e-learning | S28: Independent learning (NF2F)
I29: L | K29: T | M29: P | O29: O
C30: 1.0 Introduction to statistics and the sampling theory 1.1 Terms and definitions 1.2 Types of variables or data 1.3 Collection of data-population 1.4 Sampling methods | G30: CLO1 | I30: 4 | K30: 2 | S30: 2 | T30: =SUM(I30:S30) -> 8
C31: 2.0 Presenting data 2.1 Organizing Data--grouped and ungrouped data. The ordered array ascending & descending 2.2 Table presentation-Constructing a frequency, relative frequency & cumulative distribution 2.3 Charts and graphics presentation | G31: CLO1/CLO 2/ CLO3/ CLO 4 | I31: 4 | K31: 2 | S31: 3 | T31: 9 | U31: =C31 -> 2.0 Presenting data 2.1 Organizing Data--grouped and ungrouped data. The ordered array ascending & descending 2.2 Table presentation-Constructing a frequency, relative frequency & cumulative distribution 2.3 Charts and graphics presentation
C32: 3.0 Describing data--Measures of central tendency 3.1 Measurement of central tendency-mean, median and mode for ungrouped and grouped data 3.2 Relationship between mean, median and mode-skewness and kurtosis | G32: CLO 2/ CLO3/ CLO 4 | I32: 4 | K32: 2 | S32: 4 | T32: 10 | U32: 3.0 Describing data--Measures of central tendency 3.1 Measurement of central tendency-mean, median and mode for ungrouped and grouped data 3.2 Relationship between mean, median and mode-skewness and kurtosis
C33: 4.0 Describing data--Measures of dispersion 4.1 Measurement of dispersion-range, variance, standard deviation and coefficient variation 4.2 Interpretation and uses of the standard deviation | G33: CLO 3/ CLO 3/ CLO4 | I33: 4 | K33: 2 | S33: 3.5 | T33: 9.5 | U33: 4.0 Describing data--Measures of dispersion 4.1 Measurement of dispersion-range, variance, standard deviation and coefficient variation 4.2 Interpretation and uses of the standard deviation
C34: 5.0 Correlation and simple regression 5.1 Introduction to correlation 5.2 The coefficient of correlation and determination 5.3 Introduction to simple linear regression 5.4 Simple linear regression equation-the coefficient of regression. 5.5 The standard error of the estimate. | G34: CLO 2/ CLO 3/ CLO 4 | I34: 4 | K34: 2 | S34: 4 | T34: 10 | U34: 5.0 Correlation and simple regression 5.1 Introduction to correlation 5.2 The coefficient of correlation and determination 5.3 Introduction to simple linear regression 5.4 Simple linear regression equation-the coefficient of regression. 5.5 The standard error of the estimate.
C35: 6.0 Multiple regression 6.1 Introduction to multiple regression 6.2 Developing the multiple regression model. 6.3 Interpreting the multiple regression coefficients. 6.4 Multiple standard error of estimate. | G35: CLO2 | I35: 4 | K35: 2 | S35: 4 | T35: 10 | U35: 6.0 Multiple regression 6.1 Introduction to multiple regression 6.2 Developing the multiple regression model. 6.3 Interpreting the multiple regression coefficients. 6.4 Multiple standard error of estimate.
C36: 7.0 Index numbers 7.1 Introduction to index number 7.2 Uses of index numbers 7.3 Simple index, un-weighted aggregates, weighted aggregates index-price, quantity and value indices | G36: CLO2 | I36: 4 | K36: 2 | S36: 4 | T36: 10 | U36: 7.0 Index numbers 7.1 Introduction to index number 7.2 Uses of index numbers 7.3 Simple index, un-weighted aggregates, weighted aggregates index-price, quantity and value indices
C37: Total | T37: =SUM(T30:T36) -> 66.5 | U37: Total
C39: Continuous Assessment | L39: Percentage (%) | N39: F2F | Q39: NF2F | T39: SLT
C40: 1 | D40: Quiz(5) | L40: 10 | N40: 2.5 | T40: =SUM(N40:S40) -> 2.5
C41: 2 | D41: Mini project | L41: 5 | N41: 2 | Q41: 5 | T41: 7 | U41: =D41 -> Mini project
C42: 3 | D42: Test 1 | L42: 10 | N42: 1 | T42: 1 | U42: Test 1
C43: 4 | D43: Test 2 | L43: 15 | N43: 1 | T43: 1 | U43: Test 2
C44: 5 | T44: 0 | U44: 0
C45: Total | T45: =SUM(T40:T44) -> 11.5 | U45: 0
C47: Final Assessment | L47: Percentage (%) | N47: F2F | Q47: NF2F | T47: SLT
C48: 1 | D48: Final Examination | L48: 60 | N48: 2 | T48: =SUM(N48:S48) -> 2
C49: 2 | T49: 0 | U49: =D49 -> 0
C50: 3 | T50: 0 | U50: 0
C51: 4 | T51: 0 | U51: 0
C52: 5 | T52: 0
T53: =SUM(T48:T52) -> 2 | U53: =D53 -> 0
C55: **Please tick (ü) in this course is Latihan Industri / Clinical Placement / Practicum / WBL using 2 weeks; 1 credit formula | T55: =+T37+T45+T53 -> 80
C56: L= Lecture, T=Tutorial, P=Practical, O=Others, F2F=Face to Face, NF2F=None Face to Face
C57: *Indicate the CLO based on the CLO's numbering in item 8
B58: 11 | C58: Identify special requirement to deliver the course (e.g: software, nursery, computer lab, simulation room, etc) | H58: Software: SPSS, Excel, Google Sheets
U59: =H59 -> 0
B60: 12 | C60: References: | H60: 1. Krehbiel. (2012). Basic Business Statistics Concepts and Applications. New Jersey: Prentice Hall. 2. Richard I. Levin, David S. Rubin. (1998). Statistics for Management. New Jersey: Prentice Hall. 3. Mohamad Rozi Malim. (2011). Business Statistics. New York: Oxford. 4. Lau Too Kya, Zainuddin Awang. (1996). Statistik Asas ITM. Selangor: Fajar Bakti Sdn. Bhd. 5. Lau Too Kya,Phang Yook Ngor & Zainuddin Awang. (2015). Statistics. Selangor: Oxford Fajar Sdn. Bhd. 6. Keller, Gerald. (2018). Statistics For Management And Economics. USA: Cengage. 7. Douglas A. Lind, William G. Marchal And Samuel A. Wathen. (2019).Basic Statistics For Business & Economics. 9th ed. New York: Mc Graw Hill. 8. Bluman, Allan G. (2018). Elementary Statistics: A Step By Step Approach. 10th Ed. New York: John Wiley. 9. Bluman, Allan G. (2010). Elementary Statistics: A Step By Step Approach. 6h Ed. New York: John Wiley.
C61: (include required and further readings, and should be the most current) | U61: =H61 -> 0
C62: (include required and further readings, and should be the most current)
B63: 13 | C63: Other additional Information | H63: Last updated: 9 February 2020 | U63: =H63 -> Last updated: 9 February 2020

Sheet DDWF2333
B2: 1 | C2: Name of Course | D2: Real Estate Management | AK2: 1 | AL2: 1
C3: Course Code | D3: DDWF2333 | AJ3: √ | AK3: 2 | AL3: 2
B4: 2 | C4: Synopsis | D4: This course introduces students to some major views, theories and practices in property management as one of the important profession in the real estate industry. It emphasizes on the general concepts of property management, introduces the theory and best practice of tenancy management for several types of properties and examines the major elements in tenancy agreement. It will also cover some other important areas of property management such as building maintenance, property marketing, data management, security management, and car park management. At the end of the course, students should be able to apply the theories and demonstrate their understanding towards the profession by completing some assignments and final project. | U4: =D4 -> This course introduces students to some major views, theories and practices in property management as one of the important profession in the real estate industry. It emphasizes on the general concepts of property management, introduces the theory and best practice of tenancy management for several types of properties and examines the major elements in tenancy agreement. It will also cover some other important areas of property management such as building maintenance, property marketing, data management, security management, and car park management. At the end of the course, students should be able to apply the theories and demonstrate their understanding towards the profession by completing some assignments and final project. | AK4: 3 | AL4: 3
B5: 3 | C5: Name (s) of Academic Staff | D5: Rosman Adli bin Osman | AK5: 4 | AL5: 4
B6: 4 | C6: Semester | D6: Semester | E6: 3 | F6: Year | G6: 2 | AK6: 5
B7: 5 | C7: Credit Value | D7: =IF(T58=40,1,(IF(T58=80,2,(IF(T58=120,3,(IF(T58=160,4,IF(T58=200,5,IF(T58=240,6,""))))))))) -> 3 | AK7: 6
B8: 6 | C8: Pre-requisite / Co-requisite (if any) | AK8: 7
B9: 7 | C9: Course Learning Outcomes (CLO): At the end of the course the students will be able to: | AK9: 8
C10: (example) - explain the basic principles of immunisation (C2, PLO1) | AK10: 9
C11: CLO1 | D11: Describe and explain the various aspect of property management based on the current requirement from the aspects of building maintenance, facilities management, property law and human resource in Malaysian. (PLO1, C3) | U11: =D11 -> Describe and explain the various aspect of property management based on the current requirement from the aspects of building maintenance, facilities management, property law and human resource in Malaysian. (PLO1, C3) | AK11: 10
C12: CLO2 | D12: Illustrate ideas clearly and effectively as well as give feedback. (PLO4, P4, CS1-CS3) | U12: =D12 -> Illustrate ideas clearly and effectively as well as give feedback. (PLO4, P4, CS1-CS3) | AK12: 11
C13: CLO3 | D13: Practice moral values, ethics and professionalism towards oneself and one's work. (PLO5, A3, TS1-TS3)
C14: CLO4 | D14: Demonstrate and practise leaderships skills and qualities. (PLO9, A3, LS1-LS3) | AK14: 12
B15: 8 | C15: Mapping of the Course Learning Outcomes to the Programme Learning Outcomes, Teaching Methods and Assessment:
C16: Course Learning Outcomes (CLO) | D16: Programme Learning Outcomes (PLO) | P16: Teaching Methods | S16: Assessment
D17: PLO1 | E17: PLO2 | F17: PLO3 | G17: PLO4 | H17: PLO5 | I17: PLO6 | J17: PLO7 | K17: PLO8 | L17: PLO9 | M17: PLO10 | N17: PLO11 | O17: PLO12
C18: CLO1 | D18: √ | P18: Lecture | Discussion | S18: Assignment | Test | Final Examination | Quiz | U18: =S18 -> Assignment | Test | Final Examination | Quiz
C19: CLO2 | G19: √ | P19: Lecture | Discussion | S19: Presentation
C20: CLO3 | H20: √ | P20: Lecture | Presentation | S20: Tutorial | Assignment
C21: CLO4 | L21: √ | P21: Discussion | Presentation | S21: Tutorial | Assignment
C22: (The description must be read together with standards 2.1.2, 2.2.1 and 2.2.2 in Area 2 - pages 16 & 18)
B23: 9 | C23: Transferable skills (if applicable) | G23: 1 | H23: Self-Management and Learning
C24: (Skills learned in the course of study which can be useful and utilised in other settings) | G24: 2 | H24: Communication and Teamwork
G25: 3 | H25: Problem Solving and Information Technology
B26: 10 | C26: Distribution of Students Learning Time (SLT)
C27: Course Content Outline | G27: CLO | I27: Teaching and Learning Activities | T27: SLT
I28: Guided learning (F2F) | Q28: Guided Learning (NF2F) eg: e-learning | S28: Independent learning (NF2F)
I29: L | K29: T | M29: P | O29: O
C30: 1.0 Introduction To Management Principle 1.1 Definition of Management 1.2 Evolution of Management Thought 1.3 Definition of Organization 1.4 Definition of Manager 1.5 Management Function in property management 1.6 Definition of Property Management 1.7 Definition of Property Manager 1.8 Definition of Property 1.9 Operational Property | G30: CLO 1 | I30: 2 | K30: 4 | M30: 0 | S30: 4 | T30: =SUM(I30:S30) -> 10
C31: 2.0 Introduction To Property Management 2.1 Duty and responsibility of Property Manager 2.2 Property Management Organization 2.3 Factors that influence organization 2.3.1 Internal (planning management, management objectives, financial allocation and budget, management team and workers relationship, power to execute things on behalf of owner, record management and relationship with the owner) 2.3.2 External (politics, economy and market condition) | G31: CLO 1 | I31: 2 | K31: 4 | O31: 0 | S31: 4 | T31: =SUM(I31:S31) -> 10 | U31: =C31 -> 2.0 Introduction To Property Management 2.1 Duty and responsibility of Property Manager 2.2 Property Management Organization 2.3 Factors that influence organization 2.3.1 Internal (planning management, management objectives, financial allocation and budget, management team and workers relationship, power to execute things on behalf of owner, record management and relationship with the owner) 2.3.2 External (politics, economy and market condition)
C32: 3.0 Maintenance Management 3.1 Maintenance definition 3.2 Building life cycle 3.3 Category of maintenance 3.4 Budgeting 3.5 Maintenance manager’s duty and responsibility | G32: CLO 3 | I32: 2 | K32: 4 | S32: 2 | T32: 8 | U32: =C32 -> 3.0 Maintenance Management 3.1 Maintenance definition 3.2 Building life cycle 3.3 Category of maintenance 3.4 Budgeting 3.5 Maintenance manager’s duty and responsibility
C33: 4.0 Tenancy Management 4.1 Definition of tenancy management 4.2 Marketing strategy 4.3 Tenancy agreement 4.4 Tenant selection 4.5 Tenant characteristics 4.6 Tenant mix 4.7 Tenant relation with owner 4.8 Basis for rental 4.9 Rent roll 4.10 Determination of tenancy - rent review and renewal | G33: CLO 1 | I33: 2 | K33: 4 | S33: 2 | T33: 8 | U33: 4.0 Tenancy Management 4.1 Definition of tenancy management 4.2 Marketing strategy 4.3 Tenancy agreement 4.4 Tenant selection 4.5 Tenant characteristics 4.6 Tenant mix 4.7 Tenant relation with owner 4.8 Basis for rental 4.9 Rent roll 4.10 Determination of tenancy - rent review and renewal
C34: 5.0 Investment Management 5.1 Rental management 5.2 Outgoings 5.3 Service charge 5.4 Insurance 5.5 Taxation 5.6 Car park management | G34: CLO 3 | I34: 2 | K34: 4 | S34: 4 | T34: 10 | U34: 5.0 Investment Management 5.1 Rental management 5.2 Outgoings 5.3 Service charge 5.4 Insurance 5.5 Taxation 5.6 Car park management
C35: 6.0 Safety and security management 6.1 Definition of safety and security management 6.2 Types of security 6.3 Sick building syndrome 6.4 Symptoms and causes of sick building syndrome | G35: CLO 2 | I35: 2 | K35: 4 | S35: 2 | T35: 8 | U35: 6.0 Safety and security management 6.1 Definition of safety and security management 6.2 Types of security 6.3 Sick building syndrome 6.4 Symptoms and causes of sick building syndrome
C36: 7.0 Property Marketing 7.1 The four Ps of marketing 7.2 Relating the four Ps to property marketing 7.3 Strength, Weakness, Opportunities & Threats (SWOT) Analysis | G36: CLO 2 | I36: 2 | K36: 4 | S36: 4 | T36: 10 | U36: 7.0 Property Marketing 7.1 The four Ps of marketing 7.2 Relating the four Ps to property marketing 7.3 Strength, Weakness, Opportunities & Threats (SWOT) Analysis
C37: 8.0 Data and Record Management 8.1 Definition of record management 8.2 Importance of inventory 8.3 Requirement of record keeping and financial reports 8.4 Preparation of property management financial reports types of property management reports 8.5 Computer techniques and application in data management 8.5.1 Objectives 8.5.2 Importance and effectiveness 8.6 Computer software | G37: CLO 2 | I37: 2 | K37: 4 | S37: 4 | T37: 10 | U37: 8.0 Data and Record Management 8.1 Definition of record management 8.2 Importance of inventory 8.3 Requirement of record keeping and financial reports 8.4 Preparation of property management financial reports types of property management reports 8.5 Computer techniques and application in data management 8.5.1 Objectives 8.5.2 Importance and effectiveness 8.6 Computer software
C38: 9.0 Development of Property Management in Malaysia 9.1 History development of property management 9.2 Factors that influence the growth of property management in Malaysia 9.3 The strata title act and its affect on property management in Malaysia 9.4 The Building And Common Property Maintenance And Management Act 2007 and its effect on property management in Malaysia 9.5 The Valuers Appraisers and Estate Agents Act 1981 - who can practise 9.5.1 Calculation of fees | G38: CLO 2 | I38: 2 | K38: 4 | S38: 4 | T38: 10 | U38: 9.0 Development of Property Management in Malaysia 9.1 History development of property management 9.2 Factors that influence the growth of property management in Malaysia 9.3 The strata title act and its affect on property management in Malaysia 9.4 The Building And Common Property Maintenance And Management Act 2007 and its effect on property management in Malaysia 9.5 The Valuers Appraisers and Estate Agents Act 1981 - who can practise 9.5.1 Calculation of fees
C39: 10.0 Malaysian Practice in Property Management 10.1 Organization execution in Property Management for public sector and private sector 10.2 Types of services that are offered in property management o in-house property management 10.2.1 outsource property management 10.2.2 Other organizations involved in property management 10.2.2.1 ICSC 10.2.2.2 PPK 10.2.2.3 The stand of the Board of Valuers, Appraisers and Estate Agents | G39: CLO 4 | I39: 2 | K39: 4 | S39: 2 | T39: 8 | U39: 10.0 Malaysian Practice in Property Management 10.1 Organization execution in Property Management for public sector and private sector 10.2 Types of services that are offered in property management o in-house property management 10.2.1 outsource property management 10.2.2 Other organizations involved in property management 10.2.2.1 ICSC 10.2.2.2 PPK 10.2.2.3 The stand of the Board of Valuers, Appraisers and Estate Agents
T40: =SUM(T30:T39) -> 92
C42: Continuous Assessment | L42: Percentage (%) | N42: F2F | Q42: NF2F | T42: SLT
C43: 1 | D43: Project | L43: 10 | N43: 2 | Q43: 2.5 | T43: =SUM(N43:S43) -> 4.5
C44: 2 | D44: Presentation | L44: 5 | N44: 2 | Q44: 2.5 | T44: =SUM(N44:S44) -> 4.5 | U44: =D44 -> Presentation
C45: 3 | D45: Tutorial | L45: 5 | N45: 1 | Q45: 2 | T45: 3 | U45: =D45 -> Tutorial
C46: 4 | D46: Test 1 | L46: 10 | N46: 2 | Q46: 2.5 | T46: 4.5 | U46: Test 1
C47: 5 | D47: Test 2 | L47: 10 | N47: 2 | Q47: 2.5 | T47: 4.5 | U47: Test 2
C48: Total | T48: =SUM(T43:T47) -> 21 | U48: 0
C50: Final Assessment | L50: Percentage (%) | N50: F2F | Q50: NF2F | T50: SLT
C51: 1 | D51: Final Examination | L51: 60 | N51: 2.5 | Q51: 4.5 | T51: =SUM(N51:S51) -> 7
C52: 2 | T52: =SUM(N52:S52) -> 0 | U52: =D52 -> 0
C53: 3 | T53: 0 | U53: =D53 -> 0
C54: 4 | T54: 0 | U54: 0
C55: 5 | T55: 0
T56: =SUM(T51:T55) -> 7 | U56: 0
C58: **Please tick (ü) in this course is Latihan Industri / Clinical Placement / Practicum / WBL using 2 weeks; 1 credit formula | T58: =+T40+T48+T56 -> 120
C59: L= Lecture, T=Tutorial, P=Practical, O=Others, F2F=Face to Face, NF2F=None Face to Face
C60: *Indicate the CLO based on the CLO's numbering in item 8
B61: 11 | C61: Identify special requirement to deliver the course (e.g: software, nursery, computer lab, simulation room, etc) | H61: None
U62: =H62 -> 0
B63: 12 | C63: References: | H63: 1. The Board of Valuers, Appraisers, Estate Agents and Property Managers (LPPEH)(2016). Malaysian Property Management Standards (MPMS). 2nd Ed. Kuala Lumpur: The Board Of Valuers , Appraisers And Estate Agents and Property Managers (LPPEH). 2. The Board of Valuers, Appraisers, Estate Agents and Property Managers (LPPEH). (2014). Malaysian Estate Agency Standards. (MEAS). 2nd. Ed. Kuala Lumpur: The Board Of Valuers , Appraisers And Estate Agents and Property Managers (LPPEH). 3. REHDA Institute. (2019). Strata Management Handbook: A Clear And Comprehensive Guide To Strata Living In Malaysia. 2nd. Ed. Selangor: Real Estate And Housing Developers Association (REHDA). 4. Lembaga Penyelidikan Undang-Undang. (2017). Akta Pegurusan Strata 2013 (Akta 757) & Peraturan-Peraturan. (Hingga 10hb April 2017). Kuala Lumpur: International Law Book Services (ILBS). 5. Modic, Dolores & Damij, Nadja. (2019). Towards Intellectual Property Rights Management: Back-Office And Front-Office Perspectives. Switzerland:Palgrave Macmillan. 6. Griswold, Robert S. (2008). Property Management Kit For Dummies. 2nd. Ed. New Jersey: John Wiley. 7. Lembaga Penyelidikan Undang-Undang (2019). Akta Pegurusan Strata 2013 (Akta 757) & Peraturan-Peraturan. (Hingga 5hb Mac 2019). Selangor: international Law Book Services (ILBS). 8. Potter, Robert A. (2008). Selling Real Estate Services: Third-Level Secrets Of Top Producers. New York: John Wiley.
C64: (include required and further readings, and should be the most current) | U64: =H64 -> 0
B65: 13 | C65: Other additional Information | H65: Last updated : 9st February 2020 | U65: Last updated : 9st February 2020

Sheet ULAB 2222
B2: 1 | C2: Name of Course | D2: Communication Skills | AK2: 1 | AL2: 1
C3: Course Code | D3: ULAB 2222 | AJ3: √ | AK3: 2 | AL3: 2
B4: 2 | C4: Synopsis | D4: This course is designed to enhance student's communication skills through a community - based project, where students will engage with the community and identify an issue or related problem faced. This course will enhance students' communication skills through several tasks outlined for the students. the tasks include a preliminary and final project proposal oral presentations, writing of reflection papers, an oral communication activities through sonsultations and group discussion ( panel of inquiry). Leadership skills are implicitly integrated through the tasks given. At the end of the course, students should be able to apply these skills in their future endeavour. | U4: =D4 -> This course is designed to enhance student's communication skills through a community - based project, where students will engage with the community and identify an issue or related problem faced. This course will enhance students' communication skills through several tasks outlined for the students. the tasks include a preliminary and final project proposal oral presentations, writing of reflection papers, an oral communication activities through sonsultations and group discussion ( panel of inquiry). Leadership skills are implicitly integrated through the tasks given. At the end of the course, students should be able to apply these skills in their future endeavour. | AK4: 3 | AL4: 3
B5: 3 | C5: Name (s) of Academic Staff | D5: Siti Nurul Atini Binti Ibrahim | AK5: 4 | AL5: 4
B6: 4 | C6: Semester | D6: Semester | E6: 3 | F6: Year | G6: 2 | AK6: 5
B7: 5 | C7: Credit Value | D7: =IF(T66=40,1,(IF(T66=80,2,(IF(T66=120,3,(IF(T66=160,4,IF(T66=200,5,IF(T66=240,6,""))))))))) -> 2 | AK7: 6
B8: 6 | C8: Pre-requisite / Co-requisite (if any) | D8: ULAB 1042 Academic English Skills | AK8: 7
B9: 7 | C9: Course Learning Outcomes (CLO): At the end of the course the students will be able to: | AK9: 8
C10: (example) - explain the basic principles of immunisation (C2, PLO1) | AK10: 9
C11: CLO1 | D11: Write a reflection paper | U11: =D11 -> Write a reflection paper | AK11: 10
C12: CLO2 | D12: Discuss Community - Based Project. | U12: =D12 -> Discuss Community - Based Project. | AK12: 11
C13: CLO3 | D13: Present project Proposal Orally
C14: CLO4 | D14: Consult with a lecturer | AK14: 12
B15: 8 | C15: Mapping of the Course Learning Outcomes to the Programme Learning Outcomes, Teaching Methods and Assessment:
C16: Course Learning Outcomes (CLO) | D16: Programme Learning Outcomes (PLO) | P16: Teaching Methods | S16: Assessment
D17: PLO1 | E17: PLO2 | F17: PLO3 | G17: PLO4 | H17: PLO5 | I17: PLO6 | J17: PLO7 | K17: PLO8 | L17: PLO9 | M17: PLO10 | N17: PLO11 | O17: PLO12
C18: CLO1 | D18: √ | P18: Lecture | Discussion | S18: Reflection Paper | U18: =S18 -> Reflection Paper
C19: CLO2 | D19: √ | P19: Lecture lActivities | S19: Group Discussion l Pre Presentation
C20: CLO3 | D20: √ | P20: Lecture |Activities | Presentation | S20: Final Presentation
C21: CLO4 | D21: √ | P21: Discussion | Presentation | S21: Consultation
C22: (The description must be read together with standards 2.1.2, 2.2.1 and 2.2.2 in Area 2 - pages 16 & 18)
B23: 9 | C23: Transferable skills (if applicable) | G23: 1 | H23: Self-Management and Learning
C24: (Skills learned in the course of study which can be useful and utilised in other settings) | G24: 2 | H24: Communication and Teamwork
G25: 3 | H25: Problem Solving and Information Technology
B26: 10 | C26: Distribution of Students Learning Time (SLT)
C27: Course Content Outline | G27: CLO | I27: Teaching and Learning Activities | T27: SLT
I28: Guided learning (F2F) | Q28: Guided Learning (NF2F) eg: e-learning | S28: Independent learning (NF2F)
I29: L | K29: T | M29: P | O29: O
C30: Introduction to course | G30: CLO 2 | I30: 2 | M30: 0 | T30: =SUM(I30:S30) -> 2
C31: Discussion of the project ( topic) Planning the project Reflection Paper | G31: CLO 2 | I31: 2 | O31: 0 | S31: 2 | T31: =SUM(I31:S31) -> 4 | U31: =C31 -> Discussion of the project ( topic) Planning the project Reflection Paper
C32: Discussion of the project ( topic) Planning the project Reflection Paper | G32: CLO 2 | K32: 2 | S32: 4 | T32: 6 | U32: =C32 -> Discussion of the project ( topic) Planning the project Reflection Paper
C33: ASSESSMENT: •Consultation 1 • Reflection Paper 1 | G33: CLO 1 | K33: 2 | S33: 4 | T33: 6 | U33: ASSESSMENT: •Consultation 1 • Reflection Paper 1
C34: ASSESSMENT: •Consultation 1 • Reflection Paper 1 | G34: CLO 1 | K34: 2 | S34: 2 | T34: 4 | U34: ASSESSMENT: •Consultation 1 • Reflection Paper 1
C35: Preparation for Preliminary proposal presentation group Discussion (Panel of Inquiry) | G35: CLO 2 | K35: 2 | S35: 2 | T35: 4 | U35: Preparation for Preliminary proposal presentation group Discussion (Panel of Inquiry)
C36: Preparation for Preliminary proposal presentation group Discussion (Panel of Inquiry) | G36: CLO 2 | I36: 2 | K36: 2 | S36: 2 | T36: 6 | U36: Preparation for Preliminary proposal presentation group Discussion (Panel of Inquiry)
C37: Preparation for Preliminary proposal presentation group Discussion (Panel of Inquiry) | G37: CLO 2 | I37: 2 | K37: 2 | S37: 2 | T37: 6 | U37: Preparation for Preliminary proposal presentation group Discussion (Panel of Inquiry)
C38: ASSESSMENT: •Preliminary Proposal Presentation • Panel of Inquiry | G38: CLO 2 | I38: 2 | K38: 2 | S38: 2 | T38: 6 | U38: ASSESSMENT: •Preliminary Proposal Presentation • Panel of Inquiry
C39: ASSESSMENT: •Preliminary Proposal Presentation • Panel of Inquiry | G39: CLO 1 | K39: 2 | S39: 2 | T39: 2 | U39: ASSESSMENT: •Preliminary Proposal Presentation • Panel of Inquiry
C40: students embark on a fieldwork of proposal presentation ASSESSMENT: • Consultation 2 | G40: CLO | K40: 2 | S40: 2 | T40: 2 | U40: students embark on a fieldwork of proposal presentation ASSESSMENT: • Consultation 2
C41: students embark on a fieldwork of proposal presentation ASSESSMENT: • Consultation 2 | G41: CLO | K41: 2 | S41: 2 | T41: 2 | U41: students embark on a fieldwork of proposal presentation ASSESSMENT: • Consultation 2
C42: ASSESSMENT: • Final Project Proposal Presentation • Reflection Paper 2 | K42: 2 | S42: 2 | T42: 4 | U42: ASSESSMENT: • Final Project Proposal Presentation • Reflection Paper 2
C43: ASSESSMENT: • Final Project Proposal Presentation • Reflection Paper 2 | K43: 2 | S43: 2 | T43: 4 | U43: ASSESSMENT: • Final Project Proposal Presentation • Reflection Paper 2
C44: ASSESSMENT: • Final Project Proposal Presentation • Reflection Paper 2 | G44: CLO 2 | I44: 2 | K44: 2 | S44: 2 | T44: 6 | U44: ASSESSMENT: • Final Project Proposal Presentation • Reflection Paper 2
C45: Total | T45: =SUM(T30:T44) -> 64 | U45: Total
C47: Continuous Assessment | L47: Percentage (%) | N47: F2F | Q47: NF2F | T47: SLT
C48: 1 | D48: Consultation 1 | L48: 5 | N48: 2 | Q48: 2 | T48: =SUM(N48:S48) -> 4
C49: 2 | D49: Reflection 1 | L49: 10 | Q49: 2 | T49: =SUM(N49:S49) -> 2 | U49: =D49 -> Reflection 1
C50: 3 | D50: Preliminary Project | L50: 15 | N50: 2 | Q50: 2 | T50: 4 | U50: =D50 -> Preliminary Project
C51: 4 | D51: Group Discussion | L51: 20 | Q51: 2 | T51: =SUM(N51:S51) -> 2 | U51: Group Discussion
C52: 5 | D52: Consultation 2 | L52: 10 | N52: 2 | Q52: 2 | T52: =SUM(N52:S52) -> 4 | U52: Consultation 2
C53: 6 | D53: Reflection 2 | L53: 15 | Q53: 2 | T53: 2 | U53: Reflection 2
C54: 7 | D54: Final Project Presentation | L54: 25 | N54: 2 | Q54: 2 | T54: 4 | U54: Final Project Presentation
T55: 0
C56: Total | T56: =SUM(T48:T52) -> 16 | U56: 0
C58: Final Assessment | L58: Percentage (%) | N58: F2F | Q58: NF2F | T58: SLT
C59: 1 | D59: None | T59: =SUM(N59:S59) -> 0
C60: 2 | T60: =SUM(N60:S60) -> 0 | U60: =D60 -> 0
C61: 3 | T61: 0 | U61: =D61 -> 0
C62: 4 | T62: 0 | U62: 0
C63: 5 | T63: 0
T64: =SUM(T59:T63) -> 0 | U64: 0
C66: **Please tick (ü) in this course is Latihan Industri / Clinical Placement / Practicum / WBL using 2 weeks; 1 credit formula | T66: =+T45+T56+T64 -> 80
C67: L= Lecture, T=Tutorial, P=Practical, O=Others, F2F=Face to Face, NF2F=None Face to Face
C68: *Indicate the CLO based on the CLO's numbering in item 8
B69: 11 | C69: Identify special requirement to deliver the course (e.g: software, nursery, computer lab, simulation room, etc) | H69: None
U70: =H70 -> 0
B71: 12 | C71: References: | H71: Carmichael,J.L., et al. (2011). Learderhip and Management Develepment. Oxford. University Press.
C72: (include required and further readings, and should be the most current) | H72: Kroehnart,G.(2010). Basic Presentation Skills. Sydney: McGraw Hill. | U72: =H72 -> Kroehnart,G.(2010). Basic Presentation Skills. Sydney: McGraw Hill.
B73: 13 | C73: Other additional Information | H73: Last updated : 16st April 2018 | U73: Last updated : 16st April 2018

Sheet DDWF 2843
B2: 1 | C2: Name of Course | D2: Urban Planning and Development | AK2: 1 | AL2: 1
C3: Course Code | D3: DDWF 2843 | AJ3: √ | AK3: 2 | AL3: 2
B4: 2 | C4: Synopsis | D4: This course introduces students to the system of physical planning or land-use planning and the urban planning process practice in Peninsular Malaysia. Students are exposed to some current environmental issues related to urban planning in the country. It covers the definitions of urban planning, urban planning machinery, urban planning legislations; Town Planning Enactments, Town and Country Planning Act, 1976, two-tier planning system of structure plans and local plans, planning permission, planning standards, development charges, and property development process. At the end of the course, students should be able to explain urban planning practice in Malaysia, relate urban planning to land matters, calculate development charges on conversion of land-uses and increase in density, and explain the different methods of development control practice in Malaysia such as zoning, density control, plot ratio, plinth area, building lines, set-backs, car parking requirements and others. | U4: =D4 -> This course introduces students to the system of physical planning or land-use planning and the urban planning process practice in Peninsular Malaysia. Students are exposed to some current environmental issues related to urban planning in the country. It covers the definitions of urban planning, urban planning machinery, urban planning legislations; Town Planning Enactments, Town and Country Planning Act, 1976, two-tier planning system of structure plans and local plans, planning permission, planning standards, development charges, and property development process. At the end of the course, students should be able to explain urban planning practice in Malaysia, relate urban planning to land matters, calculate development charges on conversion of land-uses and increase in density, and explain the different methods of development control practice in Malaysia such as zoning, density control, plot ratio, plinth area, building lines, set-backs, car parking requirements and others. | AK4: 3 | AL4: 3
B5: 3 | C5: Name (s) of Academic Staff | D5: Suhana binti Adli | AK5: 4 | AL5: 4
B6: 4 | C6: Semester | D6: Semester | E6: 4 | F6: Year | G6: 2 | AK6: 5
B7: 5 | C7: Credit Value | D7: 3 | AK7: 6
B8: 6 | C8: Pre-requisite / Co-requisite (if any) | AK8: 7
B9: 7 | C9: Course Learning Outcomes (CLO): At the end of the course the students will be able to: | AK9: 8
C10: (example) - explain the basic principles of immunisation (C2, PLO1) | AK10: 9
C11: CLO1 | D11: Describe the knowledge on urban planning, outline the requirements related to urban planning and development and illustrate the hierarchy of urban planning and administration between Local Government, State Government and Federal Government (C3). | U11: =D11 -> Describe the knowledge on urban planning, outline the requirements related to urban planning and development and illustrate the hierarchy of urban planning and administration between Local Government, State Government and Federal Government (C3). | AK11: 10
C12: CLO2 | D12: Demonstrate the techniques on urban planning which reflect the property development evaluation(P3,CTPS1,CTPS2) | U12: =D12 -> Demonstrate the techniques on urban planning which reflect the property development evaluation(P3,CTPS1,CTPS2) | AK12: 11
C13: CLO3 | D13: Ilustrate ideas clearly and effectively as well as give feedback( P3,CS1,CS2,CS3).
C14: CLO4 | D14: Relate relevant information on Land Development Process to Real Estate Profession(A3,LL1,LL2,LL3).
B15: 8 | C15: Mapping of the Course Learning Outcomes to the Programme Learning Outcomes, Teaching Methods and Assessment:
C16: Course Learning Outcomes (CLO) | D16: Programme Learning Outcomes (PLO) | P16: Teaching Methods | S16: Assessment
D17: PLO1 | E17: PLO2 | F17: PLO3 | G17: PLO4 | H17: PLO5 | I17: PLO6 | J17: PLO7 | K17: PLO8 | L17: PLO9 | M17: PLO10 | N17: PLO11 | O17: PLO12
C18: CLO1 | D18: √ | P18: Lecture | Discussion | S18: Assignment| Test | Final | U18: =S18 -> Assignment| Test | Final
C19: CLO2 | P19: Group Assignment | S19: Assignment
C20: CLO3 | G20: √ | P20: Group Assignment | S20: Presentation
C21: CLO4 | I21: √ | P21: Group Assignment | S21: Assignment
C22: (The description must be read together with standards 2.1.2, 2.2.1 and 2.2.2 in Area 2 - pages 16 & 18)
B23: 9 | C23: Transferable skills (if applicable) | G23: 1 | H23: Knowledge
C24: (Skills learned in the course of study which can be useful and utilised in other settings) | G24: 2 | H24: Critical Thinking
G25: 3 | H25: Communication Skills
G26: 3 | H26: Lifelong Learning
B27: 10 | C27: Distribution of Students Learning Time (SLT)
C28: Course Content Outline | G28: CLO | I28: Teaching and Learning Activities | T28: SLT
I29: Guided learning (F2F) | Q29: Guided Learning (NF2F) eg: e-learning | S29: Independent learning (NF2F)
I30: L | K30: T | M30: P | O30: O
C31: 1.0 Concept and Planning Principle 1.1. Planning Definition 1.2 Type and changes in urban planning 1.3 Content of planning | G31: CLO1 | I31: 2 | K31: 1 | M31: 0 | S31: 3 | T31: =SUM(I31:S31) -> 6
C32: 2.0 History and Urban Development Settlement 2.1 Classic ages settlement 2.2 Intermediate ages settlement 2.3 Industrial revolution ages settlement | G32: CLO 1 | I32: 2 | K32: 1 | O32: 0 | S32: 3 | T32: =SUM(I32:S32) -> 6 | U32: =C32 -> 2.0 History and Urban Development Settlement 2.1 Classic ages settlement 2.2 Intermediate ages settlement 2.3 Industrial revolution ages settlement
C33: 3.0 System and Organization of Urban Planning in Peninsula Malaysia 3.1 Hierarchy of urban planning 3.2 Urban planning administration at ; 3.2.1 National / Federal level 3.2.2 District level 3.2.3 State level 3.2.4 Local level | G33: CLO1 | I33: 2 | K33: 1 | S33: 3 | T33: 6 | U33: =C33 -> 3.0 System and Organization of Urban Planning in Peninsula Malaysia 3.1 Hierarchy of urban planning 3.2 Urban planning administration at ; 3.2.1 National / Federal level 3.2.2 District level 3.2.3 State level 3.2.4 Local level
C34: 4.0 History of Planning Law in Peninsula Malaysia 4.1 Planning Law in Britain. 4.1.1 Planning and law requirement in Britain 4.2 Garden city concept 4.3 Urban Planning Enactment and Urban Board Enactment (chapter 137) 4.4 Local Government Act, 1976 (171 Act) 4.5 Urban Planning and District Act 1976 (172 Act) and 4.6 Amendment (A933 Act) 4.7 Others Planning Law | G34: CLO 1 | I34: 4 | K34: 2 | S34: 4 | T34: 10 | U34: 4.0 History of Planning Law in Peninsula Malaysia 4.1 Planning Law in Britain. 4.1.1 Planning and law requirement in Britain 4.2 Garden city concept 4.3 Urban Planning Enactment and Urban Board Enactment (chapter 137) 4.4 Local Government Act, 1976 (171 Act) 4.5 Urban Planning and District Act 1976 (172 Act) and 4.6 Amendment (A933 Act) 4.7 Others Planning Law
C35: 5.0 Development Planned Systems 5.1 Structure Plan and the preparation process 5.2 Local Agenda 21 5.3 Public participation 5.4 Local Plan and the preparation process | G35: CLO2 | I35: 2 | K35: 1 | S35: 3 | T35: 6 | U35: 5.0 Development Planned Systems 5.1 Structure Plan and the preparation process 5.2 Local Agenda 21 5.3 Public participation 5.4 Local Plan and the preparation process
C36: 6.0 Development Controlled Systems 6.1 Development definition under Section 2, 172 Act. 6.2Planning permission and the application process through the One Stop Centre. | G36: CLO2 | I36: 2 | K36: 1 | S36: 3 | T36: 6 | U36: 6.0 Development Controlled Systems 6.1 Development definition under Section 2, 172 Act. 6.2Planning permission and the application process through the One Stop Centre.
C37: 7.0 Standard Planning 7.1 Definition 7.2 Specialization in standard planning 7.3 Principles of standard planning for residential development | G37: CLO3 | I37: 4 | K37: 2 | S37: 4 | T37: 10 | U37: 7.0 Standard Planning 7.1 Definition 7.2 Specialization in standard planning 7.3 Principles of standard planning for residential development
C38: 8.0 Standardization Methodology 8.1 Zoning 8.2 Density 8.3 Site covering 8.4 Building line 8.5 Plot ratio 8.6 Building height 8.7 Parking space requirement 8.8 Others standard planning requirement 8.5 Types of analysis | G38: CLO2 | I38: 4 | K38: 2 | S38: 4 | T38: 10 | U38: 8.0 Standardization Methodology 8.1 Zoning 8.2 Density 8.3 Site covering 8.4 Building line 8.5 Plot ratio 8.6 Building height 8.7 Parking space requirement 8.8 Others standard planning requirement 8.5 Types of analysis
C39: 9.0 Development Charges 9.1 Imposition of development charge 9.1.1 Change of land use 9.1.2 Increase density 9.1.3 Allocation of parking space | G39: CLO3 | I39: 2 | K39: 1 | S39: 3 | T39: =SUM(I39:S39) -> 6 | U39: =C41 -> 11.0 District and Suburban Planning 11.1 Structure of District and Suburban planning 11.2 The importance and effectiveness
C40: 10.0 Property Development Process 10.1 Feasibility study 10.2 Market study 10.3 Economy study 10.3.1 Consent application for condition change 10.3.2 Split boundary and layout plan 10.3.3 Consent application for building plan | G40: CLO2 | I40: 4 | K40: 2 | S40: 4 | T40: =SUM(I40:S40) -> 10 | U40: =C41 -> 11.0 District and Suburban Planning 11.1 Structure of District and Suburban planning 11.2 The importance and effectiveness
C41: 11.0 District and Suburban Planning 11.1 Structure of District and Suburban planning 11.2 The importance and effectiveness | G41: CLO2 | I41: 2 | K41: 1 | S41: 3 | T41: =SUM(I41:S41) -> 6 | U41: =C42 -> Total
C42: Total | T42: =SUM(T31:T41) -> 82
C44: Continuous Assessment | L44: Percentage (%) | N44: F2F | Q44: NF2F | T44: SLT | U44: =D46 -> Assignment 2
C45: 1 | D45: Assignment 1 | L45: 10 | Q45: 11 | T45: =SUM(N45:S45) -> 11 | U45: =D47 -> Test 1
C46: 2 | D46: Assignment 2 | L46: 10 | Q46: 11 | T46: =SUM(N46:S46) -> 11 | U46: Test 2
C47: 3 | D47: Test 1 | L47: 10 | N47: 1 | Q47: 2 | T47: 3 | U47: 0
C48: 4 | D48: Test 2 | L48: 10 | N48: 1 | Q48: 2 | T48: 3 | U48: 0
C49: 5 | T49: 0
C50: Total | T50: =SUM(T45:T49) -> 28
C52: Final Assessment | L52: Percentage (%) | N52: F2F | Q52: NF2F | T52: SLT | U52: =D54 -> 0
C53: 1 | D53: Final Examination | L53: 60 | N53: 2.5 | Q53: 7.5 | T53: =SUM(N53:S53) -> 10 | U53: =D55 -> 0
C54: 2 | T54: =SUM(N54:S54) -> 0 | U54: 0
C55: 3 | T55: 0
C56: 4 | T56: 0 | U56: 0
C57: 5 | T57: 0
T58: =SUM(T53:T57) -> 10
C60: **Please tick (ü) in this course is Latihan Industri / Clinical Placement / Practicum / WBL using 2 weeks; 1 credit formula | T60: =+T42+T50+T58 -> 120
B61: 11 | C61: L= Lecture, T=Tutorial, P=Practical, O=Others, F2F=Face to Face, NF2F=None Face to Face
C62: *Indicate the CLO based on the CLO's numbering in item 8 | U62: =H64 -> 0
B63: 12 | C63: Identify special requirement to deliver the course (e.g: software, nursery, computer lab, simulation room, etc) | H63: None
U64: =H66 -> 0
B65: 13 | C65: References: | H65: 1. John Ratcliffe & Michael Stubbs, Miles Keeping. (2009). Urban Planning and Real Estate Development. New York: UCL Press. 2. Peter Geoffrey Hall. (2011). Urban and Regional Planning. New York: Routledge. 3. Peter Geoffrey Hall. (2019). Urban and Regional Planning. New York: Routledge. 4. (2007). Planning and Urban Design Standards. American Planning Association: Canada. 5. Ahmad Sanusi Hassan. (2017). Amalan Tebus Guna Tanah, Reka Bentuk Bandar Dan Seni Bina Di Malaysia. Pulau Pinang: USM. 6. An Analysis Of Dr. Mahathir Mohamad’s Approach To The Regional Development Of Malaysia And Asean. Selangor: UiTM. 7. Lembaga Penyelidikan Undang-Undang (2017). Akta Jalan, Parit Dan Bangunan 1974 (Akta 133)(Hingga 1hb November 2017). Selangor: International Law Book Services (ILBS). | U65: =H67 -> Last Update :9th February 2020
C66: (include required and further readings, and should be the most current)
C67: Other additional Information | H67: Last Update :9th February 2020

Sheet DDWF 2643
B2: 1 | C2: Name of Course | D2: Real Estate Development Law | AK2: 1 | AL2: 1
C3: Course Code | D3: DDWF 2643 | AJ3: √ | AK3: 2 | AL3: 2
B4: 2 | C4: Synopsis | D4: The course is designed to introduce students to applicable laws governing land and property development law in Malaysia and the close relationships with the provisions of NLC and authorities of local councils. Students shall be taught the concept of land development, types of land development and other subject matters that are closely linked and affected or shall affect land development. Various laws, issues and subject matters such as Malay Reserved Land, land acquisition, strata title and land and property developers shall be discussed. | U4: =D4 -> The course is designed to introduce students to applicable laws governing land and property development law in Malaysia and the close relationships with the provisions of NLC and authorities of local councils. Students shall be taught the concept of land development, types of land development and other subject matters that are closely linked and affected or shall affect land development. Various laws, issues and subject matters such as Malay Reserved Land, land acquisition, strata title and land and property developers shall be discussed. | AK4: 3 | AL4: 3
B5: 3 | C5: Name (s) of Academic Staff | D5: Hanisah | AK5: 4 | AL5: 4
B6: 4 | C6: Semester | D6: Semester | E6: 4 | F6: Year | G6: 2 | AK6: 5
B7: 5 | C7: Credit Value | D7: 3 | AK7: 6
B8: 6 | C8: Pre-requisite / Co-requisite (if any) | AK8: 7
B9: 7 | C9: Course Learning Outcomes (CLO): At the end of the course the students will be able to: | AK9: 8
C10: (example) - explain the basic principles of immunisation (C2, PLO1) | AK10: 9
C11: CLO1 | D11: Explain the concept of land and property development in Malaysia based on the issues and subject matters that must be taken into account before a property could be developed(C3). | U11: =D11 -> Explain the concept of land and property development in Malaysia based on the issues and subject matters that must be taken into account before a property could be developed(C3). | AK11: 10
C12: CLO2 | D12: Identify and analyse real life problems based on the principles and provisions of all relevant statutes(P3,CTPS1). | U12: =D12 -> Identify and analyse real life problems based on the principles and provisions of all relevant statutes(P3,CTPS1). | AK12: 11
C13: CLO3 | D13: Relate relevant information in Real Estate Development Law to real estate profession(A3,LL1,LL2).
C14: CLO4 | D14: Practice ethics and values towards oneself and others(A3,EM1,EM2).
B15: 8 | C15: Mapping of the Course Learning Outcomes to the Programme Learning Outcomes, Teaching Methods and Assessment:
C16: Course Learning Outcomes (CLO) | D16: Programme Learning Outcomes (PLO) | P16: Teaching Methods | S16: Assessment
D17: PLO1 | E17: PLO2 | F17: PLO3 | G17: PLO4 | H17: PLO5 | I17: PLO6 | J17: PLO7 | K17: PLO8 | L17: PLO9 | M17: PLO10 | N17: PLO11 | O17: PLO12
C18: CLO1 | D18: √ | P18: Lecture | Discussion | S18: Test | Final | U18: =S18 -> Test | Final
C19: CLO2 | F19: √ | P19: Group Assignment | S19: Assignment
C20: CLO3 | I20: √ | P20: Group Assignment | S20: Assignment
C21: CLO4 | K21: √ | P21: Group Assignment | S21: Assignment
C22: (The description must be read together with standards 2.1.2, 2.2.1 and 2.2.2 in Area 2 - pages 16 & 18)
B23: 9 | C23: Transferable skills (if applicable) | G23: 1 | H23: Knowledge
C24: (Skills learned in the course of study which can be useful and utilised in other settings) | G24: 2 | H24: Critical Thinking
G25: 3 | H25: Lifelong Learning
G26: 4 | H26: Ethics
B27: 10 | C27: Distribution of Students Learning Time (SLT)
C28: Course Content Outline | G28: CLO | I28: Teaching and Learning Activities | T28: SLT
I29: Guided learning (F2F) | Q29: Guided Learning (NF2F) eg: e-learning | S29: Independent learning (NF2F)
I30: L | K30: T | M30: P | O30: O
C31: 1.0 Introduction to land and property development law Historical background 1.1 Differences between land law and land development law 1.2 National Land Code and other relevant and applicable statutes 1.3 Relationship between Federal and State governments regarding land as a subject matter as provided by the Federal Constitution. | G31: CLO1 | I31: 2 | K31: 1 | M31: 0 | S31: 3 | T31: =SUM(I31:S31) -> 6
C32: 2.0 Applicable terminologies and concepts in developing land and property 2.1 The concept and terminologies of land /property development 2.2 The significances of these terminologies - Ownership, - Co-ownership - Joint ownership 2.3 Partition 2.4 Division 2.5 The effects of partition and division 2.6 Procedures 2.7 Forms to use | G32: CLO 1 | I32: 4 | K32: 2 | O32: 0 | S32: 3 | T32: =SUM(I32:S32) -> 9 | U32: =C32 -> 2.0 Applicable terminologies and concepts in developing land and property 2.1 The concept and terminologies of land /property development 2.2 The significances of these terminologies - Ownership, - Co-ownership - Joint ownership 2.3 Partition 2.4 Division 2.5 The effects of partition and division 2.6 Procedures 2.7 Forms to use
C33: Cont -Subdivision -Amalgamation -The effects -Procedures -Forms to use -Annual rent -Quit rent -Where to pay -Time to pay -Who can collect -Forfeiture of land -Conditions of land use -Change of those conditions -Restriction in interest -Surrender -Reversion -Reserved land -Purpose -Types of reserved land | G33: CLO1 | I33: 4 | K33: 2 | S33: 3 | T33: 9 | U33: =C33 -> Cont -Subdivision -Amalgamation -The effects -Procedures -Forms to use -Annual rent -Quit rent -Where to pay -Time to pay -Who can collect -Forfeiture of land -Conditions of land use -Change of those conditions -Restriction in interest -Surrender -Reversion -Reserved land -Purpose -Types of reserved land
C34: 3.0 Malay Reserved Land 3.1 Purpose 3.2 Allocated land 3.3 The non-applicability of MRS laws to Sabah & Sarawak 3.4 Definition of Malays 3.5 Restrictions in dealings 3.6 Problems arising from MRL 3.7 Assignment 3.8 Future of MRL 3.9 SA as the controlling body 3.10 MRL as Tanah Wakaf 3.11 Differences between MRL and Tanah Wakaf 3.12 Development and re-development programes for MRL 3.13 Suggestions 3.14 Viabilities of those suggestions 3.15 State Land Roles and Native Land -purpose | G34: CLO 1 | I34: 4 | K34: 2 | S34: 4 | T34: 10 | U34: 3.0 Malay Reserved Land 3.1 Purpose 3.2 Allocated land 3.3 The non-applicability of MRS laws to Sabah & Sarawak 3.4 Definition of Malays 3.5 Restrictions in dealings 3.6 Problems arising from MRL 3.7 Assignment 3.8 Future of MRL 3.9 SA as the controlling body 3.10 MRL as Tanah Wakaf 3.11 Differences between MRL and Tanah Wakaf 3.12 Development and re-development programes for MRL 3.13 Suggestions 3.14 Viabilities of those suggestions 3.15 State Land Roles and Native Land -purpose
C35: 4 .0 Land Acquisition 4.1 Purpose and grounds for acquisitioning land - Parties - Legal capacity - Legality of land acquisition - Art. 13 of the Federal Constitution 4.2 Procedures in acquisitioning land The declaration by SA The issuance of Form A Form B Form C Form D Form E Form F Form G Form H Form I Form J Form K Form N Form N LA inquiry Grounds in challenging land acquisition Determining factors for amount of compensation Methods in calculating the amount of compensation Grounds in challenging compensation or other matters, if any Jurisdictions of courts | G35: CLO2 | I35: 2 | K35: 1 | S35: 3 | T35: 6 | U35: 4 .0 Land Acquisition 4.1 Purpose and grounds for acquisitioning land - Parties - Legal capacity - Legality of land acquisition - Art. 13 of the Federal Constitution 4.2 Procedures in acquisitioning land The declaration by SA The issuance of Form A Form B Form C Form D Form E Form F Form G Form H Form I Form J Form K Form N Form N LA inquiry Grounds in challenging land acquisition Determining factors for amount of compensation Methods in calculating the amount of compensation Grounds in challenging compensation or other matters, if any Jurisdictions of courts
C36: 5.0 Strata title 5.1 Purpose 5.2 Advantages of having a strata title 5.3 A strata title would include -exclusive rights -air space -car park -common amenities -common rights 5.4 Rights of strata title under STA 1988 5.5 Obligations of strata title under STA 1988 5.6 Failure to discharge duties and obligations by strata title owner | G36: CLO3 | I36: 4 | K36: 2 | S36: 4 | T36: 10 | U36: 5.0 Strata title 5.1 Purpose 5.2 Advantages of having a strata title 5.3 A strata title would include -exclusive rights -air space -car park -common amenities -common rights 5.4 Rights of strata title under STA 1988 5.5 Obligations of strata title under STA 1988 5.6 Failure to discharge duties and obligations by strata title owner
C37: 6. 0 Building Maintenance Corporation (BMC) 6.1 What is a BMC 6.2 Members 6.3 Functions and roles of BMC 6.4 Collection of funds for BMC 6.5 The running and management of BMC 6.6 Rights and jurisdictions of BMC | G37: CLO2 | I37: 4 | K37: 2 | S37: 4 | T37: 10 | U37: 6. 0 Building Maintenance Corporation (BMC) 6.1 What is a BMC 6.2 Members 6.3 Functions and roles of BMC 6.4 Collection of funds for BMC 6.5 The running and management of BMC 6.6 Rights and jurisdictions of BMC
C38: 7.0 Property development- transfer of rights 7.1 The role of property developer 7.2 Property developer-company or individual 7.3 Property Developer Act 7.4 Rights and obligations of property developer 7.5 Rights and obligations of property owner 7.6 When / does the transfer in title occur in i. 1st sale ii. 2nd sale iii. Before or after the signing the contract document iv. Before or after the signing of Form 14A v. Before or after the presentation of Form 14A at land office | G38: CLO3 | I38: 2 | K38: 1 | S38: 3 | T38: =SUM(I38:S38) -> 6 | U38: =C40 -> Current issues on land development
C39: 8.0 Vacant possession Certificate of fitness 8.1 Definition 8.2 Rights of property owner to CF 8.3 Who to apply 8.4 When to apply 8.5 Where to apply 8.6 Status and value of property when there is no CF 8.7 Definition 8.8 Rights of property owner to VP 8.9 When to deliver VP i. First sale ii. 2nd sale iii. Expiry of a tenancy | G39: CLO2 | I39: 4 | K39: 2 | S39: 4 | T39: =SUM(I39:S39) -> 10 | U39: =C40 -> Current issues on land development
C40: Current issues on land development | G40: CLO4 | I40: 2 | K40: 1 | S40: 3 | T40: =SUM(I40:S40) -> 6 | U40: =C41 -> Total
C41: Total | T41: =SUM(T31:T40) -> 82
C43: Continuous Assessment | L43: Percentage (%) | N43: F2F | Q43: NF2F | T43: SLT | U43: =D45 -> Assignment 2
C44: 1 | D44: Assignment 1 | L44: 10 | Q44: 11 | T44: =SUM(N44:S44) -> 11 | U44: =D46 -> Test 1
C45: 2 | D45: Assignment 2 | L45: 10 | Q45: 11 | T45: =SUM(N45:S45) -> 11 | U45: Test 2
C46: 3 | D46: Test 1 | L46: 10 | N46: 1 | Q46: 2 | T46: 3 | U46: 0
C47: 4 | D47: Test 2 | L47: 10 | N47: 1 | Q47: 2 | T47: 3 | U47: 0
C48: 5 | T48: 0
C49: Total | T49: =SUM(T44:T48) -> 28
C51: Final Assessment | L51: Percentage (%) | N51: F2F | Q51: NF2F | T51: SLT | U51: =D53 -> 0
C52: 1 | D52: Final Examination | L52: 60 | N52: 2.5 | Q52: 7.5 | T52: =SUM(N52:S52) -> 10 | U52: =D54 -> 0
C53: 2 | T53: =SUM(N53:S53) -> 0 | U53: 0
C54: 3 | T54: 0
C55: 4 | T55: 0 | U55: 0
C56: 5 | T56: 0
T57: =SUM(T52:T56) -> 10
C59: **Please tick (ü) in this course is Latihan Industri / Clinical Placement / Practicum / WBL using 2 weeks; 1 credit formula | T59: =+T41+T49+T57 -> 120
B60: 11 | C60: L= Lecture, T=Tutorial, P=Practical, O=Others, F2F=Face to Face, NF2F=None Face to Face
C61: *Indicate the CLO based on the CLO's numbering in item 8 | U61: =H63 -> 0
B62: 12 | C62: Identify special requirement to deliver the course (e.g: software, nursery, computer lab, simulation room, etc) | H62: None
U63: =H65 -> 0
B64: 13 | C64: References: | H64: 1. Salleh Buang. (2015). Malaysian Torrens System. Kuala Lumpur: Dewan Bahasa Dan Pustaka. 2. Abdullah Mahmood & Abdul Aziz Hussin. (2004). Pembangunan Harta Tanah: Perundangan Dan Prosedur Pengurusan. P.Pinang: USM. 3. REHDA Institute. (2019). Strata Management Handbook: A Clear And Comprehensive Guide To Strata Living In Malaysia. 2nd. Ed. Selangor: Real Estate And Housing Developers Association (REHDA). 4. Lembaga Penyelidikan Undang-Undang. (2017). Akta Pegurusan Strata 2013 (Akta 757) & Peraturan-Peraturan. (Hingga 10hb April 2017). Kuala Lumpur: International Law Book Services (ILBS). 5. Lembaga Penyelidikan Undang-Undang (2019). Akta Pegurusan Strata 2013 (Akta 757) & Peraturan-Peraturan. (Hingga 5hb Mac 2019). Selangor: ILBS. | U64: =H66 -> Last Update 9th February 2020
C65: (include required and further readings, and should be the most current)
C66: Other additional Information | H66: Last Update 9th February 2020

Sheet DDWF 2343
B2: 1 | C2: Name of Course | D2: Real Estate Agency and Marketing | AK2: 1 | AL2: 1
C3: Course Code | D3: DDWF 2343 | AJ3: √ | AK3: 2 | AL3: 2
B4: 2 | C4: Synopsis | D4: This course is designed to enable students to acquire knowledge of the real estate agency profession. The topics include introduction to the role of a Real Estate Agent (REA); background study; definition based on the VAE 81; the REA profession; the role of the VAE Act and the Board of Valuers, registration and procedure to becoming a registered agent; code of ethics and best practice of a REA; responsibilities and work scope; role and function of REA today; property listing; marketing strategies; consultancy works; closing deals and the legalities and procedures involved with property transactions. At the end of the course, students should be able to demonstrate their understanding on the theory and practice of a real estate agent. The students also should be well versed with the current rules and property market scenario in Malaysia. Through assignments and project work, students are led to develop skills to communicate effectively, to lead and cooperate as team members, be highly motivated, disciplined and ethical | U4: =D4 -> This course is designed to enable students to acquire knowledge of the real estate agency profession. The topics include introduction to the role of a Real Estate Agent (REA); background study; definition based on the VAE 81; the REA profession; the role of the VAE Act and the Board of Valuers, registration and procedure to becoming a registered agent; code of ethics and best practice of a REA; responsibilities and work scope; role and function of REA today; property listing; marketing strategies; consultancy works; closing deals and the legalities and procedures involved with property transactions. At the end of the course, students should be able to demonstrate their understanding on the theory and practice of a real estate agent. The students also should be well versed with the current rules and property market scenario in Malaysia. Through assignments and project work, students are led to develop skills to communicate effectively, to lead and cooperate as team members, be highly motivated, disciplined and ethical | AK4: 3 | AL4: 3
B5: 3 | C5: Name (s) of Academic Staff | D5: NIK MAT NASRI BIN NIK RAMLI | AK5: 4 | AL5: 4
B6: 4 | C6: Semester | D6: Semester | E6: 4 | F6: Year | G6: 2 | AK6: 5
B7: 5 | C7: Credit Value | D7: 3 | AK7: 6
B8: 6 | C8: Pre-requisite / Co-requisite (if any) | AK8: 7
B9: 7 | C9: Course Learning Outcomes (CLO): At the end of the course the students will be able to: | AK9: 8
C10: (example) - explain the basic principles of immunisation (C2, PLO1) | AK10: 9
C11: CLO1 | D11: Describe the requirement and procedure to become a registered estate agent as specified under the Valuers, Appraisers and Estate Agents Act 1981(VAE 81) and the Estate Agency profession and its career path.Define the role and responsibilities of REA to the principle and third party including code of ethics and best practice and types of agencies and the effect of existing guidelines on property agency(C3). | U11: =D11 -> Describe the requirement and procedure to become a registered estate agent as specified under the Valuers, Appraisers and Estate Agents Act 1981(VAE 81) and the Estate Agency profession and its career path.Define the role and responsibilities of REA to the principle and third party including code of ethics and best practice and types of agencies and the effect of existing guidelines on property agency(C3). | AK11: 10
C12: CLO2 | D12: Express ideas clearly and effectively as well as demonstrate understanding(P3,CS1,CS2,CS3). | U12: =D12 -> Express ideas clearly and effectively as well as demonstrate understanding(P3,CS1,CS2,CS3). | AK12: 11
C13: CLO3 | D13: Practice ethics and values towards oneself and others(A3,EM1,EM2,EM3).
B14: 8 | C14: Mapping of the Course Learning Outcomes to the Programme Learning Outcomes, Teaching Methods and Assessment:
C15: Course Learning Outcomes (CLO) | D15: Programme Learning Outcomes (PLO) | P15: Teaching Methods | S15: Assessment
D16: PLO1 | E16: PLO2 | F16: PLO3 | G16: PLO4 | H16: PLO5 | I16: PLO6 | J16: PLO7 | K16: PLO8 | L16: PLO9 | M16: PLO10 | N16: PLO11 | O16: PLO12
C17: CLO1 | D17: √ | P17: Lecture | Discussion | S17: Project |Test | Final | U17: =S17 -> Project |Test | Final
C18: CLO2 | G18: √ | P18: Group Assignment | S18: Project | Presentation
C19: CLO3 | K19: √ | P19: Group Assignment | S19: Project
C20: (The description must be read together with standards 2.1.2, 2.2.1 and 2.2.2 in Area 2 - pages 16 & 18)
B21: 9 | C21: Transferable skills (if applicable) | G21: 1 | H21: Knowledge
C22: (Skills learned in the course of study which can be useful and utilised in other settings) | G22: 2 | H22: Communication Skills
G23: 3 | H23: Ethics
B24: 10 | C24: Distribution of Students Learning Time (SLT)
C25: Course Content Outline | G25: CLO | I25: Teaching and Learning Activities | T25: SLT
I26: Guided learning (F2F) | Q26: Guided Learning (NF2F) eg: e-learning | S26: Independent learning (NF2F)
I27: L | K27: T | M27: P | O27: O
C28: 1.0 Introduction to Real Estate Agency 1.1 Background to Real Estate Agency 1.2 Real Estate Agency in Malaysia 1.3 Definition estate agent and negotiators. 1.4 Defining the types of estate agency. 1.5 Co-Broking | G28: CLO1 | I28: 4 | K28: 2 | M28: 0 | S28: 4 | T28: =SUM(I28:S28) -> 10
C29: 2.0 The Valuers, Appraisers and Estate Agents Act 1981 2.1 The registration procedure 2.2 Ethics and code of conduct 2.3 Scale of Professional Fees - calculation of commission - gross commission - net commission - service tax | G29: CLO 1 | I29: 4 | K29: 2 | O29: 0 | S29: 5 | T29: =SUM(I29:S29) -> 11 | U29: =C29 -> 2.0 The Valuers, Appraisers and Estate Agents Act 1981 2.1 The registration procedure 2.2 Ethics and code of conduct 2.3 Scale of Professional Fees - calculation of commission - gross commission - net commission - service tax
C30: 3.0 ROLE OF A REA 3.1 Role of a REA 3.2 Function of a REA 3.3 Estate agents and other parties involved 3.4 The responsibilities of a principal to the agent 3.5 The responsibilities of an agent to the principal 3.6 The responsibility of an agent to the third party 3.7 Fiduciary Duty | G30: CLO1 | I30: 4 | K30: 2 | S30: 5 | T30: 11 | U30: =C30 -> 3.0 ROLE OF A REA 3.1 Role of a REA 3.2 Function of a REA 3.3 Estate agents and other parties involved 3.4 The responsibilities of a principal to the agent 3.5 The responsibilities of an agent to the principal 3.6 The responsibility of an agent to the third party 3.7 Fiduciary Duty
C31: 4.0 Listing 4.1 The importance of listing 4.2 Strategies to getting the listing | G31: CLO 1 | I31: 2 | K31: 1 | S31: 3 | T31: 6 | U31: 4.0 Listing 4.1 The importance of listing 4.2 Strategies to getting the listing
C32: 5.0 The process/work order of an estate agent 5.1 Collecting documents from client 5.2 Inspection 5.3 Market study 5.4 Advisory on property pricing 5.5 Advertising 5.6 Securing potential buyers 5.7 Negotiating 5.8 Securing a purchaser | G32: CLO2 | I32: 4 | K32: 2 | S32: 5 | T32: 11 | U32: 5.0 The process/work order of an estate agent 5.1 Collecting documents from client 5.2 Inspection 5.3 Market study 5.4 Advisory on property pricing 5.5 Advertising 5.6 Securing potential buyers 5.7 Negotiating 5.8 Securing a purchaser
C33: 6.0 The final stage of property transaction 6.1 The sale transaction process 6.2 Lawyer as stake holder 6.3 REA as stake holder | G33: CLO3 | I33: 2 | K33: 1 | S33: 3 | T33: 6 | U33: 6.0 The final stage of property transaction 6.1 The sale transaction process 6.2 Lawyer as stake holder 6.3 REA as stake holder
C34: 7.0 Other Rules and Regulations 7.1 FIC guidelines on property ownership by foreigners 7.2 Real Property Gains Tax 7.3 Stamp Duty Ordinance | G34: CLO2 | I34: 2 | K34: 1 | S34: 3 | T34: 6 | U34: 7.0 Other Rules and Regulations 7.1 FIC guidelines on property ownership by foreigners 7.2 Real Property Gains Tax 7.3 Stamp Duty Ordinance
C35: 8.0 Marketing of Property 8.1 Marketing mix 8.2 Property marketing techniques 8.3 Marketing Strategy 8.4 Sales strategy | G35: CLO2 | I35: 2 | K35: 1 | S35: 3 | T35: =SUM(I35:S35) -> 6 | U35: =#REF! -> 
C36: 9.0 Setting up a REA 9.1 VAEA 9.2 Equipment 9.3 Financial control 9.4 Staffing 9.5 Trust Accounts | G36: CLO3 | I36: 4 | K36: 2 | S36: 4 | T36: =SUM(I36:S36) -> 10 | U36: =#REF! -> 
C37: Total | T37: =SUM(T28:T36) -> 77
C39: Continuous Assessment | L39: Percentage (%) | N39: F2F | Q39: NF2F | T39: SLT | U39: =D41 -> Presentation
C40: 1 | D40: Project | L40: 15 | N40: 2 | Q40: 20 | T40: =SUM(N40:S40) -> 22 | U40: =D42 -> Test 1
C41: 2 | D41: Presentation | L41: 5 | N41: 1 | Q41: 5 | T41: =SUM(N41:S41) -> 6 | U41: Test 2
C42: 3 | D42: Test 1 | L42: 10 | N42: 1 | Q42: 2 | T42: 3 | U42: 0
C43: 4 | D43: Test 2 | L43: 10 | N43: 1 | Q43: 2 | T43: 3 | U43: 0
C44: 5 | T44: 0
C45: Total | T45: =SUM(T40:T44) -> 34
C47: Final Assessment | L47: Percentage (%) | N47: F2F | Q47: NF2F | T47: SLT | U47: =D49 -> 0
C48: 1 | D48: Final Examination | L48: 60 | N48: 2.5 | Q48: 7.5 | T48: =SUM(N48:S48) -> 10 | U48: =D50 -> 0
C49: 2 | T49: =SUM(N49:S49) -> 0 | U49: 0
C50: 3 | T50: 0
C51: 4 | T51: 0 | U51: 0
C52: 5 | T52: 0
T53: =SUM(T48:T52) -> 10
C55: **Please tick (ü) in this course is Latihan Industri / Clinical Placement / Practicum / WBL using 2 weeks; 1 credit formula | T55: =+T37+T45+T53 -> 121
B56: 11 | C56: L= Lecture, T=Tutorial, P=Practical, O=Others, F2F=Face to Face, NF2F=None Face to Face
C57: *Indicate the CLO based on the CLO's numbering in item 8 | U57: =H59 -> 0
B58: 12 | C58: Identify special requirement to deliver the course (e.g: software, nursery, computer lab, simulation room, etc) | H58: None
U59: =H61 -> 0
B60: 13 | C60: References: | H60: 1.The Board of Valuers, Appraisers, Estate Agents and Property Managers (LPPEH) (2013). Valuers, Appraisers and Estate Agents Act 1981(Act 242) & Rules (As At 15th January 2013). Selangor: International Law Book Services (ILBS). 2. The Board of Valuers, Appraisers, Estate Agents and Property Managers (LPPEH) (2018). Valuers, Appraisers, Estate Agents And Property Managers Act 1981(Act 242) & Rules (As At 1st March 2018). Selangor: International Law Book Services (ILBS). 3. Dirk, Zeller. (2014). Success As A Real Estate Agent For Dummies. New Jersey: John Wiley. 4. The Board of Valuers, Appraisers, Estate Agents and Property Managers (LPPEH). (2014). Malaysian Estate Agency Standards. (MEAS). 2nd. Ed. Kuala Lumpur: The Board Of Valuers , Appraisers And Estate Agents and Property Managers (LPPEH). 5. Ward, Kevin. (2016).The Book of YES: The Ultimate Real Estate Agent Conversation Guide. UK: CreateSpace Independent Publishing Platform. | U60: =H62 -> Last Update 9th February 2020
C61: (include required and further readings, and should be the most current)
C62: Other additional Information | H62: Last Update 9th February 2020

Sheet DDWF 2443
B2: 1 | C2: Name of Course | D2: Applied Valuation | AK2: 1 | AL2: 1
C3: Course Code | D3: DDWF 2443 | AJ3: √ | AK3: 2 | AL3: 2
B4: 2 | C4: Synopsis | D4: This course introduces students to applied valuation with reference to “Manual of Valuation Standards” produced by the Board of Valuers, Appraisers and Estate Agents, Malaysia. It covers determining factors affecting value, collecting, selecting and analyzing data to be used in property valuation, application of appropriate valuation methods in valuing residential properties, commercial properties, industrial properties, agricultural properties, development land, special properties, and valuation for insurance purposes and also forced sale value. At the end of this course, students should be able to use and apply their professional knowledge and skills, in choosing the appropriate method of valuation when carrying out property valuation according to the type of property while advocating the “Manual of Valuation Standards”. Through assignments and project work, students are led to develop skills to communicate effectively, to lead and cooperate as team members, be highly motivated, disciplined and ethical. | U4: =D4 -> This course introduces students to applied valuation with reference to “Manual of Valuation Standards” produced by the Board of Valuers, Appraisers and Estate Agents, Malaysia. It covers determining factors affecting value, collecting, selecting and analyzing data to be used in property valuation, application of appropriate valuation methods in valuing residential properties, commercial properties, industrial properties, agricultural properties, development land, special properties, and valuation for insurance purposes and also forced sale value. At the end of this course, students should be able to use and apply their professional knowledge and skills, in choosing the appropriate method of valuation when carrying out property valuation according to the type of property while advocating the “Manual of Valuation Standards”. Through assignments and project work, students are led to develop skills to communicate effectively, to lead and cooperate as team members, be highly motivated, disciplined and ethical. | AK4: 3 | AL4: 3
B5: 3 | C5: Name (s) of Academic Staff | D5: NIK MAT NASRI BIN NIK RAMLI | AK5: 4 | AL5: 4
B6: 4 | C6: Semester | D6: Semester | E6: 4 | F6: Year | G6: 2 | AK6: 5
B7: 5 | C7: Credit Value | D7: 3 | AK7: 6
B8: 6 | C8: Pre-requisite / Co-requisite (if any) | D8: DDWF 2433 | AK8: 7
B9: 7 | C9: Course Learning Outcomes (CLO): At the end of the course the students will be able to: | AK9: 8
C10: (example) - explain the basic principles of immunisation (C2, PLO1) | AK10: 9
C11: CLO1 | D11: Identify and evaluate the factors which affect property value, referencing on all relevant data about the subject property to be valued and select suitable comparable data to value the subject property(C1,C2,C3,C4). | U11: =D11 -> Identify and evaluate the factors which affect property value, referencing on all relevant data about the subject property to be valued and select suitable comparable data to value the subject property(C1,C2,C3,C4). | AK11: 10
C12: CLO2 | D12: Use the suitable method of valuation according to the purpose and different types of properties such as residential, commercial, agricultural, and industrial properties and calculate and write a full valuation report according to the requirements of the industry and „Manual of Valuation Standards‟(P,P2,P3,P4,CTPSI1,CTPSI2,CTPSI3). | U12: =D12 -> Use the suitable method of valuation according to the purpose and different types of properties such as residential, commercial, agricultural, and industrial properties and calculate and write a full valuation report according to the requirements of the industry and „Manual of Valuation Standards‟(P,P2,P3,P4,CTPSI1,CTPSI2,CTPSI3). | AK12: 11
C13: CLO3 | D13: Practise moral values, ethics and professionalism towards oneself and one‟s work(A3,EM1,EM2,EM3).
B14: 8 | C14: Mapping of the Course Learning Outcomes to the Programme Learning Outcomes, Teaching Methods and Assessment:
C15: Course Learning Outcomes (CLO) | D15: Programme Learning Outcomes (PLO) | P15: Teaching Methods | S15: Assessment
D16: PLO1 | E16: PLO2 | F16: PLO3 | G16: PLO4 | H16: PLO5 | I16: PLO6 | J16: PLO7 | K16: PLO8 | L16: PLO9 | M16: PLO10 | N16: PLO11 | O16: PLO12
C17: CLO1 | D17: √ | P17: Lecture | Discussion | S17: Project | Test | Final Exam | U17: =S17 -> Project | Test | Final Exam
C18: CLO2 | F18: √ | P18: Lecture | Discussion | S18: Project | Test | Final Exam
C19: CLO3 | K19: √ | P19: Group Project | S19: Project
C20: (The description must be read together with standards 2.1.2, 2.2.1 and 2.2.2 in Area 2 - pages 16 & 18)
B21: 9 | C21: Transferable skills (if applicable) | G21: 1 | H21: Knowledge
C22: (Skills learned in the course of study which can be useful and utilised in other settings) | G22: 2 | H22: Critical Thinking
G23: 3 | H23: Professional and Practice
B24: 10 | C24: Distribution of Students Learning Time (SLT)
C25: Course Content Outline | G25: CLO | I25: Teaching and Learning Activities | T25: SLT
I26: Guided learning (F2F) | Q26: Guided Learning (NF2F) eg: e-learning | S26: Independent learning (NF2F)
I27: L | K27: T | M27: P | O27: O
C28: 1.0 : FACTORS AFFECTING PROPERTY VALUE 1.1 Micro – location, the type of building (improvement) structure, topography of the land, real estate management & maintenance, size and shape of parcel, building accommodation, building finishes/facilities, the age of the building, consumer taste, public utility, legal nature of property- ownership, interest, land use and others. 1.2 Macro – politic/government policies, surrounding development/neighbourhood, economy, legislation, social, planning and new technology. 1.3 Understanding the different definitions of property value such as Open Market Value, Forced Sale Value, Value in Use, Special Value and others. | G28: CLO1 | I28: 3 | K28: 1 | M28: 0 | S28: 2 | T28: =SUM(I28:S28) -> 6
C29: 2.0 DATA COLLECTION AND DATA ANALYSIS 2.1 Data that can be used; - Sales data - Market value - Valid and bona fide 2.2 Data that cannot be used 2.3 Equality degree between comparative data - Physical - Income - Date of transaction - Market stability - Planning and legislation | G29: CLO 1 | I29: 6 | K29: 2 | O29: 0 | S29: 3 | T29: =SUM(I29:S29) -> 11 | U29: =C29 -> 2.0 DATA COLLECTION AND DATA ANALYSIS 2.1 Data that can be used; - Sales data - Market value - Valid and bona fide 2.2 Data that cannot be used 2.3 Equality degree between comparative data - Physical - Income - Date of transaction - Market stability - Planning and legislation
C30: 2.4 Comparable data - Identifying sales, obtaining and verifying data on comparables and selecting the most appropriate comparables. Collecting other relevant data about the property- title search and application and development approval from Land Office, land use planning and related government policies. 2.5 Data analysis 2.6 Valuation unit – psf, psm, pf^3, pm^3, pac, pha - Adjustment factors : time, location, size and others - Adjusting the comparables | G30: CLO1 | I30: 3 | K30: 1 | S30: 3 | T30: 7 | U30: =C30 -> 2.4 Comparable data - Identifying sales, obtaining and verifying data on comparables and selecting the most appropriate comparables. Collecting other relevant data about the property- title search and application and development approval from Land Office, land use planning and related government policies. 2.5 Data analysis 2.6 Valuation unit – psf, psm, pf^3, pm^3, pac, pha - Adjustment factors : time, location, size and others - Adjusting the comparables
C31: 3.0 RESIDENTIAL PROPERTIES 3.1 Types of residential properties 3.2 Factors affecting residential value. 3.3 Data collection and data analysis. 3.4 Comparative method: data collection, data analysis and adjustments needed. 3.5 Cost method: data collection, data analysis and adjustments needed. 3.6 Investment method: Data collection, data analysis and adjustments needed. 3.7 Valuation for residential properties 3.7 Fire Insurance and forced sale value | G31: CLO2 | I31: 6 | K31: 2 | S31: 3 | T31: 11 | U31: 3.0 RESIDENTIAL PROPERTIES 3.1 Types of residential properties 3.2 Factors affecting residential value. 3.3 Data collection and data analysis. 3.4 Comparative method: data collection, data analysis and adjustments needed. 3.5 Cost method: data collection, data analysis and adjustments needed. 3.6 Investment method: Data collection, data analysis and adjustments needed. 3.7 Valuation for residential properties 3.7 Fire Insurance and forced sale value
C32: 4.0 COMMERCIAL PROPERTIES 4.1 Types of commercial properties 4.2 Factors affecting commercial value. 4.3 Data collection and data analysis 4.4 Comparative method: data collection, data analysis and adjustments needed. 4.5 Cost method: data collection, data analysis and adjustments needed. 4.6 Investment method: Data collection, data analysis and adjustments needed | G32: CLO2 | I32: 6 | K32: 2 | S32: 3 | T32: 11 | U32: 4.0 COMMERCIAL PROPERTIES 4.1 Types of commercial properties 4.2 Factors affecting commercial value. 4.3 Data collection and data analysis 4.4 Comparative method: data collection, data analysis and adjustments needed. 4.5 Cost method: data collection, data analysis and adjustments needed. 4.6 Investment method: Data collection, data analysis and adjustments needed
C33: 5.0 INDUSTRIAL PROPERTIES 5.1 Types of industrial properties 5.2 Factors affecting value. 5.3 Data collection and data analysis. 5.4 Comparative method: data collection, data analysis and adjustments needed. 5.5 Cost method: data collection, data analysis and adjustments needed. 5.6 Investment method: Data collection, data analysis and adjustments needed. 5.7 Valuation for industrial properties | G33: CLO2 | I33: 6 | K33: 2 | S33: 3 | T33: 11 | U33: 5.0 INDUSTRIAL PROPERTIES 5.1 Types of industrial properties 5.2 Factors affecting value. 5.3 Data collection and data analysis. 5.4 Comparative method: data collection, data analysis and adjustments needed. 5.5 Cost method: data collection, data analysis and adjustments needed. 5.6 Investment method: Data collection, data analysis and adjustments needed. 5.7 Valuation for industrial properties
C34: 6.0 AGRICULTURAL PROPERTIES 6.1 Types of agricultural properties 6.2 Factors affecting value. 6.3 Data collection and data analysis 6.4 Comparative method : data collection, data analysis and adjustments needed. 6.5 Investment method : Data collection, data analysis and adjustments needed. 6.6 Valuation for agricultural properties | G34: CLO2 | I34: 6 | K34: 2 | S34: 3 | T34: 11 | U34: 6.0 AGRICULTURAL PROPERTIES 6.1 Types of agricultural properties 6.2 Factors affecting value. 6.3 Data collection and data analysis 6.4 Comparative method : data collection, data analysis and adjustments needed. 6.5 Investment method : Data collection, data analysis and adjustments needed. 6.6 Valuation for agricultural properties
C35: 7.0 SPECIAL PROPERTIES 7.1 Characteristics of special properties: hotel, cinema and others. 7.2 Appropriate methods of valuation: Profits Method. | G35: CLO2 | I35: 3 | K35: 1 | S35: 3 | T35: 7 | U35: 7.0 SPECIAL PROPERTIES 7.1 Characteristics of special properties: hotel, cinema and others. 7.2 Appropriate methods of valuation: Profits Method.
C36: 8.0 DEVELOPMENT PROPERTIES (LAND) 8.1 Characteristics of development land 8.2 Factors affecting value. 8.3 Data collection and data analysis. 8.4 Comparative method: data collection, data analysis and adjustments needed 8.5 Residual method: Data collection, data analysis and adjustments needed. 8.6 Discounted cash flow : NPV and IRR 8.7 Valuation for development land | G36: CLO3 | I36: 6 | K36: 2 | S36: 3 | T36: =SUM(I36:S36) -> 11 | U36: =#REF! -> 
C37: Total | T37: =SUM(T28:T36) -> 86
C39: Continuous Assessment | L39: Percentage (%) | N39: F2F | Q39: NF2F | T39: SLT | U39: =D41 -> Assignment Individual
C40: 1 | D40: Assignment Group | L40: 10 | Q40: 12 | T40: =SUM(N40:S40) -> 12 | U40: =D42 -> Test 1
C41: 2 | D41: Assignment Individual | L41: 10 | Q41: 5 | T41: =SUM(N41:S41) -> 5 | U41: Test 2
C42: 3 | D42: Test 1 | L42: 10 | N42: 1 | Q42: 3 | T42: 4 | U42: 0
C43: 4 | D43: Test 2 | L43: 10 | N43: 1 | Q43: 3 | T43: 4 | U43: 0
C44: 5 | T44: 0
C45: Total | T45: =SUM(T40:T44) -> 25
C47: Final Assessment | L47: Percentage (%) | N47: F2F | Q47: NF2F | T47: SLT | U47: =D49 -> 0
C48: 1 | D48: Final Examination | L48: 60 | N48: 2 | Q48: 7 | T48: =SUM(N48:S48) -> 9 | U48: =D50 -> 0
C49: 2 | T49: =SUM(N49:S49) -> 0 | U49: 0
C50: 3 | T50: 0
C51: 4 | T51: 0 | U51: 0
C52: 5 | T52: 0
T53: =SUM(T48:T52) -> 9
C55: **Please tick (ü) in this course is Latihan Industri / Clinical Placement / Practicum / WBL using 2 weeks; 1 credit formula | T55: =+T37+T45+T53 -> 120
B56: 11 | C56: L= Lecture, T=Tutorial, P=Practical, O=Others, F2F=Face to Face, NF2F=None Face to Face
C57: *Indicate the CLO based on the CLO's numbering in item 8 | U57: =H59 -> 0
B58: 12 | C58: Identify special requirement to deliver the course (e.g: software, nursery, computer lab, simulation room, etc) | H58: None
U59: =H61 -> 0
B60: 13 | C60: References: | H60: 1. Isaac, D and Steley, T. (1991). Property Valuation Techniques. London: Macmillan. 2. Ismail Omar. (2019). Real Estate Valuation: Theory And Practice. Kuala Lumpur: Pearson Malaysia. 3. Ismail Omar. (2003). Penilaian Harta Tanah. Kuala Lumpur: Dewan Bahasa dan Pustaka. 4. Azhari Hussin. (1996). Harta Tanah: Kaedah Penilaian. Kuala Lumpur: Dewan Bahasa dan Pustaka. 5. Ismail Omar. (1992). Penilaian Harta Tanah. Kuala Lumpur: Dewan Bahasa dan Pustaka. 6. The Board of Valuers, Appraisers, Estate Agents and Property Managers (LPPEH). (2019). Malaysian Valuation Standards. (MVS). 6th ed. Kuala Lumpur : The Board Of Valuers , Appraisers And Estate Agents and Property Managers (LPPEH). | U60: =H62 -> Last Update 9h February 2020
C61: (include required and further readings, and should be the most current)
C62: Other additional Information | H62: Last Update 9h February 2020

Sheet DDWF 2742
B2: 1 | C2: Name of Course | D2: Introduction To Land Development | AK2: 1 | AL2: 1
C3: Course Code | D3: DDWF 2742 | AJ3: √ | AK3: 2 | AL3: 2
B4: 2 | C4: Synopsis | D4: This course consists of introduction to general concepts and principles of land development process which includes the land acquisition process, preparation development masterplan and land development stages. | U4: =D4 -> This course consists of introduction to general concepts and principles of land development process which includes the land acquisition process, preparation development masterplan and land development stages. | AK4: 3 | AL4: 3
B5: 3 | C5: Name (s) of Academic Staff | D5: Suhana binti Adli | AK5: 4 | AL5: 4
B6: 4 | C6: Semester | D6: Semester | E6: 4 | F6: Year | G6: 2 | AK6: 5
B7: 5 | C7: Credit Value | D7: 2 | AK7: 6
B8: 6 | C8: Pre-requisite / Co-requisite (if any) | AK8: 7
B9: 7 | C9: Course Learning Outcomes (CLO): At the end of the course the students will be able to: | AK9: 8
C10: (example) - explain the basic principles of immunisation (C2, PLO1) | AK10: 9
C11: CLO1 | D11: Explain and describe the process and procedure of land development, the roles and responsibilities of stakeholders in land development, and the knowledge on sustainable development in order to make the land development is structured and provides better living for the public(C1,C2,C3). | U11: =D11 -> Explain and describe the process and procedure of land development, the roles and responsibilities of stakeholders in land development, and the knowledge on sustainable development in order to make the land development is structured and provides better living for the public(C1,C2,C3). | AK11: 10
C12: CLO2 | D12: Demonstrate and use the technique and methodology of land development initiation. Conduct a case study of land development approval(C3,CTPSI). | U12: =D12 -> Demonstrate and use the technique and methodology of land development initiation. Conduct a case study of land development approval(C3,CTPSI). | AK12: 11
C13: CLO3 | D13: Relate relevant information on Land Development Process to Real Estate Profession(A3,LL1,LL2)
B14: 8 | C14: Mapping of the Course Learning Outcomes to the Programme Learning Outcomes, Teaching Methods and Assessment:
C15: Course Learning Outcomes (CLO) | D15: Programme Learning Outcomes (PLO) | P15: Teaching Methods | S15: Assessment
D16: PLO1 | E16: PLO2 | F16: PLO3 | G16: PLO4 | H16: PLO5 | I16: PLO6 | J16: PLO7 | K16: PLO8 | L16: PLO9 | M16: PLO10 | N16: PLO11 | O16: PLO12
C17: CLO1 | D17: √ | P17: Lecture | Discussion | S17: Quiz| Test | Final | U17: =S17 -> Quiz| Test | Final
C18: CLO2 | F18: √ | P18: Group Assignment | S18: Assignment
C19: CLO3 | I19: √ | P19: Group Assignment | S19: Assignment
C20: (The description must be read together with standards 2.1.2, 2.2.1 and 2.2.2 in Area 2 - pages 16 & 18)
B21: 9 | C21: Transferable skills (if applicable) | G21: 1 | H21: Knowledge
C22: (Skills learned in the course of study which can be useful and utilised in other settings) | G22: 2 | H22: Critical Thinking
G23: 3 | H23: Lifelong Learning
B24: 10 | C24: Distribution of Students Learning Time (SLT)
C25: Course Content Outline | G25: CLO | I25: Teaching and Learning Activities | T25: SLT
I26: Guided learning (F2F) | Q26: Guided Learning (NF2F) eg: e-learning | S26: Independent learning (NF2F)
I27: L | K27: T | M27: P | O27: O
C28: 1.0 Introduction on land development process 1.1 Introduction on land development process 1.2 Main actors 1.3 Economic context | G28: CLO1 | I28: 2 | K28: 1 | M28: 0 | S28: 1 | T28: =SUM(I28:S28) -> 4
C29: 2.0 Land for development 2.1 Site identification 2.2 Initiation 2.3 Site investigation 2.4 Site acquisition 2.5 Government assistance | G29: CLO 1 | I29: 4 | K29: 2 | O29: 0 | S29: 2 | T29: =SUM(I29:S29) -> 8 | U29: =C29 -> 2.0 Land for development 2.1 Site identification 2.2 Initiation 2.3 Site investigation 2.4 Site acquisition 2.5 Government assistance
C30: 3.0 Development Proposal 3.1 Project Brief 3.2 Project development proposal | G30: CLO1 | I30: 2 | K30: 1 | S30: 2 | T30: 5 | U30: =C30 -> 3.0 Development Proposal 3.1 Project Brief 3.2 Project development proposal
C31: 4.0 Development appraisal and risk 4.1 Introduction 4.2 Financial evaluation | G31: CLO 1 | I31: 2 | K31: 1 | S31: 2 | T31: 5 | U31: 4.0 Development appraisal and risk 4.1 Introduction 4.2 Financial evaluation
C32: 5.0 Development Masterplan 5.1 What is masterplan? 5.2 Types of masterplan | G32: CLO2 | I32: 2 | K32: 1 | S32: 2 | T32: 5 | U32: 5.0 Development Masterplan 5.1 What is masterplan? 5.2 Types of masterplan
C33: 6.0 Development Finance 6.1 Introduction 6.2 Sources of finance 6.3 Methods of development finance | G33: CLO2 | I33: 2 | K33: 1 | S33: 2 | T33: 5 | U33: 6.0 Development Finance 6.1 Introduction 6.2 Sources of finance 6.3 Methods of development finance
C34: 7.0 Planning 7.1The planning system 7.2 What is development? 7.3 e-Planning 7.4 The planning application 7.5 Environmental impact assessment 7.6 The planning consent 7.7 Planning agreements or obligations 7.8 Breaches of planning control | G34: CLO3 | I34: 4 | K34: 2 | S34: 2 | T34: 8 | U34: 7.0 Planning 7.1The planning system 7.2 What is development? 7.3 e-Planning 7.4 The planning application 7.5 Environmental impact assessment 7.6 The planning consent 7.7 Planning agreements or obligations 7.8 Breaches of planning control
C35: 8.0 Market research 8.1 Introduction 8.2 Background to conducting market research 8.3 Basic market research concepts 8.4 Trends in market activity 8.5 Types of analysis | G35: CLO2 | I35: 2 | K35: 1 | S35: 2 | T35: 5 | U35: 8.0 Market research 8.1 Introduction 8.2 Background to conducting market research 8.3 Basic market research concepts 8.4 Trends in market activity 8.5 Types of analysis
C36: 9.0 Promotion and selling 9.1 Introduction 9.2 Methods of promotion 9.3 The role of the agent | G36: CLO3 | I36: 2 | K36: 1 | S36: 2 | T36: =SUM(I36:S36) -> 5 | U36: =C37 -> 10.0 Sustainable development 10.1 Introduction 10.2 What is sustainability and sustainable development? 10.3 Corporate social responsibility 10.4 The different types of CSR 10.5 Sustainability reporting 10.6 Property development, sustainability and CSR 10.6 Sum of year digits method 10.7 Arguments for sustainability 10.8 Key areas of impact in property development and sustainability
C37: 10.0 Sustainable development 10.1 Introduction 10.2 What is sustainability and sustainable development? 10.3 Corporate social responsibility 10.4 The different types of CSR 10.5 Sustainability reporting 10.6 Property development, sustainability and CSR 10.6 Sum of year digits method 10.7 Arguments for sustainability 10.8 Key areas of impact in property development and sustainability | G37: CLO2 | I37: 6 | K37: 3 | S37: 3 | T37: =SUM(I37:S37) -> 12 | U37: =C38 -> Total
C38: Total | T38: =SUM(T28:T37) -> 62
C40: Continuous Assessment | L40: Percentage (%) | N40: F2F | Q40: NF2F | T40: SLT | U40: =D42 -> Assignment Individual
C41: 1 | D41: Assignment Group | L41: 10 | Q41: 3 | T41: =SUM(N41:S41) -> 3 | U41: =D43 -> Test 1
C42: 2 | D42: Assignment Individual | L42: 10 | Q42: 3 | T42: =SUM(N42:S42) -> 3 | U42: Test 2
C43: 3 | D43: Test 1 | L43: 10 | N43: 1 | Q43: 2 | T43: 3 | U43: 0
C44: 4 | D44: Test 2 | L44: 10 | N44: 1 | Q44: 2 | T44: 3 | U44: 0
C45: 5 | T45: 0
C46: Total | T46: =SUM(T41:T45) -> 12
C48: Final Assessment | L48: Percentage (%) | N48: F2F | Q48: NF2F | T48: SLT | U48: =D50 -> 0
C49: 1 | D49: Final Examination | L49: 60 | N49: 2 | Q49: 4 | T49: =SUM(N49:S49) -> 6 | U49: =D51 -> 0
C50: 2 | T50: =SUM(N50:S50) -> 0 | U50: 0
C51: 3 | T51: 0
C52: 4 | T52: 0 | U52: 0
C53: 5 | T53: 0
T54: =SUM(T49:T53) -> 6
C56: **Please tick (ü) in this course is Latihan Industri / Clinical Placement / Practicum / WBL using 2 weeks; 1 credit formula | T56: =+T38+T46+T54 -> 80
B57: 11 | C57: L= Lecture, T=Tutorial, P=Practical, O=Others, F2F=Face to Face, NF2F=None Face to Face
C58: *Indicate the CLO based on the CLO's numbering in item 8 | U58: =H60 -> 0
B59: 12 | C59: Identify special requirement to deliver the course (e.g: software, nursery, computer lab, simulation room, etc) | H59: None
U60: =H62 -> 0
B61: 13 | C61: References: | H61: 1.Wilkinson, S. & Reed, R. (2008). Property Development. New York: Routledge Taylor & Francis Group. 2. Paul, Syms (2010). Land, Development and Design. New York: Wiley-Blackwell. 3. Dewberry, Sidney O., Lisa N. Rauenzahn & Dewberry Companies. (2008). Land Development Handbook: Planning, Engineering And Surveying. 2nd. Ed. New York: John Wiley. 4. Yilin, Hou. (2019). Development, Governance, And Real Property Tax In China. UK: Springer. | U61: =H63 -> Last Update 9th February 2020
C62: (include required and further readings, and should be the most current)
C63: Other additional Information | H63: Last Update 9th February 2020

Sheet DDWF 3053
B2: 1 | C2: Name of Course | D2: Economics in Real Estate | AK2: 1 | AL2: 1
C3: Course Code | D3: DDWF 3053 | AJ3: √ | AK3: 2 | AL3: 2
B4: 2 | C4: Synopsis | D4: An introduction the theory and concepts of land economics and urban land economics. This course consists of part l (Land Economics) and part ll (Urban Land Economics). The subtopics in part l are economic land characteristics, structure of property market, property investment, economic return of land, the allocation of land sources, land development, land planning, the role of government in property marketing etc. In the part ll , student must understand the theory of rental and replacement, theory of Von Thunen, Theory of Alonso; land value and land use;urban structure theory;factors that affect the land use style,accessibility,complimentarily,land use marketing and replacement;housing, commercial, office and industrial. | U4: =D4 -> An introduction the theory and concepts of land economics and urban land economics. This course consists of part l (Land Economics) and part ll (Urban Land Economics). The subtopics in part l are economic land characteristics, structure of property market, property investment, economic return of land, the allocation of land sources, land development, land planning, the role of government in property marketing etc. In the part ll , student must understand the theory of rental and replacement, theory of Von Thunen, Theory of Alonso; land value and land use;urban structure theory;factors that affect the land use style,accessibility,complimentarily,land use marketing and replacement;housing, commercial, office and industrial. | AK4: 3 | AL4: 3
B5: 3 | C5: Name (s) of Academic Staff | D5: Juliana Binti Ismail | AK5: 4 | AL5: 4
B6: 4 | C6: Semester | D6: Semester | E6: 1 | F6: Year | G6: 3 | AK6: 5
B7: 5 | C7: Credit Value | D7: =IF(T63=40,1,(IF(T63=80,2,(IF(T63=120,3,(IF(T63=160,4,IF(T63=200,5,IF(T63=240,6,""))))))))) -> 3 | AK7: 6
B8: 6 | C8: Pre-requisite / Co-requisite (if any) | AK8: 7
B9: 7 | C9: Course Learning Outcomes (CLO): At the end of the course the students will be able to: | AK9: 8
C10: (example) - explain the basic principles of immunisation (C2, PLO1) | AK10: 9
C11: CLO1 | D11: Describes theories and concepts of land economics and urban land economic. Differentiate between land economics and urban land economics | U11: =D11 -> Describes theories and concepts of land economics and urban land economic. Differentiate between land economics and urban land economics | AK11: 10
C12: CLO2 | D12: Express ideas clearly and effectively as well as demonstrate understanding | U12: =D12 -> Express ideas clearly and effectively as well as demonstrate understanding | AK12: 11
C13: CLO3 | D13: Relate theories and practices while
C14: CLO4 | AK14: 12
B15: 8 | C15: Mapping of the Course Learning Outcomes to the Programme Learning Outcomes, Teaching Methods and Assessment:
C16: Course Learning Outcomes (CLO) | D16: Programme Learning Outcomes (PLO) | P16: Teaching Methods | S16: Assessment
